Date Spend Occurred,Department Incurring Spend,Beneficiary Name,Summary of Purpose of Spend, Gross Amount ,Merchant Category,,
01/01/2023,"CRTKS HSE, CRANMERE",Elmbridge Borough Council,Rates,432.00,Local Government,,
01/01/2023,FLT 1A LIB STONELEGH,Epsom & Ewell Borough Council,Rates,380.00,Grants-Member Allocs,,
01/01/2023,FLT 1A LIB STONELEGH,Epsom & Ewell Borough Council,Rates,380.00,Grants-Member Allocs,,
01/01/2023,HOWFLD PIRBRIGHT LCK,Guildford Borough Council - Council,Rates,313.00,Local Government,,
01/01/2023,SUNYRIDGE KNLL FM LA,Mole Valley District Council - Tax,Rates,"1,447.00",Local Government,,
01/01/2023,2 OLD SCHOOL HSE CHP,Reigate & Banstead Borough Council,Rates,433.00,Local Government,,
01/01/2023,PARK HALL,Reigate & Banstead Borough Council,Rates,361.00,Local Government,,
01/01/2023,BIRCHLANDS,Runnymede Borough Council,Rates,383.00,Local Government,,
01/01/2023,LIMBERLOST - SURPLUS,Runnymede Borough Council,Rates,257.00,Local Government,,
01/01/2023,BIRCHLANDS,Runnymede Borough Council,Rates,257.00,Local Government,,
01/01/2023,PERM SURPLUS - RESID,Spelthorne Borough Council,Rates,326.00,Grants-Member Allocs,,
01/01/2023,WHITE COT 34 KGTN RD,Spelthorne Borough Council,Rates,"1,303.00",Grants-Member Allocs,,
01/01/2023,WOODLANDS HOUSE,Surrey Heath Borough Council - Tax,Rates,370.00,Local Government,,
01/01/2023,PINEHURST,Surrey Heath Borough Council - Tax,Rates,529.00,Local Government,,
01/01/2023,PRIOR HEATH CI,Surrey Heath Borough Council - Tax,Rates,492.00,Local Government,,
01/01/2023,DORMERS,Tandridge District Council,Rates,"1,304.00",Local Government,,
01/01/2023,HOLLAND JUN,Tandridge District Council,Rates,433.00,Local Government,,
01/01/2023,ORCHARD,Tandridge District Council,Rates,396.00,Local Government,,
01/01/2023,DORMERS,Tandridge District Council,Rates,266.00,Local Government,,
01/01/2023,LONGFIELD,Waverley Borough Council,Rates,"1,316.00",Grants-Member Allocs,,
01/01/2023,LINDEN FARM,Waverley Borough Council,Rates,313.00,Grants-Member Allocs,,
01/01/2023,GENERAL PROP AC,Waverley Borough Council,Rates,536.00,Grants-Member Allocs,,
01/01/2023,LINDEN FARM,Waverley Borough Council,Rates,527.52,Grants-Member Allocs,,
01/01/2023,FURZEFIELD  CP,Wilks Head & Eve,Rates,"4,608.00",Individual - NEC,,
01/01/2023,STANWELL YOUTH CTRE,Wilks Head & Eve,Rates,287.00,Individual - NEC,,
01/01/2023,CHOBHAM RETAINED STN,Wilks Head & Eve,Rates,707.00,Individual - NEC,,
01/01/2023,THE AVENUE SUNBURY,Wilks Head & Eve,Rates,"1,424.00",Individual - NEC,,
01/01/2023,HEATHER RIDGE INF,Wilks Head & Eve,Rates,"1,923.00",Individual - NEC,,
01/01/2023,WEST HOUSE COMPLEX,Wilks Head & Eve,Rates,"6,571.00",Individual - NEC,,
01/01/2023,BAGSHOT DEPOT,Wilks Head & Eve,Rates,"2,731.00",Individual - NEC,,
01/01/2023,SUNBURY & SHEP SS,Wilks Head & Eve,Rates,"1,760.00",Individual - NEC,,
01/01/2023,KINGSWOOD PRY,Wilks Head & Eve,Rates,"1,610.00",Individual - NEC,,
01/01/2023,GLEBELANDS,Wilks Head & Eve,Rates,"8,619.00",Individual - NEC,,
01/01/2023,ASH MANOR SCHOOL,Wilks Head & Eve,Rates,"10,773.00",Individual - NEC,,
01/01/2023,WOKING FIRE STATION,Wilks Head & Eve,Rates,"6,485.00",Individual - NEC,,
01/01/2023,STAMFORD GREEN PRY,Wilks Head & Eve,Rates,"4,437.00",Individual - NEC,,
01/01/2023,SHAWFIELD PRY,Wilks Head & Eve,Rates,"1,747.00",Individual - NEC,,
01/01/2023,OAKWOOD  HORLEY,Wilks Head & Eve,Rates,"15,476.00",Individual - NEC,,
01/01/2023,WOKING CORONER CT,Wilks Head & Eve,Rates,"10,069.00",Individual - NEC,,
01/01/2023,EWELL COURT LIB,Wilks Head & Eve,Rates,509.00,Individual - NEC,,
01/01/2023,REIGATE PARISH CHUR,Wilks Head & Eve,Rates,484.00,Individual - NEC,,
01/01/2023,MAYFORD CENTRE-BUS,Wilks Head & Eve,Rates,509.00,Individual - NEC,,
01/01/2023,BRIDGEHEAD HOUSE,Wilks Head & Eve,Rates,"3,610.00",Individual - NEC,,
01/01/2023,THORPE CE PRIMARY,Wilks Head & Eve,Rates,444.00,Individual - NEC,,
01/01/2023,REIGATE LIB,Wilks Head & Eve,Rates,"1,383.00",Individual - NEC,,
01/01/2023,SHOTTERMILL JUN,Wilks Head & Eve,Rates,"2,731.00",Individual - NEC,,
01/01/2023,WOODHATCH,Wilks Head & Eve,Rates,"74,667.00",Individual - NEC,,
01/01/2023,61 STAINES HIGH ST,Wilks Head & Eve,Rates,"6,191.00",Individual - NEC,,
01/01/2023,MOLESEY LIB,Wilks Head & Eve,Rates,821.00,Individual - NEC,,
01/01/2023,RYLSTON WEYBRIDGE,Wilks Head & Eve,Rates,"2,688.00",Individual - NEC,,
01/01/2023,WALTON FIRE STATION,Wilks Head & Eve,Rates,"3,243.00",Individual - NEC,,
01/01/2023,NUTFIELD CHURCH CEP,Wilks Head & Eve,Rates,264.56,Individual - NEC,,
01/01/2023,GODALMING JUN,Wilks Head & Eve,Rates,252.00,Individual - NEC,,
01/01/2023,PUBLIC LIB OFFS WEYB,Wilks Head & Eve,Rates,749.00,Individual - NEC,,
01/01/2023,ROYAL ALEX & ALBERT,Wilks Head & Eve,Rates,"2,113.00",Individual - NEC,,
01/01/2023,VIRGINIA WATER LIB,Wilks Head & Eve,Rates,399.00,Individual - NEC,,
01/01/2023,CRANLEIGH CE VC PRIM,Wilks Head & Eve,Rates,"1,071.00",Individual - NEC,,
01/01/2023,GUILDFORD LIB,Wilks Head & Eve,Rates,"4,693.00",Individual - NEC,,
01/01/2023,CHERTSEY FIRE STN,Wilks Head & Eve,Rates,"2,961.00",Individual - NEC,,
01/01/2023,ASH SSC ASH LIBRARY,Wilks Head & Eve,Rates,624.00,Individual - NEC,,
01/01/2023,TRINITY OAKS CE PRIM,Wilks Head & Eve,Rates,435.00,Individual - NEC,,
01/01/2023,BUSBRIDGE CEJ,Wilks Head & Eve,Rates,390.00,Individual - NEC,,
01/01/2023,ST CLEMENTS CATH PRY,Wilks Head & Eve,Rates,439.00,Individual - NEC,,
01/01/2023,STAINES LIB,Wilks Head & Eve,Rates,"2,923.00",Individual - NEC,,
01/01/2023,ASHLEY PARK HOUSE,Wilks Head & Eve,Rates,"2,944.00",Individual - NEC,,
01/01/2023,EWELL GROVE PRIMARY,Wilks Head & Eve,Rates,"1,611.00",Individual - NEC,,
01/01/2023,WILLIAM COBBETT JUN,Wilks Head & Eve,Rates,"5,376.00",Individual - NEC,,
01/01/2023,CATERHAM LIB,Wilks Head & Eve,Rates,645.00,Individual - NEC,,
01/01/2023,OXTED FIRE STATION,Wilks Head & Eve,Rates,"1,164.00",Individual - NEC,,
01/01/2023,MERSTHAM HUB,Wilks Head & Eve,Rates,"1,372.00",Individual - NEC,,
01/01/2023,CATERHAM YOUTH CTRE,Wilks Head & Eve,Rates,390.00,Individual - NEC,,
01/01/2023,EPSOM FIRE STATION,Wilks Head & Eve,Rates,"3,221.00",Individual - NEC,,
01/01/2023,PRIMARY DATA CENTRE,Wilks Head & Eve,Rates,"1,248.00",Individual - NEC,,
01/01/2023,LALEHAM CEP,Wilks Head & Eve,Rates,533.00,Individual - NEC,,
01/01/2023,BURHILL PRIMARY SCH,Wilks Head & Eve,Rates,981.00,Individual - NEC,,
01/01/2023,VALLEY END CEI,Wilks Head & Eve,Rates,"1,611.00",Individual - NEC,,
01/01/2023,MOSS LANE SCHOOL,Wilks Head & Eve,Rates,894.00,Individual - NEC,,
01/01/2023,DITTONS LIB,Wilks Head & Eve,Rates,759.00,Individual - NEC,,
01/01/2023,DAKOTA,Wilks Head & Eve,Rates,"1,871.00",Individual - NEC,,
01/01/2023,ORCHARD SCHOOL,Wilks Head & Eve,Rates,457.00,Individual - NEC,,
01/01/2023,WOKING LIB,Wilks Head & Eve,Rates,"7,381.00",Individual - NEC,,
01/01/2023,FOCUS YOUTH CENTRE,Wilks Head & Eve,Rates,335.00,Individual - NEC,,
01/01/2023,STONELEIGH LIB,Wilks Head & Eve,Rates,977.00,Individual - NEC,,
01/01/2023,"FMR SAWMILL, NORBURY",Wilks Head & Eve,Rates,949.00,Individual - NEC,,
01/01/2023,ST MARYS CEP BYF,Wilks Head & Eve,Rates,"3,136.00",Individual - NEC,,
01/01/2023,DORKING FIRE STATION,Wilks Head & Eve,Rates,"1,965.00",Individual - NEC,,
01/01/2023,EGHAM LIB,Wilks Head & Eve,Rates,"1,019.00",Individual - NEC,,
01/01/2023,STANWELL LIB (NEW),Wilks Head & Eve,Rates,541.00,Individual - NEC,,
01/01/2023,FMR BOOKHAM YC,Wilks Head & Eve,Rates,367.00,Individual - NEC,,
01/01/2023,EPSOM DOWNS PRY,Wilks Head & Eve,Rates,"3,561.00",Individual - NEC,,
01/01/2023,WHARF NURSERY,Wilks Head & Eve,Rates,"4,864.00",Individual - NEC,,
01/01/2023,FAIRMOUNT HOUSE,Wilks Head & Eve,Rates,"22,400.00",Individual - NEC,,
01/01/2023,HASLEMERE LIB,Wilks Head & Eve,Rates,769.00,Individual - NEC,,
01/01/2023,ASHFORD PARK PRY,Wilks Head & Eve,Rates,"4,864.00",Individual - NEC,,
01/01/2023,OXTED LIB,Wilks Head & Eve,Rates,"1,081.00",Individual - NEC,,
01/01/2023,ST LAWRENCE CE E MOL,Wilks Head & Eve,Rates,939.00,Individual - NEC,,
01/01/2023,MEATH GREEN INF,Wilks Head & Eve,Rates,"1,690.00",Individual - NEC,,
01/01/2023,CHERTSEY NURSERY,Wilks Head & Eve,Rates,"3,925.00",Individual - NEC,,
01/01/2023,DORMANSLAND PRY,Wilks Head & Eve,Rates,"2,100.00",Individual - NEC,,
01/01/2023,ESHER LIB,Wilks Head & Eve,Rates,"1,476.00",Individual - NEC,,
01/01/2023,CHANDLERS FIELD PRY,Wilks Head & Eve,Rates,"1,118.00",Individual - NEC,,
01/01/2023,LYNE & LONG CROSS CE,Wilks Head & Eve,Rates,542.00,Individual - NEC,,
01/01/2023,ARTINGTON HOUSE,Wilks Head & Eve,Rates,"1,819.00",Individual - NEC,,
01/01/2023,FRANCE HILL HOUSE,Wilks Head & Eve,Rates,"2,389.00",Individual - NEC,,
01/01/2023,ST PETERS CEP WRECC,Wilks Head & Eve,Rates,879.00,Individual - NEC,,
01/01/2023,WITLEY CEI,Wilks Head & Eve,Rates,728.00,Individual - NEC,,
01/01/2023,WEST BYFLEET CI,Wilks Head & Eve,Rates,"1,909.11",Individual - NEC,,
01/01/2023,MEATH GREEN JUN,Wilks Head & Eve,Rates,"3,351.00",Individual - NEC,,
01/01/2023,MANORFIELD P&N SCH,Wilks Head & Eve,Rates,"2,956.00",Individual - NEC,,
01/01/2023,61 STAINES HIGH ST,Wilks Head & Eve,Rates,397.00,Individual - NEC,,
01/01/2023,DRILL HALL DORKING,Wilks Head & Eve,Rates,"1,798.00",Individual - NEC,,
01/01/2023,GODSTONE DEPOT,Wilks Head & Eve,Rates,"5,120.00",Individual - NEC,,
01/01/2023,WEST ASHTEAD PRY,Wilks Head & Eve,Rates,"2,951.00",Individual - NEC,,
01/01/2023,CAMBERLEY FIRE STN,Wilks Head & Eve,Rates,"3,861.00",Individual - NEC,,
01/01/2023,PRIMARY DATA CENTRE,Wilks Head & Eve,Rates,"1,289.00",Individual - NEC,,
01/01/2023,ST JOSEPHS CTH PRY D,Wilks Head & Eve,Rates,256.00,Individual - NEC,,
01/01/2023,EPSOM PRY,Wilks Head & Eve,Rates,"3,349.00",Individual - NEC,,
01/01/2023,BUCKLAND PRIMARY SCH,Wilks Head & Eve,Rates,"3,264.00",Individual - NEC,,
01/01/2023,ST GILES CEI ASHTD,Wilks Head & Eve,Rates,269.00,Individual - NEC,,
01/01/2023,DAKOTA,Wilks Head & Eve,Rates,"1,474.00",Individual - NEC,,
01/01/2023,BAGSHOT LIB,Wilks Head & Eve,Rates,254.00,Individual - NEC,,
01/01/2023,REIGATE LIB,Wilks Head & Eve,Rates,447.00,Individual - NEC,,
01/01/2023,SUNBURY-ON-T LIB,Wilks Head & Eve,Rates,"1,455.00",Individual - NEC,,
01/01/2023,ST PAULS CEP DORK,Wilks Head & Eve,Rates,713.00,Individual - NEC,,
01/01/2023,KINGFISHER HOUSE,Wilks Head & Eve,Rates,"2,155.00",Individual - NEC,,
01/01/2023,MERSTHAM HUB,Wilks Head & Eve,Rates,"1,882.00",Individual - NEC,,
01/01/2023,GUILDFORD CHILDS CTR,Wilks Head & Eve,Rates,"3,584.00",Individual - NEC,,
01/01/2023,ASHFORD LIB,Wilks Head & Eve,Rates,"1,487.00",Individual - NEC,,
01/01/2023,LINGFIELD PRY,Wilks Head & Eve,Rates,"3,712.00",Individual - NEC,,
01/01/2023,BEAUCLERC CHENNESTON,Wilks Head & Eve,Rates,"1,185.00",Individual - NEC,,
01/01/2023,CRANLEIGH CE VC PRIM,Wilks Head & Eve,Rates,361.00,Individual - NEC,,
01/01/2023,PUBLIC LIB OFFS WEYB,Wilks Head & Eve,Rates,"1,944.00",Individual - NEC,,
01/01/2023,WORPLESDON PRY,Wilks Head & Eve,Rates,"4,736.00",Individual - NEC,,
01/01/2023,RIVERVIEW CEP,Wilks Head & Eve,Rates,384.00,Individual - NEC,,
01/01/2023,ASHTEAD LIB,Wilks Head & Eve,Rates,624.00,Individual - NEC,,
01/01/2023,61 STAINES HIGH ST,Wilks Head & Eve,Rates,619.00,Individual - NEC,,
01/01/2023,GRAYSWOOD CE PRIMARY,Wilks Head & Eve,Rates,439.00,Individual - NEC,,
01/01/2023,POLESDEN LACEY INF,Wilks Head & Eve,Rates,884.00,Individual - NEC,,
01/01/2023,TRUMPS GREEN INF,Wilks Head & Eve,Rates,"1,513.00",Individual - NEC,,
01/01/2023,FMR HORLEY LIBRARY,Wilks Head & Eve,Rates,"1,028.00",Individual - NEC,,
01/01/2023,HENRIETTA PARKER CTR,Wilks Head & Eve,Rates,"3,072.00",Individual - NEC,,
01/01/2023,BEACON HILL COMM,Wilks Head & Eve,Rates,304.00,Individual - NEC,,
01/01/2023,GUILDFORD CHILDS CTR,Wilks Head & Eve,Rates,"1,757.00",Individual - NEC,,
01/01/2023,CRANLEIGH LIB,Wilks Head & Eve,Rates,"1,008.00",Individual - NEC,,
01/01/2023,BAGSHOT DEPOT,Wilks Head & Eve,Rates,383.00,Individual - NEC,,
01/01/2023,THE DORKING CENTRE,Wilks Head & Eve,Rates,341.00,Individual - NEC,,
01/01/2023,LONG D ST MARYS CEJ,Wilks Head & Eve,Rates,317.00,Individual - NEC,,
01/01/2023,PERM SURP LAND,Wilks Head & Eve,Rates,457.00,Individual - NEC,,
01/01/2023,PRIMARY DATA CENTRE,Wilks Head & Eve,Rates,"1,216.00",Individual - NEC,,
01/01/2023,DORKING LIB (NEW),Wilks Head & Eve,Rates,"3,627.00",Individual - NEC,,
01/01/2023,SURREY HISTORY CTR,Wilks Head & Eve,Rates,"21,333.00",Individual - NEC,,
01/01/2023,ST PETERS CATH PRY L,Wilks Head & Eve,Rates,390.00,Individual - NEC,,
01/01/2023,KNWL GRN STAINES LOC,Wilks Head & Eve,Rates,"2,027.00",Individual - NEC,,
01/01/2023,ST FAITHS FC,Wilks Head & Eve,Rates,"1,674.00",Individual - NEC,,
01/01/2023,FMR FIRE ELM GROVE,Wilks Head & Eve,Rates,414.00,Individual - NEC,,
01/01/2023,GUILDFORD FIRE STN,Wilks Head & Eve,Rates,"11,947.00",Individual - NEC,,
01/01/2023,WEST BYFLEET JUN,Wilks Head & Eve,Rates,"2,783.89",Individual - NEC,,
01/01/2023,ST MARYS CEI SHACKFD,Wilks Head & Eve,Rates,416.00,Individual - NEC,,
01/01/2023,BANSTEAD JUN,Wilks Head & Eve,Rates,"2,793.00",Individual - NEC,,
01/01/2023,POWELL-CORDEROY PRY,Wilks Head & Eve,Rates,"1,226.00",Individual - NEC,,
01/01/2023,HIGH ASHURST OEC,Wilks Head & Eve,Rates,"2,389.00",Individual - NEC,,
01/01/2023,PRIORY CE SCHOOL,Wilks Head & Eve,Rates,"2,539.00",Individual - NEC,,
01/01/2023,ST PAULS CEI TONG,Wilks Head & Eve,Rates,"1,060.00",Individual - NEC,,
01/01/2023,ST PAULS CATH PRY TD,Wilks Head & Eve,Rates,751.00,Individual - NEC,,
01/01/2023,SALFORDS FIRE STATIO,Wilks Head & Eve,Rates,"5,547.00",Individual - NEC,,
01/01/2023,BAGSHOT INF,Wilks Head & Eve,Rates,"1,767.00",Individual - NEC,,
01/01/2023,FRIMLEY GRN LIB,Wilks Head & Eve,Rates,728.00,Individual - NEC,,
01/01/2023,GODALMING SSC,Wilks Head & Eve,Rates,"1,507.00",Individual - NEC,,
01/01/2023,WEST PARK FARMHOUSE,Wilks Head & Eve,Rates,509.00,Individual - NEC,,
01/01/2023,TILLINGBOURNE JUN,Wilks Head & Eve,Rates,"2,944.00",Individual - NEC,,
01/01/2023,FETCHAM VILLAGE INF,Wilks Head & Eve,Rates,"1,170.00",Individual - NEC,,
01/01/2023,ONSLOW INF,Wilks Head & Eve,Rates,"1,206.00",Individual - NEC,,
01/01/2023,CRANMERE PRY ESHER,Wilks Head & Eve,Rates,"6,101.00",Individual - NEC,,
01/01/2023,SW SURREY FANILY CTR,Wilks Head & Eve,Rates,"2,731.00",Individual - NEC,,
01/01/2023,ST BARTHOLOMEWS CEP,Wilks Head & Eve,Rates,713.00,Individual - NEC,,
01/01/2023,OAKFIELD JUN,Wilks Head & Eve,Rates,"2,475.00",Individual - NEC,,
01/01/2023,NORTH DOWNS PRY,Wilks Head & Eve,Rates,"2,261.00",Individual - NEC,,
01/01/2023,STAINES FIRE STATION,Wilks Head & Eve,Rates,"2,411.00",Individual - NEC,,
01/01/2023,FARNCOMBE CEI,Wilks Head & Eve,Rates,"1,092.00",Individual - NEC,,
01/01/2023,GATWICK DIAMOND PH 1,Wilks Head & Eve,Rates,"11,627.00",Individual - NEC,,
01/01/2023,RANGER HOUSE,Wilks Head & Eve,Rates,"13,830.00",Individual - NEC,,
01/01/2023,CHARLWOOD VILL INF,Wilks Head & Eve,Rates,530.00,Individual - NEC,,
01/01/2023,ST JUDE'S CE INFANT,Wilks Head & Eve,Rates,311.00,Individual - NEC,,
01/01/2023,LIMPSFIELD CEI,Wilks Head & Eve,Rates,294.00,Individual - NEC,,
01/01/2023,DUNSFOLD FIRE STN,Wilks Head & Eve,Rates,509.00,Individual - NEC,,
01/01/2023,MALTHOUSE YC D'KING,Wilks Head & Eve,Rates,416.00,Individual - NEC,,
01/01/2023,BEAUCLERC CHENNESTON,Wilks Head & Eve,Rates,"2,475.00",Individual - NEC,,
01/01/2023,EARLSWOOD INF&JUN,Wilks Head & Eve,Rates,"2,956.00",Individual - NEC,,
01/01/2023,FAIRWAYS,Wilks Head & Eve,Rates,"3,115.00",Individual - NEC,,
01/01/2023,SHOTTERMILL INF,Wilks Head & Eve,Rates,"1,653.00",Individual - NEC,,
01/01/2023,NE SHORT STAY SCH,Wilks Head & Eve,Rates,725.00,Individual - NEC,,
01/01/2023,FRIMLEY GREEN YC,Wilks Head & Eve,Rates,426.00,Individual - NEC,,
01/01/2023,QUADRANT CT WOKING,Wilks Head & Eve,Rates,"40,021.00",Individual - NEC,,
01/01/2023,HURST GREEN SCHOOL,Wilks Head & Eve,Rates,"1,331.00",Individual - NEC,,
01/01/2023,ST CUTHBERTS CATH PR,Wilks Head & Eve,Rates,412.00,Individual - NEC,,
01/01/2023,NE SHORT STAY SCH,Wilks Head & Eve,Rates,"1,060.00",Individual - NEC,,
01/01/2023,DORKING NURSERY,Wilks Head & Eve,Rates,"4,651.00",Individual - NEC,,
01/01/2023,RENTWOOD,Wilks Head & Eve,Rates,"1,037.00",Individual - NEC,,
01/01/2023,ST FRANCIS CTH PRY C,Wilks Head & Eve,Rates,474.00,Individual - NEC,,
01/01/2023,NW SURREY SSS,Wilks Head & Eve,Rates,308.00,Individual - NEC,,
01/01/2023,HORSELL CEJ,Wilks Head & Eve,Rates,640.00,Individual - NEC,,
01/01/2023,FMR HORLEY LIBRARY,Wilks Head & Eve,Rates,664.00,Individual - NEC,,
01/01/2023,WALTON ON HILL PRY,Wilks Head & Eve,Rates,"1,576.00",Individual - NEC,,
01/01/2023,PRIOR HEATH CI,Wilks Head & Eve,Rates,"1,412.00",Individual - NEC,,
01/01/2023,THE MANSION L'HEAD,Wilks Head & Eve,Rates,"3,285.00",Individual - NEC,,
01/01/2023,OLD DEAN YC CAMBERLE,Wilks Head & Eve,Rates,308.00,Individual - NEC,,
01/01/2023,WARLINGHAM LIB,Wilks Head & Eve,Rates,358.00,Individual - NEC,,
01/01/2023,WOOD STREET INF,Wilks Head & Eve,Rates,998.00,Individual - NEC,,
01/01/2023,STAINES YTH SPTS CTR,Wilks Head & Eve,Rates,634.00,Individual - NEC,,
01/01/2023,BEACON HILL COMM,Wilks Head & Eve,Rates,"2,240.00",Individual - NEC,,
01/01/2023,ASHLEY PARK HOUSE,Wilks Head & Eve,Rates,"4,949.00",Individual - NEC,,
01/01/2023,PERM SURPLUS NON-RES,Wilks Head & Eve,Rates,440.00,Individual - NEC,,
01/01/2023,ST JOSEPHS CTH PRY E,Wilks Head & Eve,Rates,768.00,Individual - NEC,,
01/01/2023,EBBISHAM - EPSOM LIB,Wilks Head & Eve,Rates,"5,205.00",Individual - NEC,,
01/01/2023,CLARENDON PRY,Wilks Head & Eve,Rates,"2,017.00",Individual - NEC,,
01/01/2023,ST NICHOLAS CEP SHEP,Wilks Head & Eve,Rates,772.00,Individual - NEC,,
01/01/2023,ST MARTINS CEP DORK,Wilks Head & Eve,Rates,"2,100.00",Individual - NEC,,
01/01/2023,LINGFIELD FIRE STN,Wilks Head & Eve,Rates,717.00,Individual - NEC,,
01/01/2023,ST JOHNS CEJ CATERHM,Wilks Head & Eve,Rates,841.00,Individual - NEC,,
01/01/2023,THORPE LEA PRY,Wilks Head & Eve,Rates,"1,295.00",Individual - NEC,,
01/01/2023,LONG DITTON INF,Wilks Head & Eve,Rates,279.00,Individual - NEC,,
01/01/2023,ST JOSEPHS CTH PRY G,Wilks Head & Eve,Rates,"1,749.00",Individual - NEC,,
01/01/2023,ST DUNSTANS CATH PRY,Wilks Head & Eve,Rates,751.00,Individual - NEC,,
01/01/2023,GOMSHALL FIRE STN,Wilks Head & Eve,Rates,769.00,Individual - NEC,,
01/01/2023,SOUTHFIELD PARK,Wilks Head & Eve,Rates,"3,179.00",Individual - NEC,,
01/01/2023,CRANLEIGH FIRE STN,Wilks Head & Eve,Rates,800.00,Individual - NEC,,
01/01/2023,GATWICK DIAMOND PH 1,Wilks Head & Eve,Rates,"7,936.00",Individual - NEC,,
01/01/2023,MILFORD SCHOOL,Wilks Head & Eve,Rates,288.00,Individual - NEC,,
01/01/2023,REIGATE PRIORY SCH,Wilks Head & Eve,Rates,"4,329.00",Individual - NEC,,
01/01/2023,OATLANDS SCHOOL,Wilks Head & Eve,Rates,"2,496.00",Individual - NEC,,
01/01/2023,OXTED LIB,Wilks Head & Eve,Rates,"2,219.00",Individual - NEC,,
01/01/2023,WEST BYFLEET LIB-NEW,Wilks Head & Eve,Rates,894.00,Individual - NEC,,
01/01/2023,FMR HORLEY LIBRARY,Wilks Head & Eve,Rates,"1,549.00",Individual - NEC,,
01/01/2023,EARLSWOOD INF&JUN,Wilks Head & Eve,Rates,"2,064.00",Individual - NEC,,
01/01/2023,CHERTSEY YOUTH CTR,Wilks Head & Eve,Rates,466.00,Individual - NEC,,
01/01/2023,MANORCROFT PRY,Wilks Head & Eve,Rates,"3,072.00",Individual - NEC,,
01/01/2023,DR DATA CTR UNIT 10,Wilks Head & Eve,Rates,"2,603.00",Individual - NEC,,
01/01/2023,KNAPHILL LIBRARY-NEW,Wilks Head & Eve,Rates,"2,058.00",Individual - NEC,,
01/01/2023,DAKOTA,Wilks Head & Eve,Rates,"21,760.00",Individual - NEC,,
01/01/2023,ASHFORD CEP,Wilks Head & Eve,Rates,572.00,Individual - NEC,,
01/01/2023,BISLEY CEP,Wilks Head & Eve,Rates,435.00,Individual - NEC,,
01/01/2023,FARNHAM LIB,Wilks Head & Eve,Rates,"2,539.00",Individual - NEC,,
01/01/2023,WEST HOUSE COMPLEX,Wilks Head & Eve,Rates,"1,019.00",Individual - NEC,,
01/01/2023,LAKERS YC WOKING,Wilks Head & Eve,Rates,403.00,Individual - NEC,,
01/01/2023,ESHER LOCAL OFFICE,Wilks Head & Eve,Rates,"8,277.00",Individual - NEC,,
01/01/2023,NORTH DOWNS PRY,Wilks Head & Eve,Rates,489.00,Individual - NEC,,
01/01/2023,REDHILL FAMILY CTR,Wilks Head & Eve,Rates,468.00,Individual - NEC,,
01/01/2023,GODALMING SSC,Wilks Head & Eve,Rates,954.00,Individual - NEC,,
01/01/2023,PUBLIC LIB OFFS WEYB,Wilks Head & Eve,Rates,274.00,Individual - NEC,,
01/01/2023,GODSTONE FIRE STN,Wilks Head & Eve,Rates,"2,389.00",Individual - NEC,,
01/01/2023,PARK HOUSE SHALFORD,Wilks Head & Eve,Rates,"2,197.00",Individual - NEC,,
01/01/2023,ONGAR PLACE PRIMARY,Wilks Head & Eve,Rates,"2,262.00",Individual - NEC,,
01/01/2023,61 STAINES HIGH ST,Wilks Head & Eve,Rates,843.00,Individual - NEC,,
01/01/2023,CAMBERLEY LIB,Wilks Head & Eve,Rates,"2,176.00",Individual - NEC,,
01/01/2023,ROYAL KENT CEP,Wilks Head & Eve,Rates,"2,257.00",Individual - NEC,,
01/01/2023,CONSORT HOUSE,Wilks Head & Eve,Rates,"24,533.00",Individual - NEC,,
01/01/2023,LANGSHOTT PRIMARY,Wilks Head & Eve,Rates,"4,259.00",Individual - NEC,,
01/01/2023,KINGFISHER HOUSE,Wilks Head & Eve,Rates,"1,589.00",Individual - NEC,,
01/01/2023,ASHLEY PARK HOUSE,Wilks Head & Eve,Rates,"1,611.00",Individual - NEC,,
01/01/2023,CLAYGATE PRY,Wilks Head & Eve,Rates,772.00,Individual - NEC,,
01/01/2023,AUDLEY PRY,Wilks Head & Eve,Rates,"1,591.00",Individual - NEC,,
01/01/2023,CATERHAM VALLEY LBRY,Wilks Head & Eve,Rates,"1,726.00",Individual - NEC,,
01/01/2023,STEPGATES COMM SCH,Wilks Head & Eve,Rates,"1,715.00",Individual - NEC,,
01/01/2023,SHEPPERTON LIB,Wilks Head & Eve,Rates,447.00,Individual - NEC,,
01/01/2023,MERROW CEI,Wilks Head & Eve,Rates,"1,362.00",Individual - NEC,,
01/01/2023,WONERSH&SHAM GN CEP,Wilks Head & Eve,Rates,262.00,Individual - NEC,,
01/01/2023,NORTH DOWNS PRY,Wilks Head & Eve,Rates,530.00,Individual - NEC,,
01/01/2023,ESHER GREEN ESHER,Wilks Head & Eve,Rates,956.00,Individual - NEC,,
01/01/2023,HORLEY INF,Wilks Head & Eve,Rates,"2,444.00",Individual - NEC,,
01/01/2023,THE MANSION L'HEAD,Wilks Head & Eve,Rates,"1,154.00",Individual - NEC,,
01/01/2023,CHERTSEY LIB,Wilks Head & Eve,Rates,852.00,Individual - NEC,,
01/01/2023,WALSH MEMORIAL CEI,Wilks Head & Eve,Rates,"1,216.00",Individual - NEC,,
01/01/2023,SHAW FC,Wilks Head & Eve,Rates,250.00,Individual - NEC,,
01/01/2023,SHBC OFFICE ACCOMM,Wilks Head & Eve,Rates,"2,100.00",Individual - NEC,,
01/01/2023,"GEN OFFICE,CRANLEIGH",Wilks Head & Eve,Rates,597.00,Individual - NEC,,
01/01/2023,BOOKHAM LIB (NEW),Wilks Head & Eve,Rates,457.00,Individual - NEC,,
01/01/2023,THAMES DITTON INF,Wilks Head & Eve,Rates,414.00,Individual - NEC,,
01/01/2023,WOKING CORONER CT,Wilks Head & Eve,Rates,925.00,Individual - NEC,,
01/01/2023,THAMES YG MARINERS,Wilks Head & Eve,Rates,"1,591.00",Individual - NEC,,
01/01/2023,MANBY LODGE INF,Wilks Head & Eve,Rates,"3,221.00",Individual - NEC,,
01/01/2023,PERM SURPLUS NON-RES,Wilks Head & Eve,Rates,"2,304.00",Individual - NEC,,
01/01/2023,HAYES BRIDGE BC-BUS,Wilks Head & Eve,Rates,355.00,Individual - NEC,,
01/01/2023,GROVELANDS PRI&NUR,Wilks Head & Eve,Rates,"3,029.00",Individual - NEC,,
01/01/2023,LEATHERHEAD FIRE STN,Wilks Head & Eve,Rates,"2,816.00",Individual - NEC,,
01/01/2023,ST ANNES CATH PRY BA,Wilks Head & Eve,Rates,908.00,Individual - NEC,,
01/01/2023,ST LAWRENCE CEJ CHOB,Wilks Head & Eve,Rates,529.00,Individual - NEC,,
01/01/2023,HORSLEY LIB,Wilks Head & Eve,Rates,811.00,Individual - NEC,,
01/01/2023,GREVILLE PRY,Wilks Head & Eve,Rates,"5,632.00",Individual - NEC,,
01/01/2023,CHANDLER CEJ,Wilks Head & Eve,Rates,619.00,Individual - NEC,,
01/01/2023,HYTHE SCHOOL,Wilks Head & Eve,Rates,"4,096.00",Individual - NEC,,
01/01/2023,PERM SURPLUS NON-RES,Wilks Head & Eve,Rates,"1,303.00",Individual - NEC,,
01/01/2023,EGHAM FIRE STATION,Wilks Head & Eve,Rates,"3,072.00",Individual - NEC,,
01/01/2023,HENLEY FORT OEC,Wilks Head & Eve,Rates,582.00,Individual - NEC,,
01/01/2023,ST ANNS HEATH JUN,Wilks Head & Eve,Rates,"2,517.00",Individual - NEC,,
01/01/2023,GRANGE CI,Wilks Head & Eve,Rates,"1,871.00",Individual - NEC,,
01/01/2023,BELL FARM -PRIMARY,Wilks Head & Eve,Rates,"3,477.00",Individual - NEC,,
01/01/2023,ST BEDES SCHOOL,Wilks Head & Eve,Rates,"4,934.00",Individual - NEC,,
01/01/2023,CONSORT HOUSE,Wilks Head & Eve,Rates,728.00,Individual - NEC,,
01/01/2023,ST JUDES JUN CE SCH,Wilks Head & Eve,Rates,546.00,Individual - NEC,,
01/01/2023,ST JOSEPHS CTH PRY R,Wilks Head & Eve,Rates,833.00,Individual - NEC,,
01/01/2023,FARNHAM FIRE STATION,Wilks Head & Eve,Rates,"3,733.00",Individual - NEC,,
01/01/2023,WEST HOUSE COMPLEX,Wilks Head & Eve,Rates,"9,515.00",Individual - NEC,,
01/01/2023,ASH SSC ASH LIBRARY,Wilks Head & Eve,Rates,"1,591.00",Individual - NEC,,
01/01/2023,ESHER FIRE STATION,Wilks Head & Eve,Rates,"2,555.00",Individual - NEC,,
01/01/2023,HURST PARK PRY,Wilks Head & Eve,Rates,"5,760.00",Individual - NEC,,
01/01/2023,UNIT 4 LEATHERHEAD,Wilks Head & Eve,Rates,"3,776.00",Individual - NEC,,
01/01/2023,BADSHOT LEA VILL INF,Wilks Head & Eve,Rates,"1,424.00",Individual - NEC,,
01/01/2023,REIGATE FIRE STATION,Wilks Head & Eve,Rates,"19,733.00",Individual - NEC,,
01/01/2023,GUILDFORD AEI,Wilks Head & Eve,Rates,"2,539.00",Individual - NEC,,
01/01/2023,FARNHAM AEI WEST ST,Wilks Head & Eve,Rates,"1,601.00",Individual - NEC,,
01/01/2023,14 THE PINES,Wilks Head & Eve,Rates,"3,413.00",Individual - NEC,,
01/01/2023,WITLEY DEPOT,Wilks Head & Eve,Rates,"2,688.00",Individual - NEC,,
01/01/2023,BYFLEET LIB,Wilks Head & Eve,Rates,686.00,Individual - NEC,,
01/01/2023,BRAMLEY LIB,Wilks Head & Eve,Rates,847.00,Individual - NEC,,
01/01/2023,PUBLIC LIB OFFS WEYB,Wilks Head & Eve,Rates,603.00,Individual - NEC,,
01/01/2023,BARNETT WOOD INF,Wilks Head & Eve,Rates,"1,102.00",Individual - NEC,,
01/01/2023,HASLEMERE FIRE STN,Wilks Head & Eve,Rates,"1,819.00",Individual - NEC,,
01/01/2023,STAINES LIB,Wilks Head & Eve,Rates,266.00,Individual - NEC,,
01/01/2023,ST JAMES CEP ELSTEAD,Wilks Head & Eve,Rates,448.00,Individual - NEC,,
01/01/2023,THE MANSION L'HEAD,Wilks Head & Eve,Rates,"1,788.00",Individual - NEC,,
01/01/2023,TOWN FARM PRY,Wilks Head & Eve,Rates,764.00,Individual - NEC,,
01/01/2023,ADDLESTONE LIB (NEW),Wilks Head & Eve,Rates,"1,424.00",Individual - NEC,,
01/01/2023,FELBRIDGE PRY,Wilks Head & Eve,Rates,"2,517.00",Individual - NEC,,
01/01/2023,BANSTEAD LIB,Wilks Head & Eve,Rates,"2,901.00",Individual - NEC,,
01/01/2023,MEADOWCROFT CI,Wilks Head & Eve,Rates,603.00,Individual - NEC,,
01/01/2023,TATTENHAM LIB,Wilks Head & Eve,Rates,520.00,Individual - NEC,,
01/01/2023,SHEPPERTON YOUTH CTR,Wilks Head & Eve,Rates,337.00,Individual - NEC,,
01/01/2023,WALTON-ON-T LIB(NEW),Wilks Head & Eve,Rates,"4,181.00",Individual - NEC,,
01/01/2023,REDHILL LIB (NEW),Wilks Head & Eve,Rates,"4,693.00",Individual - NEC,,
01/01/2023,HERSHAM LIB,Wilks Head & Eve,Rates,572.00,Individual - NEC,,
01/01/2023,RENTWOOD,Wilks Head & Eve,Rates,314.00,Individual - NEC,,
01/01/2023,ST ANDREWS CATH LHD,Wilks Head & Eve,Rates,"1,536.00",Individual - NEC,,
01/01/2023,FORDBRIDGE FIRE STN,Wilks Head & Eve,Rates,"6,656.00",Individual - NEC,,
01/01/2023,GODALMING FIRE STN,Wilks Head & Eve,Rates,686.00,Individual - NEC,,
01/01/2023,ST JAMES CEP WEYB,Wilks Head & Eve,Rates,"3,366.00",Individual - NEC,,
01/01/2023,PAINSHILL FIRE STN,Wilks Head & Eve,Rates,"1,601.00",Individual - NEC,,
01/01/2023,OAKLANDS BALFOUR AVE,Woking Borough Council,Rates,266.00,Grants-Member Allocs,,
03/01/2023,PUPIL PREMIUM LAC,Acorn Consultancy,Local Authorities,390.00,SEND Agncy Placement,,
03/01/2023,Insurance,Ageas Insurance Ltd,Insurances,"3,008.50",Insurance Services,,
03/01/2023,LD-AUT CNTR TM CARE,Alabare Christian Care & Support,Supported Living,"2,376.00",Supp Living - MH,,
03/01/2023,LD-AUT CNTR TM CARE,Alabare Christian Care & Support,Supported Living,616.00,Supp Living - MH,,
03/01/2023,SE AREA SEN MGT,Redacted Personal Data,Compensation and Ex-Gratia,822.28,Invoicing Plan Req.,,
03/01/2023,WAVERLEY CARE OP,Allied Healthcare,Home Base Care,365.26,Residential - LD,,
03/01/2023,SPELTHORNE CARE OP,Allium Homecare,Home Base Care,889.00,Residential - OP,,
03/01/2023,SPELTHORNE CARE OP,Allium Homecare,Home Base Care,889.00,Residential - OP,,
03/01/2023,AREA CARE VOUCHERS,Allpay Ltd,Third Party Payments-Private Individuals,"7,548.75",Misc One-off,,
03/01/2023,RUNNYMEDE CARE OP,Alpenbest Ltd,Home Base Care,341.04,Dom Care - Adults,,
03/01/2023,RUNNYMEDE CARE OP,Alpenbest Ltd,Home Base Care,341.04,Dom Care - Adults,,
03/01/2023,GUILDFORD LIB,Amalgamated Lifts Ltd,Corporate Responsive Maintenance,252.00,"Comm, Res & Inv Prop",,
03/01/2023,DORKING LIB (NEW),Amalgamated Lifts Ltd,Corporate Responsive Maintenance,642.00,"Comm, Res & Inv Prop",,
03/01/2023,QUADRANT CT WOKING,Amalgamated Lifts Ltd,Corporate Responsive Maintenance,663.00,"Comm, Res & Inv Prop",,
03/01/2023,SHOTTERMILL JUN SCH,Amalgamated Lifts Ltd,Buyback Works Responsive,"3,758.64","Comm, Res & Inv Prop",,
03/01/2023,WOKING CORONERS CT,Amalgamated Lifts Ltd,Corporate Responsive Maintenance,359.52,"Comm, Res & Inv Prop",,
03/01/2023,SPELTHORNE CARE OP,Amber Home Carers Ltd,Home Base Care,533.60,Residential - OP,,
03/01/2023,SPELTHORNE CARE OP,Amber Home Carers Ltd,Home Base Care,533.60,Residential - OP,,
03/01/2023,PUPIL PREMIUM LAC,Ambergate Sports College (CIT),Local Authorities,"1,280.00",Edu Non-SEN Support,,
03/01/2023,PUPIL PREMIUM LAC,Amery Hill School,Local Authorities,500.00,Schools,,
03/01/2023,PUPIL PREMIUM LAC,Anstey Junior School,Local Authorities,720.00,Grants-Member Allocs,,
03/01/2023,PUPIL PREMIUM LAC,Balcombe C of E Primary School,Local Authorities,600.00,Schools,,
03/01/2023,PUPIL PREMIUM LAC,Balfour Junior Academy,Local Authorities,495.00,Edu Non-SEN Support,,
03/01/2023,PUPIL PREMIUM LAC,Beacon Multi Academy Trust Ltd,Local Authorities,528.00,Edu Non-SEN Support,,
03/01/2023,LD-AUT CNTR TM CARE,Bellever Residential Home,Supported Living,"4,798.64",Dom Care - Adults,,
03/01/2023,EIF 3 & 4 YR OLD,Bletchingley Village Primary School,Third Party Payments-Other Agencies,"1,000.00",Schools,,
03/01/2023,PUPIL PREMIUM LAC,Bootham School,Local Authorities,600.00,Schools,,
03/01/2023,PUPIL PREMIUM LAC,Bootham School,Local Authorities,600.00,Schools,,
03/01/2023,PUPIL PREMIUM LAC,Bower Grove School,Local Authorities,600.00,Edu Non-SEN Support,,
03/01/2023,PUPIL PREMIUM LAC,Bower Grove School,Local Authorities,600.00,Edu Non-SEN Support,,
03/01/2023,PUPIL PREMIUM LAC,Bramley Oak Academy,payments to other SCC maintained schools,"1,800.00",Schools,,
03/01/2023,PUPIL PREMIUM LAC,Brantridge School,Local Authorities,819.00,SEND Agncy Placement,,
03/01/2023,PUPIL PREMIUM LAC,Broadwater School,payments to other SCC maintained schools,585.00,Schools,,
03/01/2023,PUPIL PREMIUM LAC,Broadwater School,payments to other SCC maintained schools,"1,200.00",Schools,,
03/01/2023,EIF 3 & 4 YR OLD,Brockham Green Day Nursery,Third Party Payments-Other Agencies,250.00,Nurseries,,
03/01/2023,"Comm, Res & Inv Prop",BTU Installation & Maintenance Ltd,Corporate Responsive Maintenance,"4,282.69","Comm, Res & Inv Prop",,
03/01/2023,HEATHSIDE,BTU Installation & Maintenance Ltd,Corporate Responsive Maintenance,500.72,"Comm, Res & Inv Prop",,
03/01/2023,WOKING FIRE STN NEW,BTU Installation & Maintenance Ltd,Corporate Responsive Maintenance,"1,241.75","Comm, Res & Inv Prop",,
03/01/2023,CAMBERLEY LIB,BTU Installation & Maintenance Ltd,Corporate Responsive Maintenance,"7,201.50","Comm, Res & Inv Prop",,
03/01/2023,BURPHAM PRY,BTU Installation & Maintenance Ltd,Education Responsive Maintenance,"17,228.38","Comm, Res & Inv Prop",,
03/01/2023,ADDLESTONE YOUTH CTR,BTU Installation & Maintenance Ltd,Corporate Responsive Maintenance,575.02,"Comm, Res & Inv Prop",,
03/01/2023,GRANGE CI SCH,BTU Installation & Maintenance Ltd,Buyback Works Responsive,387.14,"Comm, Res & Inv Prop",,
03/01/2023,TILLINGBOURNE JUNSCH,BTU Installation & Maintenance Ltd,Buyback Works Responsive,580.85,"Comm, Res & Inv Prop",,
03/01/2023,QUADRANT CT WOKING,BTU Installation & Maintenance Ltd,Term Contract Inspections,"3,821.12","Comm, Res & Inv Prop",,
03/01/2023,CHERTSEY LIB,BTU Installation & Maintenance Ltd,Corporate Responsive Maintenance,452.18,"Comm, Res & Inv Prop",,
03/01/2023,WOODLANDS HOUSE,BTU Installation & Maintenance Ltd,Corporate Responsive Maintenance,526.78,"Comm, Res & Inv Prop",,
03/01/2023,MALLOW CS DMHS 25-30,BTU Installation & Maintenance Ltd,Corporate Responsive Maintenance,"1,362.34","Comm, Res & Inv Prop",,
03/01/2023,MANORCROFT PRY SCH,BTU Installation & Maintenance Ltd,Buyback Works Responsive,649.76,"Comm, Res & Inv Prop",,
03/01/2023,MEADOWSIDE,BTU Installation & Maintenance Ltd,Corporate Responsive Maintenance,661.09,"Comm, Res & Inv Prop",,
03/01/2023,PUPIL PREMIUM LAC,Burnley High School,Local Authorities,525.00,Edu Non-SEN Support,,
03/01/2023,SW AGENCY PLACE-ED,Burstow Park School Ltd,Agency Placement Expenditure,"17,500.00",SEND Agncy Placement,,
03/01/2023,SE AGENCY PLACE-ED,Burstow Park School Ltd,Agency Placement Expenditure,"17,500.00",SEND Agncy Placement,,
03/01/2023,NW AGENCY PLACE-ED,Burstow Park School Ltd,Agency Placement Expenditure,"17,500.00",SEND Agncy Placement,,
03/01/2023,SE AGENCY PLACE-ED,Burstow Park School Ltd,Agency Placement Expenditure,"17,334.00",SEND Agncy Placement,,
03/01/2023,SE AGENCY PLACE-ED,Burstow Park School Ltd,Agency Placement Expenditure,"17,500.00",SEND Agncy Placement,,
03/01/2023,NE AGENCY PLACE-ED,Burstow Park School Ltd,Agency Placement Expenditure,"17,500.00",SEND Agncy Placement,,
03/01/2023,SE AGENCY PLACE-ED,Burstow Park School Ltd,Agency Placement Expenditure,"17,500.00",SEND Agncy Placement,,
03/01/2023,PUPIL PREMIUM LAC,Busbridge Infant School,payments to other SCC maintained schools,600.00,Schools,,
03/01/2023,LD-AUT CNTR TM CARE,Camberley Taxis,Non-Staff Related Transport Costs,"2,028.00",Multi-purpose Veh,,
03/01/2023,LD-AUT CNTR TM CARE,Camberley Taxis,Non-Staff Related Transport Costs,"2,436.00",Multi-purpose Veh,,
03/01/2023,GUILDFORD CARE OP,Caremark (Guildford & Woking),Home Base Care,275.80,Dom Care - Adults,,
03/01/2023,GUILDFORD CARE PD,Caremark (Guildford & Woking),Home Base Care,466.20,Dom Care - Adults,,
03/01/2023,GUILDFORD CARE OP,Caremark (Guildford & Woking),Home Base Care,526.54,Dom Care - Adults,,
03/01/2023,GUILDFORD CARE OP,Caremark (Guildford & Woking),Home Base Care,321.72,Dom Care - Adults,,
03/01/2023,GUILDFORD CARE OP,Caremark (Guildford & Woking),Home Base Care,432.92,Dom Care - Adults,,
03/01/2023,GUILDFORD CARE OP,Caremark (Guildford & Woking),Home Base Care,915.78,Dom Care - Adults,,
03/01/2023,GUILDFORD CARE OP,Caremark (Guildford & Woking),Home Base Care,582.76,Dom Care - Adults,,
03/01/2023,GUILDFORD CARE OP,Caremark (Guildford & Woking),Home Base Care,"1,370.14",Dom Care - Adults,,
03/01/2023,GUILDFORD CARE OP,Caremark (Guildford & Woking),Home Base Care,695.18,Dom Care - Adults,,
03/01/2023,GUILDFORD CARE OP,Caremark (Guildford & Woking),Home Base Care,490.28,Dom Care - Adults,,
03/01/2023,RUNNYMEDE CARE OP,Caremark(Runnymede & Spelthorne),Home Base Care,660.68,Dom Care - Adults,,
03/01/2023,PUPIL PREMIUM LAC,Carwarden House Community School,payments to other SCC maintained schools,580.00,Schools,,
03/01/2023,PLD TRANSITION,Cathies Cars,Day Care Cases,480.00,Asylum,,
03/01/2023,PUPIL PREMIUM LAC,Chauncy School,Local Authorities,500.00,Edu Non-SEN Support,,
03/01/2023,PUPIL PREMIUM LAC,Cherry Tree Learning Services Ltd,Local Authorities,600.00,SEND Agncy Placement,,
03/01/2023,PUPIL PREMIUM LAC,Chingford CofE Primary School,Local Authorities,672.00,Grants-Member Allocs,,
03/01/2023,HQ PYMNT OF INS CLMS,Claims Management - OTV BACS,Ins Claims Other Insured Paid,360.00,Claims Management - OTV BACS,,
03/01/2023,HQ PYMNT OF INS CLMS,Claims Management - OTV BACS,Ins Claims Other Insured Paid,383.15,Claims Management - OTV BACS,,
03/01/2023,SEND PRINCIPAL PRACT,Redacted Personal Data,Compensation and Ex-Gratia,"2,310.00",Childrens Indiv Tran,,
03/01/2023,PUPIL PREMIUM LAC,Cobham Free School,payments to other SCC maintained schools,280.00,Grants-Member Allocs,,
03/01/2023,PUPIL PREMIUM LAC,Cobham Free School,payments to other SCC maintained schools,504.00,Grants-Member Allocs,,
03/01/2023,PUPIL PREMIUM LAC,Coleg Cymunedol Y Dderwen,Local Authorities,725.00,Edu Non-SEN Support,,
03/01/2023,PUPIL PREMIUM LAC,Collingwood College,payments to other SCC maintained schools,"2,080.00",Schools,,
03/01/2023,PUPIL PREMIUM LAC,Collingwood College,payments to other SCC maintained schools,500.00,Schools,,
03/01/2023,PUPIL PREMIUM LAC,Collingwood College,payments to other SCC maintained schools,750.00,Schools,,
03/01/2023,PUPIL PREMIUM LAC,Collingwood Primary School,Local Authorities,"1,016.00",Schools,,
03/01/2023,PUPIL PREMIUM LAC,Coombe Wood School,Local Authorities,430.00,Edu Non-SEN Support,,
03/01/2023,NW AGENCY PLACE-ED,Cornfield School Ltd,Agency Placement Expenditure,"16,456.31",Fostering Placement,,
03/01/2023,NE AGENCY PLACE-ED,Cornfield School Ltd,Agency Placement Expenditure,"16,620.87",Fostering Placement,,
03/01/2023,NE AGENCY PLACE-ED,Cornfield School Ltd,Agency Placement Expenditure,"16,456.34",Fostering Placement,,
03/01/2023,APPLEWOOD SCHOOL,Creed-Miles & Co Ltd,Premises Insurance Property Works,886.80,General Build Maint,,
03/01/2023,NE AGENCY PLACE-ED,Cressey Oasis Education Ltd,Agency Placement Expenditure,"19,431.34",SEND Agncy Placement,,
03/01/2023,SE AGENCY PLACE-ED,Cressey Oasis Education Ltd,Agency Placement Expenditure,"19,227.00",SEND Agncy Placement,,
03/01/2023,SE AGENCY PLACE-ED,Cressey Oasis Education Ltd,Agency Placement Expenditure,"27,333.34",SEND Agncy Placement,,
03/01/2023,SE AGENCY PLACE-ED,Cressey Oasis Education Ltd,Agency Placement Expenditure,"22,203.68",SEND Agncy Placement,,
03/01/2023,SE AGENCY PLACE-ED,Cressey Oasis Education Ltd,Agency Placement Expenditure,"19,431.34",SEND Agncy Placement,,
03/01/2023,NE AGENCY PLACE-ED,Cressey Oasis Education Ltd,Agency Placement Expenditure,"21,446.68",SEND Agncy Placement,,
03/01/2023,SE AGENCY/SPI P16-ED,Cressey Oasis Education Ltd,Agency Placement Expenditure,"22,203.69",SEND Agncy Placement,,
03/01/2023,SE AGENCY PLACE-ED,Cressey Oasis Education Ltd,Agency Placement Expenditure,"19,722.67",SEND Agncy Placement,,
03/01/2023,NE AGENCY PLACE-ED,Cressey Oasis Education Ltd,Agency Placement Expenditure,"27,333.33",SEND Agncy Placement,,
03/01/2023,NE AGENCY PLACE-ED,Cressey Oasis Education Ltd,Agency Placement Expenditure,"22,204.00",SEND Agncy Placement,,
03/01/2023,NE AGENCY PLACE-ED,Cressey Oasis Education Ltd,Agency Placement Expenditure,"18,768.67",SEND Agncy Placement,,
03/01/2023,NE AGENCY PLACE-ED,Cressey Oasis Education Ltd,Agency Placement Expenditure,"19,431.34",SEND Agncy Placement,,
03/01/2023,NE AGENCY PLACE-ED,Cressey Oasis Education Ltd,Agency Placement Expenditure,"23,061.34",SEND Agncy Placement,,
03/01/2023,NW AGENCY PLACE-ED,Cressey Oasis Education Ltd,Agency Placement Expenditure,"22,536.67",SEND Agncy Placement,,
03/01/2023,SE AGENCY PLACE-ED,Cressey Oasis Education Ltd,Agency Placement Expenditure,"19,431.24",SEND Agncy Placement,,
03/01/2023,SE AGENCY PLACE-ED,Cressey Oasis Education Ltd,Agency Placement Expenditure,"19,722.67",SEND Agncy Placement,,
03/01/2023,SE AGENCY PLACE-ED,Cressey Oasis Education Ltd,Agency Placement Expenditure,"17,808.01",SEND Agncy Placement,,
03/01/2023,NE AGENCY PLACE-ED,Cressey Oasis Education Ltd,Agency Placement Expenditure,"22,082.00",SEND Agncy Placement,,
03/01/2023,SE AGENCY PLACE-ED,Cressey Oasis Education Ltd,Agency Placement Expenditure,"22,203.68",SEND Agncy Placement,,
03/01/2023,NE AGENCY PLACE-ED,Cressey Oasis Education Ltd,Agency Placement Expenditure,"18,297.00",SEND Agncy Placement,,
03/01/2023,SE AGENCY PLACE-ED,Cressey Oasis Education Ltd,Agency Placement Expenditure,"17,287.54",SEND Agncy Placement,,
03/01/2023,SE AGENCY PLACE-ED,Cressey Oasis Education Ltd,Agency Placement Expenditure,"22,692.01",SEND Agncy Placement,,
03/01/2023,NE AGENCY PLACE-ED,Cressey Oasis Education Ltd,Agency Placement Expenditure,"19,722.67",SEND Agncy Placement,,
03/01/2023,SE AGENCY PLACE-ED,Cressey Oasis Education Ltd,Agency Placement Expenditure,"21,447.01",SEND Agncy Placement,,
03/01/2023,NE AGENCY PLACE-ED,Cressey Oasis Education Ltd,Agency Placement Expenditure,"18,943.00",SEND Agncy Placement,,
03/01/2023,NE AGENCY PLACE-ED,Cressey Oasis Education Ltd,Agency Placement Expenditure,"22,203.68",SEND Agncy Placement,,
03/01/2023,SE AGENCY PLACE-ED,Cressey Oasis Education Ltd,Agency Placement Expenditure,"20,497.00",SEND Agncy Placement,,
03/01/2023,LD-AUT CNTR TM CARE,Crowsmill Craft Centre C.I.C,Day Care,360.00,Residential - OP,,
03/01/2023,EIF 3 & 4 YR OLD,Daisychain Pre School,Third Party Payments-Other Agencies,"1,000.00",Nursery,,
03/01/2023,EIF 3 & 4 YR OLD,Daisychain Pre School,Third Party Payments-Other Agencies,"1,000.00",Nursery,,
03/01/2023,EIF 3 & 4 YR OLD,Daisychain Pre School,Third Party Payments-Other Agencies,590.00,Nursery,,
03/01/2023,PUPIL PREMIUM LAC,Dame Janet Primary Academy,Local Authorities,"1,320.00",Schools,,
03/01/2023,GUILDFORD CARE PD,DBAM Solutions Ltd,Home Base Care,603.40,Other Care,,
03/01/2023,WAVERLEY CARE OP,DBAM Solutions Ltd,Home Base Care,"1,822.80",Other Care,,
03/01/2023,WAVERLEY CARE OP,DBAM Solutions Ltd,Home Base Care,"1,391.60",Other Care,,
03/01/2023,WAVERLEY CARE OP,DBAM Solutions Ltd,Home Base Care,309.00,Other Care,,
03/01/2023,WAVERLEY CARE OP,DBAM Solutions Ltd,Home Base Care,712.60,Other Care,,
03/01/2023,WAVERLEY CARE OP,DBAM Solutions Ltd,Home Base Care,"1,968.40",Other Care,,
03/01/2023,WAVERLEY CARE PD,DBAM Solutions Ltd,Home Base Care,735.00,Other Care,,
03/01/2023,GUILDFORD CARE OP,DBAM Solutions Ltd,Home Base Care,953.40,Other Care,,
03/01/2023,GUILDFORD CMHRS CARE,DBAM Solutions Ltd,Home Base Care,283.60,Other Care,,
03/01/2023,WAVERLEY CARE PD,DBAM Solutions Ltd,Home Base Care,295.00,Other Care,,
03/01/2023,WAVERLEY CARE OP,DBAM Solutions Ltd,Home Base Care,"1,407.00",Other Care,,
03/01/2023,WAVERLEY CARE OP,DBAM Solutions Ltd,Home Base Care,"2,302.80",Other Care,,
03/01/2023,WAVERLEY CARE OP,DBAM Solutions Ltd,Home Base Care,588.00,Other Care,,
03/01/2023,WAVERLEY CARE OP,DBAM Solutions Ltd,Home Base Care,"3,318.00",Other Care,,
03/01/2023,GUILDFORD CARE PD,DBAM Solutions Ltd,Home Base Care,534.80,Other Care,,
03/01/2023,GUILDFORD CARE OP,DBAM Solutions Ltd,Home Base Care,284.20,Other Care,,
03/01/2023,WAVERLEY CARE OP,DBAM Solutions Ltd,Home Base Care,"1,951.60",Other Care,,
03/01/2023,GUILDFORD CARE OP,DBAM Solutions Ltd,Home Base Care,815.50,Other Care,,
03/01/2023,WAVERLEY CARE PD,DBAM Solutions Ltd,Home Base Care,803.20,Other Care,,
03/01/2023,WAVERLEY CARE OP,DBAM Solutions Ltd,Home Base Care,376.60,Other Care,,
03/01/2023,PUPIL PREMIUM LAC,De Stafford School,payments to other SCC maintained schools,820.00,Schools,,
03/01/2023,PUPIL PREMIUM LAC,De Stafford School,payments to other SCC maintained schools,600.00,Schools,,
03/01/2023,PUPIL PREMIUM LAC,De Stafford School,payments to other SCC maintained schools,840.00,Schools,,
03/01/2023,Central Government,Department for Work & Pensions,Pensions,"4,085.00",Central Government,,
03/01/2023,PUPIL PREMIUM LAC,Downview Primary School,Local Authorities,408.00,Schools,,
03/01/2023,PUPIL PREMIUM LAC,Downview Primary School,Local Authorities,429.00,Schools,,
03/01/2023,General Support,DWF Law LLP,General Support,"9,000.00",General Support,,
03/01/2023,PUPIL PREMIUM LAC,Echelford Academy,payments to other SCC maintained schools,606.00,Schools,,
03/01/2023,PUPIL PREMIUM LAC,Edenbridge Primary School,Local Authorities,600.00,Grants-Member Allocs,,
03/01/2023,PUPIL PREMIUM LAC,Edenbridge Primary School,Local Authorities,600.00,Grants-Member Allocs,,
03/01/2023,PUPIL PREMIUM LAC,Edenbridge Primary School,Local Authorities,600.00,Grants-Member Allocs,,
03/01/2023,NW ALTERNATIVE SEN,Enable Education Consultancy Ltd,Agency Placement Expenditure,"1,200.00",SEN Specialist Supp,,
03/01/2023,LD-AUT CNTR TM CARE,Enham Trust,Supported Living,"1,790.36",Residential - MH,,
03/01/2023,Transport,Enterprise Rent A Car,Insurance Services,"1,765.11",Insurance Services,,
03/01/2023,PUPIL PREMIUM LAC,Epsom & Ewell High School,payments to other SCC maintained schools,800.00,Staff Training,,
03/01/2023,LD-AUT CNTR TM CARE,Euro Taxis,Non-Staff Related Transport Costs,"1,686.12",Taxi Hire (SEN Only),,
03/01/2023,PUPIL PREMIUM LAC,Everychild Trust,payments to other SCC maintained schools,363.00,Educ Consultancy,,
03/01/2023,PUPIL PREMIUM LAC,Fairway Infant School,Local Authorities,600.00,Schools,,
03/01/2023,PUPIL PREMIUM LAC,Fawley Infant School,Local Authorities,584.00,Edu Non-SEN Support,,
03/01/2023,LD-AUT CNTR TM CARE,FitzRoy,Day Care,583.08,Residential - MH,,
03/01/2023,PUPIL PREMIUM LAC,Framfield CEP School,Local Authorities,746.00,Edu Non-SEN Support,,
03/01/2023,PUPIL PREMIUM LAC,Frimley COE Junior School,payments to other SCC maintained schools,420.00,Schools,,
03/01/2023,PUPIL PREMIUM LAC,Frogmore Community College,Local Authorities,350.00,Schools,,
03/01/2023,PUPIL PREMIUM LAC,Gable Hall School,Local Authorities,600.00,Edu Non-SEN Support,,
03/01/2023,MOLE VALLEY CARE PD,Geneva Road Ltd,Day Care,415.01,Day Care - PSD,,
03/01/2023,ELMBRIDGE CARE PD,Geneva Road Ltd,Day Care Cases,"1,377.84",Day Care - PSD,,
03/01/2023,ELMBRIDGE CARE PD,Geneva Road Ltd,Day Care Cases,"1,377.84",Day Care - PSD,,
03/01/2023,REIGATE & BD CARE PD,Geneva Road Ltd,Day Care,442.22,Day Care - PSD,,
03/01/2023,EPSOM & EWELL CARE P,Geneva Road Ltd,Day Care,869.40,Day Care - PSD,,
03/01/2023,PUPIL PREMIUM LAC,Giffards Primary School,Local Authorities,420.00,Grants-Member Allocs,,
03/01/2023,PUPIL PREMIUM LAC,Giffards Primary School,Local Authorities,600.00,Grants-Member Allocs,,
03/01/2023,ARBORICULTURE,Glendale Countryside Ltd,Treework,286.03,Green Works,,
03/01/2023,ARBORICULTURE,Glendale Countryside Ltd,Treework,"2,108.14",Green Works,,
03/01/2023,PUPIL PREMIUM LAC,Gordons School Academy Trust,payments to other SCC maintained schools,"1,800.00",Schools,,
03/01/2023,PUPIL PREMIUM LAC,Gossops Green Community Primary Sch,Local Authorities,546.00,Schools,,
03/01/2023,EPSOM & EWELL CARE O,Greenacres Residential Home,Respite Residential,"1,394.00",Residential - OP,,
03/01/2023,PUPIL PREMIUM LAC,Guildford County School,payments to other SCC maintained schools,"1,475.00",Schools,,
03/01/2023,LD-AUT CNTR TM CARE,Guiness Care & Support,Supported Living,"2,931.00",Residential - MH,,
03/01/2023,PUPIL PREMIUM LAC,Hale Primary School,payments to other SCC maintained schools,970.00,Schools,,
03/01/2023,PUPIL PREMIUM LAC,Harrow Way Community School,Local Authorities,400.00,Edu Non-SEN Support,,
03/01/2023,PUPIL PREMIUM LAC,Hart Plain Junior School,Local Authorities,500.00,Grants-Member Allocs,,
03/01/2023,ELMBRIDGE CARE OP,Hartwig Care Ltd,Home Base Care,437.36,Sup Living Children,,
03/01/2023,RUNNYMEDE CARE PD,Hartwig Care Ltd,Home Base Care,552.72,Sup Living Children,,
03/01/2023,RUNNYMEDE CARE OP,Hartwig Care Ltd,Home Base Care,785.40,Sup Living Children,,
03/01/2023,ELMBRIDGE CARE OP,Hartwig Care Ltd,Home Base Care,434.28,Sup Living Children,,
03/01/2023,RUNNYMEDE CARE OP,Hartwig Care Ltd,Home Base Care,"1,144.08",Sup Living Children,,
03/01/2023,RUNNYMEDE CARE OP,Hartwig Care Ltd,Home Base Care,814.76,Sup Living Children,,
03/01/2023,RUNNYMEDE CARE PD,Hartwig Care Ltd,Home Base Care,385.90,Sup Living Children,,
03/01/2023,RUNNYMEDE CARE OP,Hartwig Care Ltd,Home Base Care,368.48,Sup Living Children,,
03/01/2023,RUNNYMEDE CARE PD,Hartwig Care Ltd,Home Base Care,770.82,Sup Living Children,,
03/01/2023,RUNNYMEDE CARE OP,Hartwig Care Ltd,Home Base Care,"1,551.76",Sup Living Children,,
03/01/2023,LD-AUT CNTR TM CARE,Hartwig Care Ltd,Home Base Care,"1,130.96",Sup Living Children,,
03/01/2023,RUNNYMEDE CARE PD,Hartwig Care Ltd,Home Base Care,761.24,Sup Living Children,,
03/01/2023,RUNNYMEDE CARE OP,Hartwig Care Ltd,Home Base Care,"1,562.61",Sup Living Children,,
03/01/2023,ELMBRIDGE CARE OP,Hartwig Care Ltd,Home Base Care,879.34,Sup Living Children,,
03/01/2023,ELMBRIDGE CARE PD,Hartwig Care Ltd,Home Base Care,260.68,Sup Living Children,,
03/01/2023,ELMBRIDGE CARE OP,Hartwig Care Ltd,Home Base Care,"1,272.18",Sup Living Children,,
03/01/2023,PUPIL PREMIUM LAC,Hazelwick School,Local Authorities,300.00,SEN OLA,,
03/01/2023,PUPIL PREMIUM LAC,Highfield South Farnham Primary Sch,payments to other SCC maintained schools,598.00,Schools,,
03/01/2023,PUPIL PREMIUM LAC,Highworth Grammar School,Local Authorities,500.00,Edu Non-SEN Support,,
03/01/2023,PUPIL PREMIUM LAC,Hillcroft Primary School,payments to other SCC maintained schools,480.00,Schools,,
03/01/2023,PUPIL PREMIUM LAC,Hinchley Wood Primary School,payments to other SCC maintained schools,560.00,Schools,,
03/01/2023,PUPIL PREMIUM LAC,Hoe Valley School,Local Authorities,250.00,Pensions,,
03/01/2023,PUPIL PREMIUM LAC,Holy Trinity Cofe Primary School,Local Authorities,525.00,Edu Non-SEN Support,,
03/01/2023,PUPIL PREMIUM LAC,Imberhorne School,Local Authorities,508.00,Schools,,
03/01/2023,MAINTENANCE MANAGEME,Iprint Manage Ltd,Printing & Repro,"31,490.40",Printing & Repro,,
03/01/2023,SW AGENCY PLACE-ED,Jigsaw CABAS School,Agency Placement Expenditure,"18,602.05",SEN Specialist Supp,,
03/01/2023,SW AGENCY PLACE-ED,Jigsaw CABAS School,Agency Placement Expenditure,"18,602.05",SEN Specialist Supp,,
03/01/2023,SW AGENCY PLACE-ED,Jigsaw CABAS School,Agency Placement Expenditure,"19,059.88",SEN Specialist Supp,,
03/01/2023,SW AGENCY PLACE-ED,Jigsaw CABAS School,Agency Placement Expenditure,"18,602.05",SEN Specialist Supp,,
03/01/2023,SW AGENCY PLACE-ED,Jigsaw CABAS School,Agency Placement Expenditure,"18,602.05",SEN Specialist Supp,,
03/01/2023,SW AGENCY PLACE-ED,Jigsaw CABAS School,Agency Placement Expenditure,"18,602.05",SEN Specialist Supp,,
03/01/2023,NE AGENCY PLACE-ED,Jigsaw CABAS School,Agency Placement Expenditure,"17,380.93",SEN Specialist Supp,,
03/01/2023,SW AGENCY PLACE-ED,Jigsaw CABAS School,Agency Placement Expenditure,"19,843.67",SEN Specialist Supp,,
03/01/2023,SW AGENCY PLACE-ED,Jigsaw CABAS School,Agency Placement Expenditure,"19,838.88",SEN Specialist Supp,,
03/01/2023,SW AGENCY PLACE-ED,Jigsaw CABAS School,Agency Placement Expenditure,"18,967.30",SEN Specialist Supp,,
03/01/2023,NW AGENCY PLACE-ED,Jigsaw CABAS School,Agency Placement Expenditure,"19,689.23",SEN Specialist Supp,,
03/01/2023,SW AGENCY PLACE-ED,Jigsaw CABAS School,Agency Placement Expenditure,"20,695.79",SEN Specialist Supp,,
03/01/2023,NW AGENCY PLACE-ED,Jigsaw CABAS School,Agency Placement Expenditure,"18,602.05",SEN Specialist Supp,,
03/01/2023,SW AGENCY PLACE-ED,Jigsaw CABAS School,Agency Placement Expenditure,"19,283.68",SEN Specialist Supp,,
03/01/2023,NE AGENCY PLACE-ED,Jigsaw CABAS School,Agency Placement Expenditure,"17,379.90",SEN Specialist Supp,,
03/01/2023,SW AGENCY PLACE-ED,Jigsaw CABAS School,Agency Placement Expenditure,"22,063.82",SEN Specialist Supp,,
03/01/2023,SW AGENCY/SPI P16-ED,Jigsaw CABAS School,Agency Placement Expenditure,"30,709.36",SEN Specialist Supp,,
03/01/2023,SW AGENCY PLACE-ED,Jigsaw CABAS School,Agency Placement Expenditure,"23,736.96",SEN Specialist Supp,,
03/01/2023,SW AGENCY PLACE-ED,Jigsaw CABAS School,Agency Placement Expenditure,"19,040.41",SEN Specialist Supp,,
03/01/2023,NW AGENCY PLACE-ED,Jigsaw CABAS School,Agency Placement Expenditure,"23,102.48",SEN Specialist Supp,,
03/01/2023,SW AGENCY PLACE-ED,Jigsaw CABAS School,Agency Placement Expenditure,"17,658.02",SEN Specialist Supp,,
03/01/2023,SW AGENCY PLACE-ED,Jigsaw CABAS School,Agency Placement Expenditure,"18,602.05",SEN Specialist Supp,,
03/01/2023,NE AGENCY PLACE-ED,Jigsaw CABAS School,Agency Placement Expenditure,"18,602.05",SEN Specialist Supp,,
03/01/2023,SW AGENCY PLACE-ED,Jigsaw CABAS School,Agency Placement Expenditure,"20,327.46",SEN Specialist Supp,,
03/01/2023,SE AGENCY PLACE-ED,Jigsaw CABAS School,Agency Placement Expenditure,"19,694.35",SEN Specialist Supp,,
03/01/2023,SE AGENCY PLACE-ED,Jigsaw CABAS School,Agency Placement Expenditure,"19,186.30",SEN Specialist Supp,,
03/01/2023,NW AGENCY PLACE-ED,Jigsaw CABAS School,Agency Placement Expenditure,"17,379.90",SEN Specialist Supp,,
03/01/2023,NE AGENCY PLACE-ED,Jigsaw CABAS School,Agency Placement Expenditure,"20,935.97",SEN Specialist Supp,,
03/01/2023,NE AGENCY PLACE-ED,Jigsaw CABAS School,Agency Placement Expenditure,"17,574.65",SEN Specialist Supp,,
03/01/2023,NW AGENCY PLACE-ED,Jigsaw CABAS School,Agency Placement Expenditure,"18,829.61",SEN Specialist Supp,,
03/01/2023,SW AGENCY/SPI P16-ED,Jigsaw CABAS School,Agency Placement Expenditure,"27,389.33",SEN Specialist Supp,,
03/01/2023,SW AGENCY PLACE-ED,Jigsaw CABAS School,Agency Placement Expenditure,"20,856.36",SEN Specialist Supp,,
03/01/2023,SW AGENCY PLACE-ED,Jigsaw CABAS School,Agency Placement Expenditure,"18,602.05",SEN Specialist Supp,,
03/01/2023,NE AGENCY PLACE-ED,Jigsaw CABAS School,Agency Placement Expenditure,"19,522.16",SEN Specialist Supp,,
03/01/2023,SE AGENCY PLACE-ED,Jigsaw CABAS School,Agency Placement Expenditure,"22,256.53",SEN Specialist Supp,,
03/01/2023,SW AGENCY PLACE-ED,Jigsaw CABAS School,Agency Placement Expenditure,"18,967.30",SEN Specialist Supp,,
03/01/2023,NE AGENCY PLACE-ED,Jigsaw CABAS School,Agency Placement Expenditure,"18,012.84",SEN Specialist Supp,,
03/01/2023,NW AGENCY PLACE-ED,Jigsaw CABAS School,Agency Placement Expenditure,"18,829.61",SEN Specialist Supp,,
03/01/2023,SW AGENCY PLACE-ED,Jigsaw CABAS School,Agency Placement Expenditure,"18,894.18",SEN Specialist Supp,,
03/01/2023,SW AGENCY PLACE-ED,Jigsaw CABAS School,Agency Placement Expenditure,"20,181.23",SEN Specialist Supp,,
03/01/2023,SW AGENCY PLACE-ED,Jigsaw CABAS School,Agency Placement Expenditure,"23,489.78",SEN Specialist Supp,,
03/01/2023,SW AGENCY PLACE-ED,Jigsaw CABAS School,Agency Placement Expenditure,"19,694.35",SEN Specialist Supp,,
03/01/2023,NW AGENCY PLACE-ED,Jigsaw CABAS School,Agency Placement Expenditure,"19,113.19",SEN Specialist Supp,,
03/01/2023,NW AGENCY PLACE-ED,Jigsaw CABAS School,Agency Placement Expenditure,"23,029.71",SEN Specialist Supp,,
03/01/2023,SW AGENCY PLACE-ED,Jigsaw CABAS School,Agency Placement Expenditure,"20,390.00",SEN Specialist Supp,,
03/01/2023,SW AGENCY/SPI P16-ED,Jigsaw CABAS School,Agency Placement Expenditure,"19,662.58",SEN Specialist Supp,,
03/01/2023,SW AGENCY PLACE-ED,Jigsaw CABAS School,Agency Placement Expenditure,"19,040.41",SEN Specialist Supp,,
03/01/2023,NW AGENCY PLACE-ED,Jigsaw CABAS School,Agency Placement Expenditure,"18,796.80",SEN Specialist Supp,,
03/01/2023,NW AGENCY PLACE-ED,Jigsaw CABAS School,Agency Placement Expenditure,"20,406.40",SEN Specialist Supp,,
03/01/2023,NE AGENCY PLACE-ED,Jigsaw CABAS School,Agency Placement Expenditure,"19,863.49",SEN Specialist Supp,,
03/01/2023,SW AGENCY PLACE-ED,Jigsaw CABAS School,Agency Placement Expenditure,"18,013.01",SEN Specialist Supp,,
03/01/2023,SW AGENCY PLACE-ED,Jigsaw CABAS School,Agency Placement Expenditure,"18,148.33",SEN Specialist Supp,,
03/01/2023,SE AGENCY PLACE-ED,Jigsaw CABAS School,Agency Placement Expenditure,"18,602.05",SEN Specialist Supp,,
03/01/2023,SE AGENCY PLACE-ED,Jigsaw CABAS School,Agency Placement Expenditure,"20,522.22",SEN Specialist Supp,,
03/01/2023,SW AGENCY PLACE-ED,Jigsaw CABAS School,Agency Placement Expenditure,"18,967.30",SEN Specialist Supp,,
03/01/2023,SW AGENCY PLACE-ED,Jigsaw CABAS School,Agency Placement Expenditure,"18,967.30",SEN Specialist Supp,,
03/01/2023,NW AGENCY PLACE-ED,Jigsaw CABAS School,Agency Placement Expenditure,"19,694.35",SEN Specialist Supp,,
03/01/2023,SE AGENCY PLACE-ED,Jigsaw CABAS School,Agency Placement Expenditure,"18,602.05",SEN Specialist Supp,,
03/01/2023,SW AGENCY/SPI P16-ED,Jigsaw CABAS School,Agency Placement Expenditure,"25,330.15",SEN Specialist Supp,,
03/01/2023,PUPIL PREMIUM LAC,Jubilee High School,payments to other SCC maintained schools,600.00,Schools,,
03/01/2023,PUPIL PREMIUM LAC,Jubilee High School,payments to other SCC maintained schools,600.00,Schools,,
03/01/2023,PUPIL PREMIUM LAC,Jubilee High School,payments to other SCC maintained schools,600.00,Schools,,
03/01/2023,PUPIL PREMIUM LAC,Jubilee High School,payments to other SCC maintained schools,"1,200.00",Schools,,
03/01/2023,SURREY HILLS AONB,Redacted Personal Data,New GR/IR Account,274.39,Non-Staff Expenses,,
03/01/2023,SEN TRANSPORT,Redacted Personal Data,Non-Staff Related Transport Costs,336.00,Non-Staff Expenses,,
03/01/2023,SEN TRANSPORT,Redacted Personal Data,Non-Staff Related Transport Costs,336.00,Non-Staff Expenses,,
03/01/2023,SEN TRANSPORT,Redacted Personal Data,Non-Staff Related Transport Costs,336.00,Non-Staff Expenses,,
03/01/2023,SPELTHORNE CARE OP,Kettlewell House Rest Home,Nursing Respite,"1,378.29",Supp Living - MH,,
03/01/2023,SPELTHORNE CARE OP,Kettlewell House Rest Home,Nursing Respite,"1,378.28",Supp Living - MH,,
03/01/2023,FAIRMOUNT HOUSE,KEW (Electical Distributors) Ltd,Equipment,354.00,Comm Appliances,,
03/01/2023,SW UASC NRPF 18+ CRE,Redacted Personal Data,Furniture,408.00,Invoicing Plan Req.,,
03/01/2023,PUPIL PREMIUM LAC,Kings College for the Arts & Techno,payments to other SCC maintained schools,329.00,Schools,,
03/01/2023,PUPIL PREMIUM LAC,Kings College for the Arts & Techno,payments to other SCC maintained schools,406.00,Schools,,
03/01/2023,PUPIL PREMIUM LAC,Kingsdale Foundation School,Local Authorities,600.00,Schools,,
03/01/2023,LD-AUT CNTR TM CARE,Kingston Voluntary Action,Other Community Care,547.39,Web Design & Hosting,,
03/01/2023,LD-AUT CNTR TM CARE,Kingston Voluntary Action,Other Community Care,547.39,Web Design & Hosting,,
03/01/2023,LD-AUT CNTR TM CARE,L'Arche London,Supported Living,"2,969.44",Supp Living - LD,,
03/01/2023,LD-AUT CNTR TM CARE,L'Arche London,Day Care,502.56,Supp Living - LD,,
03/01/2023,SURREY HEATH CARE OP,Lavendar Lodge Nursing Home,Nursing,"1,069.67",Residential - LD,,
03/01/2023,PUPIL PREMIUM LAC,Lime Tree Primary,payments to other SCC maintained schools,432.00,Schools,,
03/01/2023,PUPIL PREMIUM LAC,Lime Tree Primary,payments to other SCC maintained schools,372.00,Schools,,
03/01/2023,PUPIL PREMIUM LAC,Lime Tree Primary,payments to other SCC maintained schools,336.00,Schools,,
03/01/2023,PUPIL PREMIUM LAC,Lime Tree Primary,payments to other SCC maintained schools,530.00,Schools,,
03/01/2023,WAVERLEY CARE PD,London Care Ltd,Home Base Care,"2,659.60",Residential - PSD,,
03/01/2023,WAVERLEY CARE OP,London Care Ltd,Home Base Care,391.20,Residential - PSD,,
03/01/2023,WAVERLEY CARE PD,London Care Ltd,Home Base Care,"1,686.22",Residential - PSD,,
03/01/2023,WAVERLEY CARE PD,London Care Ltd,Home Base Care,"1,549.71",Residential - PSD,,
03/01/2023,WAVERLEY CARE OP,London Care Ltd,Home Base Care,564.91,Residential - PSD,,
03/01/2023,WAVERLEY CARE PD,London Care Ltd,Home Base Care,"2,659.60",Residential - PSD,,
03/01/2023,WAVERLEY CARE OP,London Care Ltd,Home Base Care,"1,247.58",Residential - PSD,,
03/01/2023,WAVERLEY CARE OP,London Care Ltd,Home Base Care,944.74,Residential - PSD,,
03/01/2023,WAVERLEY CARE OP,London Care Ltd,Home Base Care,929.44,Residential - PSD,,
03/01/2023,WAVERLEY CARE PD,London Care Ltd,Home Base Care,"2,659.60",Residential - PSD,,
03/01/2023,WAVERLEY CARE PD,London Care Ltd,Home Base Care,"2,659.60",Residential - PSD,,
03/01/2023,WAVERLEY CARE OP,London Care Ltd,Home Base Care,413.10,Residential - PSD,,
03/01/2023,WAVERLEY CARE OP,London Care Ltd,Home Base Care,782.40,Residential - PSD,,
03/01/2023,WAVERLEY CARE OP,London Care Ltd,Home Base Care,644.44,Residential - PSD,,
03/01/2023,WAVERLEY CARE OP,London Care Ltd,Home Base Care,919.92,Residential - PSD,,
03/01/2023,WAVERLEY CARE OP,London Care Ltd,Home Base Care,782.40,Residential - PSD,,
03/01/2023,WAVERLEY CARE PD,London Care Ltd,Home Base Care,"1,078.68",Residential - PSD,,
03/01/2023,WAVERLEY CARE PD,London Care Ltd,Home Base Care,"1,636.58",Residential - PSD,,
03/01/2023,WAVERLEY CARE OP,London Care Ltd,Home Base Care,"1,643.04",Residential - PSD,,
03/01/2023,WAVERLEY CARE OP,London Care Ltd,Home Base Care,944.74,Residential - PSD,,
03/01/2023,WAVERLEY CARE OP,London Care Ltd,Home Base Care,428.40,Residential - PSD,,
03/01/2023,WAVERLEY CARE PD,London Care Ltd,Home Base Care,"2,622.48",Residential - PSD,,
03/01/2023,WAVERLEY CARE PD,London Care Ltd,Home Base Care,"1,667.66",Residential - PSD,,
03/01/2023,WAVERLEY CARE PD,London Care Ltd,Home Base Care,"2,659.60",Residential - PSD,,
03/01/2023,SPELTHORNE CARE PD,London Care Plc,Home Base Care,651.00,Dom Care - Adults,,
03/01/2023,SPELTHORNE CARE OP,London Care Plc,Home Base Care,596.54,Dom Care - Adults,,
03/01/2023,SPELTHORNE CARE OP,London Care Plc,Home Base Care,424.20,Dom Care - Adults,,
03/01/2023,SPELTHORNE CARE OP,London Care Plc,Home Base Care,424.20,Dom Care - Adults,,
03/01/2023,SPELTHORNE CARE OP,London Care Plc,Home Base Care,606.40,Dom Care - Adults,,
03/01/2023,SPELTHORNE CARE OP,London Care Plc,Home Base Care,"1,400.00",Dom Care - Adults,,
03/01/2023,GUILDFORD CARE OP,Longdene Homecare,Home Base Care,"1,609.72",Dom Care - Adults,,
03/01/2023,RUNNYMEDE CARE OP,Longdene Homecare,Home Base Care,804.86,Dom Care - Adults,,
03/01/2023,GUILDFORD CARE OP,Longdene Homecare,Home Base Care,397.60,Dom Care - Adults,,
03/01/2023,ELMBRIDGE CARE OP,Longdene Homecare,Home Base Care,850.50,Dom Care - Adults,,
03/01/2023,SURREY HEATH CARE PD,Longdene Homecare,Home Base Care,459.92,Dom Care - Adults,,
03/01/2023,RUNNYMEDE CARE OP,Longdene Homecare,Home Base Care,762.26,Dom Care - Adults,,
03/01/2023,SURREY HEATH CARE PD,Longdene Homecare,Home Base Care,398.98,Dom Care - Adults,,
03/01/2023,GUILDFORD CARE PD,Longdene Homecare,Home Base Care,405.50,Dom Care - Adults,,
03/01/2023,GUILDFORD CARE OP,Longdene Homecare,Home Base Care,"1,840.86",Dom Care - Adults,,
03/01/2023,GUILDFORD CARE PD,Longdene Homecare,Home Base Care,"1,590.40",Dom Care - Adults,,
03/01/2023,PUPIL PREMIUM LAC,Loseley Fields Primary School,payments to other SCC maintained schools,962.00,Schools,,
03/01/2023,PUPIL PREMIUM LAC,Manor Green School,Local Authorities,330.00,SEND Agncy Placement,,
03/01/2023,PUPIL PREMIUM LAC,Merstham Park School,payments to other SCC maintained schools,810.00,Schools,,
03/01/2023,SE ALTERNATIVE SEN,MindJam,Agency Placement Expenditure,336.00,SEN Specialist Supp,,
03/01/2023,EIF 3 & 4 YR OLD,Minus Five Pre School,Third Party Payments-Other Agencies,500.00,Schools,,
03/01/2023,PUPIL PREMIUM LAC,Montgomery Infant School and Nurser,Local Authorities,600.00,Edu Non-SEN Support,,
03/01/2023,PUPIL PREMIUM LAC,Montgomery Infant School and Nurser,Local Authorities,600.00,Edu Non-SEN Support,,
03/01/2023,SE AGENCY PLACE-ED,Moon Hall School,Agency Placement Expenditure,"8,846.00",Schools,,
03/01/2023,SW AGENCY PLACE-ED,Moon Hall School,Agency Placement Expenditure,"11,426.00",Schools,,
03/01/2023,SE AGENCY PLACE-ED,Moon Hall School,Agency Placement Expenditure,"8,846.00",Schools,,
03/01/2023,SE AGENCY PLACE-ED,Moon Hall School,Agency Placement Expenditure,"8,846.00",Schools,,
03/01/2023,NE AGENCY PLACE-ED,Moon Hall School,Agency Placement Expenditure,"8,295.00",Schools,,
03/01/2023,SE AGENCY PLACE-ED,Moon Hall School,Agency Placement Expenditure,"10,059.34",Schools,,
03/01/2023,SE AGENCY PLACE-ED,Moon Hall School,Agency Placement Expenditure,"11,246.00",Schools,,
03/01/2023,NE AGENCY PLACE-ED,Moon Hall School,Agency Placement Expenditure,"11,246.00",Schools,,
03/01/2023,NE AGENCY PLACE-ED,Moon Hall School,Agency Placement Expenditure,"11,346.00",Schools,,
03/01/2023,SE AGENCY PLACE-ED,Moon Hall School,Agency Placement Expenditure,"8,846.00",Schools,,
03/01/2023,SE AGENCY PLACE-ED,Moon Hall School,Agency Placement Expenditure,"10,346.00",Schools,,
03/01/2023,NW AGENCY PLACE-ED,Moon Hall School,Agency Placement Expenditure,"9,796.00",Schools,,
03/01/2023,SW AGENCY PLACE-ED,Moon Hall School,Agency Placement Expenditure,"12,596.00",Schools,,
03/01/2023,SE AGENCY PLACE-ED,Moon Hall School,Agency Placement Expenditure,"9,796.00",Schools,,
03/01/2023,NE AGENCY PLACE-ED,Moon Hall School,Agency Placement Expenditure,"11,126.00",Schools,,
03/01/2023,SW AGENCY PLACE-ED,Moon Hall School,Agency Placement Expenditure,"13,346.00",Schools,,
03/01/2023,SW AGENCY PLACE-ED,Moon Hall School,Agency Placement Expenditure,"11,426.00",Schools,,
03/01/2023,SW AGENCY PLACE-ED,Moon Hall School,Agency Placement Expenditure,"8,846.00",Schools,,
03/01/2023,NE AGENCY PLACE-ED,Moon Hall School,Agency Placement Expenditure,"11,046.00",Schools,,
03/01/2023,SE AGENCY PLACE-ED,Moon Hall School,Agency Placement Expenditure,"8,846.00",Schools,,
03/01/2023,SE AGENCY PLACE-ED,Moon Hall School,Agency Placement Expenditure,"9,476.00",Schools,,
03/01/2023,SE AGENCY PLACE-ED,Moon Hall School,Agency Placement Expenditure,"8,846.00",Schools,,
03/01/2023,NE AGENCY PLACE-ED,Moon Hall School,Agency Placement Expenditure,"11,929.34",Schools,,
03/01/2023,SE AGENCY PLACE-ED,Moon Hall School,Agency Placement Expenditure,"10,826.00",Schools,,
03/01/2023,SE AGENCY PLACE-ED,Moon Hall School,Agency Placement Expenditure,"8,979.34",Schools,,
03/01/2023,SW AGENCY PLACE-ED,Moon Hall School,Agency Placement Expenditure,"10,646.00",Schools,,
03/01/2023,SE AGENCY PLACE-ED,Moon Hall School,Agency Placement Expenditure,"10,096.00",Schools,,
03/01/2023,NW AGENCY PLACE-ED,Moon Hall School,Agency Placement Expenditure,"11,346.00",Schools,,
03/01/2023,SE AGENCY PLACE-ED,Moon Hall School,Agency Placement Expenditure,"8,846.00",Schools,,
03/01/2023,SW AGENCY PLACE-ED,Moon Hall School,Agency Placement Expenditure,"8,846.00",Schools,,
03/01/2023,SW AGENCY PLACE-ED,Moon Hall School,Agency Placement Expenditure,"10,071.00",Schools,,
03/01/2023,SE AGENCY PLACE-ED,Moon Hall School,Agency Placement Expenditure,"8,846.00",Schools,,
03/01/2023,NE AGENCY PLACE-ED,Moon Hall School,Agency Placement Expenditure,"10,096.00",Schools,,
03/01/2023,SE AGENCY PLACE-ED,Moon Hall School,Agency Placement Expenditure,"10,096.00",Schools,,
03/01/2023,SW AGENCY PLACE-ED,Moon Hall School,Agency Placement Expenditure,"11,346.00",Schools,,
03/01/2023,SE AGENCY PLACE-ED,Moon Hall School,Agency Placement Expenditure,"11,246.00",Schools,,
03/01/2023,SE AGENCY PLACE-ED,Moon Hall School,Agency Placement Expenditure,"10,096.00",Schools,,
03/01/2023,SE AGENCY PLACE-ED,Moon Hall School,Agency Placement Expenditure,"9,588.30",Schools,,
03/01/2023,SE AGENCY PLACE-ED,Moon Hall School,Agency Placement Expenditure,"10,826.00",Schools,,
03/01/2023,SE AGENCY PLACE-ED,Moon Hall School,Agency Placement Expenditure,"10,296.00",Schools,,
03/01/2023,SE AGENCY PLACE-ED,Moon Hall School,Agency Placement Expenditure,"10,176.00",Schools,,
03/01/2023,SE AGENCY PLACE-ED,Moon Hall School,Agency Placement Expenditure,"8,846.00",Schools,,
03/01/2023,NE AGENCY PLACE-ED,Moon Hall School,Agency Placement Expenditure,"8,846.00",Schools,,
03/01/2023,SE AGENCY PLACE-ED,Moon Hall School,Agency Placement Expenditure,"9,796.00",Schools,,
03/01/2023,SE AGENCY PLACE-ED,Moon Hall School,Agency Placement Expenditure,"9,796.00",Schools,,
03/01/2023,SE AGENCY PLACE-ED,Moon Hall School,Agency Placement Expenditure,"8,295.00",Schools,,
03/01/2023,SW AGENCY PLACE-ED,Moon Hall School,Agency Placement Expenditure,"11,346.00",Schools,,
03/01/2023,SE AGENCY PLACE-ED,Moon Hall School,Agency Placement Expenditure,"10,096.00",Schools,,
03/01/2023,SE AGENCY PLACE-ED,Moon Hall School,Agency Placement Expenditure,"10,059.34",Schools,,
03/01/2023,SE AGENCY PLACE-ED,Moon Hall School,Agency Placement Expenditure,"8,846.00",Schools,,
03/01/2023,NE AGENCY PLACE-ED,Moon Hall School,Agency Placement Expenditure,"11,426.00",Schools,,
03/01/2023,SE AGENCY PLACE-ED,Moon Hall School,Agency Placement Expenditure,"9,846.00",Schools,,
03/01/2023,SE AGENCY PLACE-ED,Moon Hall School,Agency Placement Expenditure,"10,096.00",Schools,,
03/01/2023,SE AGENCY PLACE-ED,Moon Hall School,Agency Placement Expenditure,"8,846.00",Schools,,
03/01/2023,SW AGENCY PLACE-ED,More House School,Agency Placement Expenditure,"6,295.00",SEN Specialist Supp,,
03/01/2023,SW AGENCY PLACE-ED,More House School,Agency Placement Expenditure,"6,093.00",SEN Specialist Supp,,
03/01/2023,SW AGENCY PLACE-ED,More House School,Agency Placement Expenditure,"6,912.00",SEN Specialist Supp,,
03/01/2023,NE AGENCY PLACE-ED,More House School,Agency Placement Expenditure,"6,912.00",SEN Specialist Supp,,
03/01/2023,SW AGENCY PLACE-ED,More House School,Agency Placement Expenditure,"6,295.00",SEN Specialist Supp,,
03/01/2023,SW AGENCY PLACE-ED,More House School,Agency Placement Expenditure,"6,912.00",SEN Specialist Supp,,
03/01/2023,SW AGENCY PLACE-ED,More House School,Agency Placement Expenditure,"6,912.00",SEN Specialist Supp,,
03/01/2023,NE AGENCY PLACE-ED,More House School,Agency Placement Expenditure,"3,046.50",SEN Specialist Supp,,
03/01/2023,SE AGENCY PLACE-ED,More House School,Agency Placement Expenditure,"6,912.00",SEN Specialist Supp,,
03/01/2023,SE AGENCY PLACE-ED,More House School,Agency Placement Expenditure,"6,912.00",SEN Specialist Supp,,
03/01/2023,SW AGENCY PLACE-ED,More House School,Agency Placement Expenditure,"6,912.00",SEN Specialist Supp,,
03/01/2023,SW AGENCY/SPI P16-ED,More House School,Agency Placement Expenditure,"3,023.00",SEN Specialist Supp,,
03/01/2023,SW AGENCY PLACE-ED,More House School,Agency Placement Expenditure,"6,093.00",SEN Specialist Supp,,
03/01/2023,NE AGENCY PLACE-ED,More House School,Agency Placement Expenditure,"6,912.00",SEN Specialist Supp,,
03/01/2023,NW AGENCY PLACE-ED,More House School,Agency Placement Expenditure,"6,912.00",SEN Specialist Supp,,
03/01/2023,SW AGENCY PLACE-ED,More House School,Agency Placement Expenditure,"6,295.00",SEN Specialist Supp,,
03/01/2023,SW AGENCY PLACE-ED,More House School,Agency Placement Expenditure,"6,912.00",SEN Specialist Supp,,
03/01/2023,SW AGENCY PLACE-ED,More House School,Agency Placement Expenditure,"6,295.00",SEN Specialist Supp,,
03/01/2023,SW AGENCY PLACE-ED,More House School,Agency Placement Expenditure,"6,912.00",SEN Specialist Supp,,
03/01/2023,SW AGENCY PLACE-ED,More House School,Agency Placement Expenditure,"6,912.00",SEN Specialist Supp,,
03/01/2023,SE AGENCY PLACE-ED,More House School,Agency Placement Expenditure,"6,295.00",SEN Specialist Supp,,
03/01/2023,SW AGENCY PLACE-ED,More House School,Agency Placement Expenditure,"6,912.00",SEN Specialist Supp,,
03/01/2023,NE AGENCY PLACE-ED,More House School,Agency Placement Expenditure,"6,912.00",SEN Specialist Supp,,
03/01/2023,SW AGENCY PLACE-ED,More House School,Agency Placement Expenditure,"6,912.00",SEN Specialist Supp,,
03/01/2023,SE AGENCY PLACE-ED,More House School,Agency Placement Expenditure,"6,912.00",SEN Specialist Supp,,
03/01/2023,NW AGENCY PLACE-ED,More House School,Agency Placement Expenditure,"6,295.00",SEN Specialist Supp,,
03/01/2023,NW AGENCY PLACE-ED,More House School,Agency Placement Expenditure,"6,912.00",SEN Specialist Supp,,
03/01/2023,SW AGENCY PLACE-ED,More House School,Agency Placement Expenditure,"6,912.00",SEN Specialist Supp,,
03/01/2023,SW AGENCY/SPI P16-ED,More House School,Agency Placement Expenditure,"3,023.00",SEN Specialist Supp,,
03/01/2023,SW AGENCY PLACE-ED,More House School,Agency Placement Expenditure,"6,295.00",SEN Specialist Supp,,
03/01/2023,SW AGENCY PLACE-ED,More House School,Agency Placement Expenditure,"6,912.00",SEN Specialist Supp,,
03/01/2023,NW AGENCY PLACE-ED,More House School,Agency Placement Expenditure,"3,147.50",SEN Specialist Supp,,
03/01/2023,SW AGENCY PLACE-ED,More House School,Agency Placement Expenditure,"6,912.00",SEN Specialist Supp,,
03/01/2023,SW AGENCY PLACE-ED,More House School,Agency Placement Expenditure,"6,295.00",SEN Specialist Supp,,
03/01/2023,SW AGENCY PLACE-ED,More House School,Agency Placement Expenditure,"6,912.00",SEN Specialist Supp,,
03/01/2023,SW AGENCY PLACE-ED,More House School,Agency Placement Expenditure,"6,912.00",SEN Specialist Supp,,
03/01/2023,NW AGENCY/SPI P16-ED,More House School,Agency Placement Expenditure,"6,295.00",SEN Specialist Supp,,
03/01/2023,SE AGENCY PLACE-ED,More House School,Agency Placement Expenditure,"6,912.00",SEN Specialist Supp,,
03/01/2023,NW AGENCY PLACE-ED,More House School,Agency Placement Expenditure,"6,912.00",SEN Specialist Supp,,
03/01/2023,SE AGENCY PLACE-ED,More House School,Agency Placement Expenditure,"6,912.00",SEN Specialist Supp,,
03/01/2023,SW AGENCY PLACE-ED,More House School,Agency Placement Expenditure,"6,912.00",SEN Specialist Supp,,
03/01/2023,NE AGENCY PLACE-ED,More House School,Agency Placement Expenditure,"3,456.00",SEN Specialist Supp,,
03/01/2023,SW AGENCY PLACE-ED,More House School,Agency Placement Expenditure,"6,295.00",SEN Specialist Supp,,
03/01/2023,SW AGENCY PLACE-ED,More House School,Agency Placement Expenditure,"6,912.00",SEN Specialist Supp,,
03/01/2023,SW AGENCY PLACE-ED,More House School,Agency Placement Expenditure,"6,912.00",SEN Specialist Supp,,
03/01/2023,NE AGENCY PLACE-ED,More House School,Agency Placement Expenditure,"6,912.00",SEN Specialist Supp,,
03/01/2023,NW AGENCY PLACE-ED,More House School,Agency Placement Expenditure,"6,912.00",SEN Specialist Supp,,
03/01/2023,NE AGENCY PLACE-ED,More House School,Agency Placement Expenditure,"6,912.00",SEN Specialist Supp,,
03/01/2023,SW AGENCY PLACE-ED,More House School,Agency Placement Expenditure,"6,912.00",SEN Specialist Supp,,
03/01/2023,NE AGENCY PLACE-ED,More House School,Agency Placement Expenditure,"6,912.00",SEN Specialist Supp,,
03/01/2023,SW AGENCY PLACE-ED,More House School,Agency Placement Expenditure,"6,912.00",SEN Specialist Supp,,
03/01/2023,SE AGENCY PLACE-ED,More House School,Agency Placement Expenditure,"6,912.00",SEN Specialist Supp,,
03/01/2023,SW AGENCY PLACE-ED,More House School,Agency Placement Expenditure,"6,295.00",SEN Specialist Supp,,
03/01/2023,SW AGENCY PLACE-ED,More House School,Agency Placement Expenditure,"6,912.00",SEN Specialist Supp,,
03/01/2023,SW AGENCY PLACE-ED,More House School,Agency Placement Expenditure,"6,912.00",SEN Specialist Supp,,
03/01/2023,SW AGENCY PLACE-ED,More House School,Agency Placement Expenditure,"6,912.00",SEN Specialist Supp,,
03/01/2023,SW AGENCY PLACE-ED,More House School,Agency Placement Expenditure,"5,477.00",SEN Specialist Supp,,
03/01/2023,SW AGENCY PLACE-ED,More House School,Agency Placement Expenditure,"6,912.00",SEN Specialist Supp,,
03/01/2023,SW AGENCY PLACE-ED,More House School,Agency Placement Expenditure,"3,147.50",SEN Specialist Supp,,
03/01/2023,SW AGENCY PLACE-ED,More House School,Agency Placement Expenditure,"6,912.00",SEN Specialist Supp,,
03/01/2023,SW AGENCY PLACE-ED,More House School,Agency Placement Expenditure,"6,912.00",SEN Specialist Supp,,
03/01/2023,SW AGENCY PLACE-ED,More House School,Agency Placement Expenditure,"6,912.00",SEN Specialist Supp,,
03/01/2023,NE AGENCY PLACE-ED,More House School,Agency Placement Expenditure,"6,295.00",SEN Specialist Supp,,
03/01/2023,SW AGENCY PLACE-ED,More House School,Agency Placement Expenditure,"6,912.00",SEN Specialist Supp,,
03/01/2023,SE AGENCY PLACE-ED,More House School,Agency Placement Expenditure,"6,912.00",SEN Specialist Supp,,
03/01/2023,SW AGENCY PLACE-ED,More House School,Agency Placement Expenditure,"6,912.00",SEN Specialist Supp,,
03/01/2023,SW AGENCY PLACE-ED,More House School,Agency Placement Expenditure,"6,912.00",SEN Specialist Supp,,
03/01/2023,NW AGENCY PLACE-ED,More House School,Agency Placement Expenditure,"6,295.00",SEN Specialist Supp,,
03/01/2023,SW AGENCY/SPI P16-ED,More House School,Agency Placement Expenditure,"3,023.00",SEN Specialist Supp,,
03/01/2023,SW AGENCY PLACE-ED,More House School,Agency Placement Expenditure,"6,912.00",SEN Specialist Supp,,
03/01/2023,NE AGENCY PLACE-ED,More House School,Agency Placement Expenditure,"6,093.00",SEN Specialist Supp,,
03/01/2023,NW AGENCY PLACE-ED,More House School,Agency Placement Expenditure,"6,912.00",SEN Specialist Supp,,
03/01/2023,NE AGENCY PLACE-ED,More House School,Agency Placement Expenditure,"6,295.00",SEN Specialist Supp,,
03/01/2023,SW AGENCY PLACE-ED,More House School,Agency Placement Expenditure,"6,295.00",SEN Specialist Supp,,
03/01/2023,SW AGENCY PLACE-ED,More House School,Agency Placement Expenditure,"6,912.00",SEN Specialist Supp,,
03/01/2023,SW AGENCY PLACE-ED,More House School,Agency Placement Expenditure,"6,912.00",SEN Specialist Supp,,
03/01/2023,SW AGENCY/SPI P16-ED,More House School,Agency Placement Expenditure,"3,023.00",SEN Specialist Supp,,
03/01/2023,SW AGENCY PLACE-ED,More House School,Agency Placement Expenditure,"6,912.00",SEN Specialist Supp,,
03/01/2023,SW AGENCY PLACE-ED,More House School,Agency Placement Expenditure,"6,912.00",SEN Specialist Supp,,
03/01/2023,NE AGENCY PLACE-ED,More House School,Agency Placement Expenditure,"6,912.00",SEN Specialist Supp,,
03/01/2023,SW AGENCY PLACE-ED,More House School,Agency Placement Expenditure,"6,912.00",SEN Specialist Supp,,
03/01/2023,SE AGENCY/SPI P16-ED,More House School,Agency Placement Expenditure,"6,043.00",SEN Specialist Supp,,
03/01/2023,SW AGENCY PLACE-ED,More House School,Agency Placement Expenditure,"6,912.00",SEN Specialist Supp,,
03/01/2023,SW AGENCY/SPI P16-ED,More House School,Agency Placement Expenditure,"3,023.00",SEN Specialist Supp,,
03/01/2023,SW AGENCY/SPI P16-ED,More House School,Agency Placement Expenditure,"3,023.00",SEN Specialist Supp,,
03/01/2023,SW AGENCY PLACE-ED,More House School,Agency Placement Expenditure,"6,912.00",SEN Specialist Supp,,
03/01/2023,SW AGENCY PLACE-ED,More House School,Agency Placement Expenditure,"6,912.00",SEN Specialist Supp,,
03/01/2023,SW AGENCY/SPI P16-ED,More House School,Agency Placement Expenditure,364.95,SEN Specialist Supp,,
03/01/2023,SW AGENCY/SPI P16-ED,More House School,Agency Placement Expenditure,"3,023.00",SEN Specialist Supp,,
03/01/2023,NW AGENCY PLACE-ED,More House School,Agency Placement Expenditure,"6,912.00",SEN Specialist Supp,,
03/01/2023,SW AGENCY PLACE-ED,More House School,Agency Placement Expenditure,"6,912.00",SEN Specialist Supp,,
03/01/2023,SE AGENCY PLACE-ED,More House School,Agency Placement Expenditure,"5,477.00",SEN Specialist Supp,,
03/01/2023,SW AGENCY PLACE-ED,More House School,Agency Placement Expenditure,"6,295.00",SEN Specialist Supp,,
03/01/2023,NW AGENCY PLACE-ED,More House School,Agency Placement Expenditure,"6,912.00",SEN Specialist Supp,,
03/01/2023,SE AGENCY PLACE-ED,More House School,Agency Placement Expenditure,"6,912.00",SEN Specialist Supp,,
03/01/2023,SW AGENCY PLACE-ED,More House School,Agency Placement Expenditure,"6,295.00",SEN Specialist Supp,,
03/01/2023,NE AGENCY/SPI P16-ED,More House School,Agency Placement Expenditure,"3,023.00",SEN Specialist Supp,,
03/01/2023,SW AGENCY PLACE-ED,More House School,Agency Placement Expenditure,"6,912.00",SEN Specialist Supp,,
03/01/2023,SW AGENCY PLACE-ED,More House School,Agency Placement Expenditure,"6,912.00",SEN Specialist Supp,,
03/01/2023,SE AGENCY PLACE-ED,More House School,Agency Placement Expenditure,"6,912.00",SEN Specialist Supp,,
03/01/2023,SW AGENCY PLACE-ED,More House School,Agency Placement Expenditure,"6,912.00",SEN Specialist Supp,,
03/01/2023,SW AGENCY PLACE-ED,More House School,Agency Placement Expenditure,"6,295.00",SEN Specialist Supp,,
03/01/2023,NE AGENCY PLACE-ED,More House School,Agency Placement Expenditure,"6,912.00",SEN Specialist Supp,,
03/01/2023,SW AGENCY PLACE-ED,More House School,Agency Placement Expenditure,"6,295.00",SEN Specialist Supp,,
03/01/2023,SW AGENCY PLACE-ED,More House School,Agency Placement Expenditure,"6,295.00",SEN Specialist Supp,,
03/01/2023,SW AGENCY PLACE-ED,More House School,Agency Placement Expenditure,"6,295.00",SEN Specialist Supp,,
03/01/2023,SW AGENCY PLACE-ED,More House School,Agency Placement Expenditure,"5,477.00",SEN Specialist Supp,,
03/01/2023,SW AGENCY PLACE-ED,More House School,Agency Placement Expenditure,"6,912.00",SEN Specialist Supp,,
03/01/2023,NE AGENCY PLACE-ED,More House School,Agency Placement Expenditure,"6,295.00",SEN Specialist Supp,,
03/01/2023,SW AGENCY/SPI P16-ED,More House School,Agency Placement Expenditure,"4,232.20",SEN Specialist Supp,,
03/01/2023,SW AGENCY PLACE-ED,More House School,Agency Placement Expenditure,"6,912.00",SEN Specialist Supp,,
03/01/2023,SW AGENCY/SPI P16-ED,More House School,Agency Placement Expenditure,"3,023.00",SEN Specialist Supp,,
03/01/2023,SW AGENCY PLACE-ED,More House School,Agency Placement Expenditure,"6,912.00",SEN Specialist Supp,,
03/01/2023,SE AGENCY/SPI P16-ED,More House School,Agency Placement Expenditure,"11,333.34",SEN Specialist Supp,,
03/01/2023,SW AGENCY/SPI P16-ED,More House School,Agency Placement Expenditure,"6,912.00",SEN Specialist Supp,,
03/01/2023,NE AGENCY PLACE-ED,More House School,Agency Placement Expenditure,"6,912.00",SEN Specialist Supp,,
03/01/2023,SW AGENCY PLACE-ED,More House School,Agency Placement Expenditure,"6,912.00",SEN Specialist Supp,,
03/01/2023,SW AGENCY PLACE-ED,More House School,Agency Placement Expenditure,"6,912.00",SEN Specialist Supp,,
03/01/2023,SW AGENCY PLACE-ED,More House School,Agency Placement Expenditure,"6,093.00",SEN Specialist Supp,,
03/01/2023,NW AGENCY PLACE-ED,More House School,Agency Placement Expenditure,"6,912.00",SEN Specialist Supp,,
03/01/2023,NE AGENCY PLACE-ED,More House School,Agency Placement Expenditure,"6,912.00",SEN Specialist Supp,,
03/01/2023,SW AGENCY PLACE-ED,More House School,Agency Placement Expenditure,"6,912.00",SEN Specialist Supp,,
03/01/2023,SW AGENCY PLACE-ED,More House School,Agency Placement Expenditure,"6,912.00",SEN Specialist Supp,,
03/01/2023,NW AGENCY PLACE-ED,More House School,Agency Placement Expenditure,"6,295.00",SEN Specialist Supp,,
03/01/2023,SW AGENCY PLACE-ED,More House School,Agency Placement Expenditure,"6,912.00",SEN Specialist Supp,,
03/01/2023,SW AGENCY PLACE-ED,More House School,Agency Placement Expenditure,"6,912.00",SEN Specialist Supp,,
03/01/2023,NW AGENCY PLACE-ED,More House School,Agency Placement Expenditure,"6,912.00",SEN Specialist Supp,,
03/01/2023,SW AGENCY PLACE-ED,More House School,Agency Placement Expenditure,"6,912.00",SEN Specialist Supp,,
03/01/2023,NE AGENCY PLACE-ED,More House School,Agency Placement Expenditure,"3,456.00",SEN Specialist Supp,,
03/01/2023,SW AGENCY PLACE-ED,More House School,Agency Placement Expenditure,"6,912.00",SEN Specialist Supp,,
03/01/2023,SW AGENCY/SPI P16-ED,More House School,Agency Placement Expenditure,287.40,SEN Specialist Supp,,
03/01/2023,SW AGENCY/SPI P16-ED,More House School,Agency Placement Expenditure,"3,023.00",SEN Specialist Supp,,
03/01/2023,NW AGENCY PLACE-ED,More House School,Agency Placement Expenditure,"5,477.00",SEN Specialist Supp,,
03/01/2023,NE AGENCY PLACE-ED,More House School,Agency Placement Expenditure,"6,912.00",SEN Specialist Supp,,
03/01/2023,SW AGENCY PLACE-ED,More House School,Agency Placement Expenditure,"6,912.00",SEN Specialist Supp,,
03/01/2023,NE AGENCY PLACE-ED,More House School,Agency Placement Expenditure,"6,912.00",SEN Specialist Supp,,
03/01/2023,SE AGENCY PLACE-ED,More House School,Agency Placement Expenditure,"6,912.00",SEN Specialist Supp,,
03/01/2023,SW AGENCY/SPI P16-ED,More House School,Agency Placement Expenditure,"3,023.00",SEN Specialist Supp,,
03/01/2023,SW AGENCY PLACE-ED,More House School,Agency Placement Expenditure,"6,295.00",SEN Specialist Supp,,
03/01/2023,SW AGENCY PLACE-ED,More House School,Agency Placement Expenditure,"6,912.00",SEN Specialist Supp,,
03/01/2023,SW AGENCY/SPI P16-ED,More House School,Agency Placement Expenditure,"3,023.00",SEN Specialist Supp,,
03/01/2023,SW AGENCY PLACE-ED,More House School,Agency Placement Expenditure,"6,912.00",SEN Specialist Supp,,
03/01/2023,SW AGENCY PLACE-ED,More House School,Agency Placement Expenditure,"6,912.00",SEN Specialist Supp,,
03/01/2023,SW AGENCY PLACE-ED,More House School,Agency Placement Expenditure,"6,912.00",SEN Specialist Supp,,
03/01/2023,SW AGENCY PLACE-ED,More House School,Agency Placement Expenditure,"5,477.00",SEN Specialist Supp,,
03/01/2023,NE AGENCY PLACE-ED,More House School,Agency Placement Expenditure,"6,912.00",SEN Specialist Supp,,
03/01/2023,SW AGENCY/SPI P16-ED,More House School,Agency Placement Expenditure,"3,023.00",SEN Specialist Supp,,
03/01/2023,NE AGENCY PLACE-ED,More House School,Agency Placement Expenditure,"6,912.00",SEN Specialist Supp,,
03/01/2023,SW AGENCY PLACE-ED,More House School,Agency Placement Expenditure,"6,295.00",SEN Specialist Supp,,
03/01/2023,SW AGENCY PLACE-ED,More House School,Agency Placement Expenditure,"6,093.00",SEN Specialist Supp,,
03/01/2023,NW AGENCY PLACE-ED,More House School,Agency Placement Expenditure,"6,912.00",SEN Specialist Supp,,
03/01/2023,SW AGENCY PLACE-ED,More House School,Agency Placement Expenditure,"6,295.00",SEN Specialist Supp,,
03/01/2023,SE AGENCY PLACE-ED,More House School,Agency Placement Expenditure,"3,456.00",SEN Specialist Supp,,
03/01/2023,PUPIL PREMIUM LAC,Muntham House School Ltd,Local Authorities,465.00,School Support Serv,,
03/01/2023,ASYLUM SEEKERS 18+,My Life Semi Independent Project Lt,Independent Living Placements,351.30,Sup Living Children,,
03/01/2023,ASYLUM SEEKERS 18+,My Life Semi Independent Project Lt,Independent Living Placements,599.36,Sup Living Children,,
03/01/2023,PUPIL PREMIUM LAC,Oasis Croydon Cluster,Local Authorities,442.00,SEN Specialist Supp,,
03/01/2023,NW ALT SEN POST 16,Redacted Personal Data,Agency Placement Expenditure,"6,404.00",SEN Specialist Supp,,
03/01/2023,LD-AUT CNTR TM CARE,Parkside Aldershot & District (Menc,Day Care,391.38,Dom Care - Adults,,
03/01/2023,LD-AUT CNTR TM CARE,Parkside Aldershot & District (Menc,Day Care,904.80,Dom Care - Adults,,
03/01/2023,LD-AUT CNTR TM CARE,Post 19,Non-Staff Related Transport Costs,360.08,Day Care - PSD,,
03/01/2023,LD-AUT CNTR TM CARE,Post 19,Day Care,"1,993.88",Day Care - PSD,,
03/01/2023,LD-AUT CNTR TM CARE,Post 19,Day Care,"1,301.16",Day Care - PSD,,
03/01/2023,LD-AUT CNTR TM CARE,Post 19,Day Care,862.68,Day Care - PSD,,
03/01/2023,LD-AUT CNTR TM CARE,Post 19,Day Care,"6,405.56",Day Care - PSD,,
03/01/2023,LD-AUT CNTR TM CARE,Post 19,Day Care,"4,317.04",Day Care - PSD,,
03/01/2023,LD-AUT CNTR TM CARE,Post 19,Day Care,"1,441.72",Day Care - PSD,,
03/01/2023,LD-AUT CNTR TM CARE,Post 19,Day Care,"1,684.76",Day Care - PSD,,
03/01/2023,LD-AUT CNTR TM CARE,Post 19,Day Care,749.84,Day Care - PSD,,
03/01/2023,LD-AUT CNTR TM CARE,Post 19,Day Care,"1,153.32",Day Care - PSD,,
03/01/2023,LD-AUT CNTR TM CARE,Post 19,Day Care,"2,916.76",Day Care - PSD,,
03/01/2023,LD-AUT CNTR TM CARE,Post 19,Day Care,535.64,Day Care - PSD,,
03/01/2023,LD-AUT CNTR TM CARE,Post 19,Day Care,"1,144.36",Day Care - PSD,,
03/01/2023,LD-AUT CNTR TM CARE,Post 19,Day Care,557.48,Day Care - PSD,,
03/01/2023,LD-AUT CNTR TM CARE,Post 19,Day Care,"1,203.72",Day Care - PSD,,
03/01/2023,LD-AUT CNTR TM CARE,Post 19,Day Care,906.64,Day Care - PSD,,
03/01/2023,LD-AUT CNTR TM CARE,Post 19,Day Care,"1,773.80",Day Care - PSD,,
03/01/2023,LD-AUT CNTR TM CARE,Post 19,Day Care,"3,125.64",Day Care - PSD,,
03/01/2023,LD-AUT CNTR TM CARE,Post 19,Day Care,803.32,Day Care - PSD,,
03/01/2023,LD-AUT CNTR TM CARE,Post 19,Supported Living,"2,145.92",Day Care - PSD,,
03/01/2023,LD-AUT CNTR TM CARE,Post 19,Day Care,"1,750.00",Day Care - PSD,,
03/01/2023,LD-AUT CNTR TM CARE,Post 19,Day Care,"1,366.96",Day Care - PSD,,
03/01/2023,LD-AUT CNTR TM CARE,Post 19,Day Care,642.60,Day Care - PSD,,
03/01/2023,LD-AUT CNTR TM CARE,Post 19,Other Community Care,"4,122.16",Day Care - PSD,,
03/01/2023,LD-AUT CNTR TM CARE,Post 19,Day Care,290.92,Day Care - PSD,,
03/01/2023,LD-AUT CNTR TM CARE,Post 19,Day Care,"1,531.32",Day Care - PSD,,
03/01/2023,LD-AUT CNTR TM CARE,Post 19,Day Care,"1,608.04",Day Care - PSD,,
03/01/2023,LD-AUT CNTR TM CARE,Post 19,Non-Staff Related Transport Costs,517.72,Day Care - PSD,,
03/01/2023,LD-AUT CNTR TM CARE,Post 19,Day Care,999.60,Day Care - PSD,,
03/01/2023,PUPIL PREMIUM LAC,Potters Gate COE Primary School,payments to other SCC maintained schools,642.00,Grants-Member Allocs,,
03/01/2023,PUPIL PREMIUM LAC,Potters Gate COE Primary School,payments to other SCC maintained schools,287.00,Grants-Member Allocs,,
03/01/2023,PUPIL PREMIUM LAC,Priory Primary School,Local Authorities,600.00,Grants-Member Allocs,,
03/01/2023,ELMBRIDGE CMHRS CARE,Queens House,Supported Living,"3,600.00",Residential - OP,,
03/01/2023,WOKING CARE PD,Redacted Personal Data,Direct Payments - Independent Sector,633.82,Invoicing Plan Req.,,
03/01/2023,NE S17 CARE,Redacted Personal Data,Children Act Sec 24 Payments,500.00,Invoicing Plan Req.,,
03/01/2023,PLD TRANSITION,Redacted Personal Data,Day Care,"2,274.48",Short break,,
03/01/2023,PLD TRANSITION,Redacted Personal Data,Day Care,"3,032.64",Short break,,
03/01/2023,PLD TRANSITION,Redacted Personal Data,Day Care,758.16,Short break,,
03/01/2023,LD-AUT CNTR TM CARE,Redacted Personal Data,Direct Payments - Independent Sector,"1,873.07",Adult direct payment,,
03/01/2023,PLD TRANSITION,Redacted Personal Data,Day Care,"1,326.78",Short break,,
03/01/2023,PLD TRANSITION,Redacted Personal Data,Day Care,"3,032.64",Short break,,
03/01/2023,RUNNYMEDE CARE OP,Redacted Personal Data,Direct Payments - Independent Sector,601.16,Individual - NEC,,
03/01/2023,SEN TRANSPORT,Redacted Personal Data,Non-Staff Related Transport Costs,270.00,LAC Leaving Care,,
03/01/2023,LD-AUT CNTR TM CARE,Redacted Personal Data,Direct Payments - Independent Sector,308.00,Adult direct payment,,
03/01/2023,WOKING CARE OP,Redacted Personal Data,Direct Payments - Independent Sector,"3,762.80",Individual - NEC,,
03/01/2023,SEN TRANSPORT,Redacted Personal Data,Non-Staff Related Transport Costs,656.11,Childrens Indiv Tran,,
03/01/2023,MOLE VALLEY CARE PD,Redacted Personal Data,Direct Payments - Independent Sector,"2,105.88",Adult direct payment,,
03/01/2023,NE FOSTERING CARE,Redacted Personal Data,Payments to Foster Parents,"1,170.40",CYP Indiv Foster Car,,
03/01/2023,SURREY HEATH CARE OP,Redacted Personal Data,Direct Payments - Independent Sector,"1,212.12",Adult direct payment,,
03/01/2023,PLD TRANSITION,Redacted Personal Data,Day Care,"2,274.48",Short break,,
03/01/2023,SW CARE - CARE LVRS,Redacted Personal Data,Third Party Payments-Other Agencies,493.65,Invoicing Plan Req.,,
03/01/2023,PLD TRANSITION,Redacted Personal Data,Day Care,"2,274.48",Short break,,
03/01/2023,PUPIL PREMIUM LAC,Reigate School,payments to other SCC maintained schools,304.00,Schools,,
03/01/2023,PUPIL PREMIUM LAC,Reigate School,payments to other SCC maintained schools,304.00,Schools,,
03/01/2023,PUPIL PREMIUM LAC,Reigate School,payments to other SCC maintained schools,558.00,Schools,,
03/01/2023,PUPIL PREMIUM LAC,Sackville School,Local Authorities,600.00,Schools,,
03/01/2023,PUPIL PREMIUM LAC,SCC Gosden House School,payments to other SCC maintained schools,"1,330.00",Schools,,
03/01/2023,PUPIL PREMIUM LAC,SCC Gosden House School,payments to other SCC maintained schools,600.00,Schools,,
03/01/2023,PUPIL PREMIUM LAC,SCC Gosden House School,payments to other SCC maintained schools,600.00,Schools,,
03/01/2023,PUPIL PREMIUM LAC,SCC Gosden House School,payments to other SCC maintained schools,600.00,Schools,,
03/01/2023,PUPIL PREMIUM LAC,SCC Gosden House School,payments to other SCC maintained schools,600.00,Schools,,
03/01/2023,PUPIL PREMIUM LAC,SCC Gosden House School,payments to other SCC maintained schools,600.00,Schools,,
03/01/2023,PUPIL PREMIUM LAC,Seaford Head School,Local Authorities,774.00,Grants-Member Allocs,,
03/01/2023,FMR MANOR SCHOOL,Secure Site UK Ltd,Security Alarm Maintenance,528.00,Security Equipment,,
03/01/2023,COLEBROOK DAY CENTRE,Secure Site UK Ltd,Security Alarm Maintenance,576.00,Security Equipment,,
03/01/2023,NW ALT SEN POST 16,Sense Learning,Agency Placement Expenditure,"19,139.22",SEND Agncy Placement,,
03/01/2023,SW UASC NRPF 18+ CRE,Redacted Personal Data,Furniture,300.00,Invoicing Plan Req.,,
03/01/2023,MOLE VALLEY CARE PD,SignLive Ltd,Other Community Care,289.00,Dom Care - Adults,,
03/01/2023,WAVERLEY CARE PD,SignLive Ltd,Other Community Care,289.00,Dom Care - Adults,,
03/01/2023,WOKING CARE OP,Skies Home Care Ltd,Home Base Care,294.00,Dom Care - Adults,,
03/01/2023,LD-AUT CNTR TM CARE,Skies Home Care Ltd,Home Base Care,529.00,Dom Care - Adults,,
03/01/2023,WOKING CARE PD,Skies Home Care Ltd,Home Base Care,259.60,Dom Care - Adults,,
03/01/2023,LD-AUT CNTR TM CARE,Skies Home Care Ltd,Home Base Care,"7,977.92",Dom Care - Adults,,
03/01/2023,WOKING CMHRS CARE,Skies Home Care Ltd,Home Base Care,345.60,Dom Care - Adults,,
03/01/2023,RUNNYMEDE CMHRS CARE,Skies Home Care Ltd,Home Base Care,307.20,Dom Care - Adults,,
03/01/2023,SURREY HEATH CARE OP,Skies Home Care Ltd,Home Base Care,771.40,Dom Care - Adults,,
03/01/2023,WOKING CARE OP,Skies Home Care Ltd,Home Base Care,268.80,Dom Care - Adults,,
03/01/2023,WOKING CARE PD,Skies Home Care Ltd,Home Base Care,588.00,Dom Care - Adults,,
03/01/2023,SURREY HEATH CARE OP,Skies Home Care Ltd,Home Base Care,780.00,Dom Care - Adults,,
03/01/2023,LD-AUT CNTR TM CARE,Skies Home Care Ltd,Home Base Care,"2,049.20",Dom Care - Adults,,
03/01/2023,LD-AUT CNTR TM CARE,Skies Home Care Ltd,Home Base Care,372.80,Dom Care - Adults,,
03/01/2023,LD-AUT CNTR TM CARE,Skies Home Care Ltd,Home Base Care,"2,265.60",Dom Care - Adults,,
03/01/2023,LD-AUT CNTR TM CARE,Skies Home Care Ltd,Home Base Care,"5,149.20",Dom Care - Adults,,
03/01/2023,SURREY HEATH CARE OP,Skies Home Care Ltd,Home Base Care,585.00,Dom Care - Adults,,
03/01/2023,WOKING CARE PD,Skies Home Care Ltd,Home Base Care,"1,542.80",Dom Care - Adults,,
03/01/2023,LD-AUT CNTR TM CARE,Skies Home Care Ltd,Home Base Care,372.80,Dom Care - Adults,,
03/01/2023,GUILDFORD CARE OP,Skies Home Care Ltd,Home Base Care,"3,158.40",Dom Care - Adults,,
03/01/2023,PUPIL PREMIUM LAC,South Camberley Primary & Nursery S,payments to other SCC maintained schools,540.00,Schools,,
03/01/2023,PUPIL PREMIUM LAC,St Gregorys Catholic Primary School,Local Authorities,600.00,Edu Non-SEN Support,,
03/01/2023,PUPIL PREMIUM LAC,St Gregorys Catholic School,Local Authorities,700.00,Edu Non-SEN Support,,
03/01/2023,PUPIL PREMIUM LAC,St Gregorys Catholic School,Local Authorities,500.00,Edu Non-SEN Support,,
03/01/2023,PUPIL PREMIUM LAC,St John The Baptist School,payments to other SCC maintained schools,600.00,Schools,,
03/01/2023,PUPIL PREMIUM LAC,St John The Baptist School,payments to other SCC maintained schools,600.00,Schools,,
03/01/2023,SW AGENCY PLACE-ED,St Josephs Specialist Trust,Agency Placement Expenditure,"26,142.67",School Support Serv,,
03/01/2023,SW AGENCY PLACE-ED,St Josephs Specialist Trust,Agency Placement Expenditure,"26,798.00",School Support Serv,,
03/01/2023,SW AGENCY PLACE-ED,St Josephs Specialist Trust,Agency Placement Expenditure,"16,964.33",School Support Serv,,
03/01/2023,SW AGENCY PLACE-ED,St Josephs Specialist Trust,Agency Placement Expenditure,"24,539.34",School Support Serv,,
03/01/2023,NW AGENCY PLACE-ED,St Josephs Specialist Trust,Agency Placement Expenditure,"22,571.00",School Support Serv,,
03/01/2023,SW AGENCY PLACE-ED,St Josephs Specialist Trust,Agency Placement Expenditure,"37,255.00",School Support Serv,,
03/01/2023,SW AGENCY PLACE-ED,St Josephs Specialist Trust,Agency Placement Expenditure,"24,539.34",School Support Serv,,
03/01/2023,SW AGENCY PLACE-ED,St Josephs Specialist Trust,Agency Placement Expenditure,"24,539.00",School Support Serv,,
03/01/2023,SW AGENCY PLACE-ED,St Josephs Specialist Trust,Agency Placement Expenditure,"35,319.00",School Support Serv,,
03/01/2023,SW AGENCY PLACE-ED,St Josephs Specialist Trust,Agency Placement Expenditure,"24,539.34",School Support Serv,,
03/01/2023,NW AGENCY PLACE-ED,St Josephs Specialist Trust,Agency Placement Expenditure,"25,154.68",School Support Serv,,
03/01/2023,SW AGENCY PLACE-ED,St Josephs Specialist Trust,Agency Placement Expenditure,"25,527.34",School Support Serv,,
03/01/2023,SW AGENCY PLACE-ED,St Josephs Specialist Trust,Agency Placement Expenditure,"24,539.34",School Support Serv,,
03/01/2023,SE AGENCY/SPI P16-ED,St Josephs Specialist Trust,Agency Placement Expenditure,"25,155.00",School Support Serv,,
03/01/2023,NW AGENCY PLACE-ED,St Josephs Specialist Trust,Agency Placement Expenditure,"26,552.34",School Support Serv,,
03/01/2023,SW AGENCY PLACE-ED,St Josephs Specialist Trust,Agency Placement Expenditure,"38,486.67",School Support Serv,,
03/01/2023,SW AGENCY PLACE-ED,St Josephs Specialist Trust,Agency Placement Expenditure,"23,379.00",School Support Serv,,
03/01/2023,SE AGENCY PLACE-ED,St Josephs Specialist Trust,Agency Placement Expenditure,"28,500.01",School Support Serv,,
03/01/2023,NW AGENCY PLACE-ED,St Josephs Specialist Trust,Agency Placement Expenditure,"25,154.67",School Support Serv,,
03/01/2023,SW AGENCY PLACE-ED,St Josephs Specialist Trust,Agency Placement Expenditure,"24,539.47",School Support Serv,,
03/01/2023,SW AGENCY/SPI P16-ED,St Josephs Specialist Trust,Agency Placement Expenditure,"57,851.00",School Support Serv,,
03/01/2023,NW AGENCY PLACE-ED,St Josephs Specialist Trust,Agency Placement Expenditure,"26,142.67",School Support Serv,,
03/01/2023,NW AGENCY PLACE-ED,St Josephs Specialist Trust,Agency Placement Expenditure,"25,937.00",School Support Serv,,
03/01/2023,NE AGENCY PLACE-ED,St Josephs Specialist Trust,Agency Placement Expenditure,"25,153.34",School Support Serv,,
03/01/2023,SW AGENCY PLACE-ED,St Josephs Specialist Trust,Agency Placement Expenditure,"24,539.34",School Support Serv,,
03/01/2023,SW AGENCY PLACE-ED,St Josephs Specialist Trust,Agency Placement Expenditure,"15,135.01",School Support Serv,,
03/01/2023,NE AGENCY/SPI P16-ED,St Josephs Specialist Trust,Agency Placement Expenditure,"35,933.01",School Support Serv,,
03/01/2023,NE AGENCY/SPI P16-ED,St Josephs Specialist Trust,Agency Placement Expenditure,"26,142.67",School Support Serv,,
03/01/2023,SW AGENCY PLACE-ED,St Josephs Specialist Trust,Agency Placement Expenditure,"28,500.00",School Support Serv,,
03/01/2023,SW AGENCY PLACE-ED,St Josephs Specialist Trust,Agency Placement Expenditure,"26,382.34",School Support Serv,,
03/01/2023,SW AGENCY PLACE-ED,St Josephs Specialist Trust,Agency Placement Expenditure,"25,767.01",School Support Serv,,
03/01/2023,SE AGENCY/SPI P16-ED,St Josephs Specialist Trust,Agency Placement Expenditure,"35,099.12",School Support Serv,,
03/01/2023,SW AGENCY PLACE-ED,St Josephs Specialist Trust,Agency Placement Expenditure,"25,527.34",School Support Serv,,
03/01/2023,SW AGENCY PLACE-ED,St Josephs Specialist Trust,Agency Placement Expenditure,"25,527.34",School Support Serv,,
03/01/2023,SW AGENCY PLACE-ED,St Josephs Specialist Trust,Agency Placement Expenditure,"29,455.00",School Support Serv,,
03/01/2023,SE AGENCY PLACE-ED,St Josephs Specialist Trust,Agency Placement Expenditure,"25,155.00",School Support Serv,,
03/01/2023,SW AGENCY PLACE-ED,St Josephs Specialist Trust,Agency Placement Expenditure,"28,500.00",School Support Serv,,
03/01/2023,NE AGENCY PLACE-ED,St Josephs Specialist Trust,Agency Placement Expenditure,"36,833.33",School Support Serv,,
03/01/2023,SE AGENCY PLACE-ED,St Josephs Specialist Trust,Agency Placement Expenditure,"25,155.00",School Support Serv,,
03/01/2023,SW AGENCY PLACE-ED,St Josephs Specialist Trust,Agency Placement Expenditure,"25,155.00",School Support Serv,,
03/01/2023,PUPIL PREMIUM LAC,St Nicholas CE  Primary Academy,Local Authorities,600.00,Edu Non-SEN Support,,
03/01/2023,PUPIL PREMIUM LAC,St Nicholas School,Local Authorities,"1,350.00",Edu Non-SEN Support,,
03/01/2023,PUPIL PREMIUM LAC,St Peters Catholic School,payments to other SCC maintained schools,480.00,Grants-Member Allocs,,
03/01/2023,PUPIL PREMIUM LAC,St Philip Howard Catholic School,Local Authorities,"1,710.00",Schools,,
03/01/2023,PUPIL PREMIUM LAC,St Philip Howard Catholic School,Local Authorities,"1,710.00",Schools,,
03/01/2023,PUPIL PREMIUM LAC,St Simon Stock Catholic School,Local Authorities,750.00,Grants-Member Allocs,,
03/01/2023,SPELTHORNE CARE OP,Supreme Care Services Ltd,Home Base Care,"1,079.96",Dom Care - Adults,,
03/01/2023,MOLE VALLEY CARE OP,Supreme Care Services Ltd,Home Base Care,684.04,Dom Care - Adults,,
03/01/2023,MOLE VALLEY CARE OP,Supreme Care Services Ltd,Home Base Care,281.36,Dom Care - Adults,,
03/01/2023,SPELTHORNE CARE PD,Supreme Care Services Ltd,Home Base Care,305.20,Dom Care - Adults,,
03/01/2023,REIGATE & BD CARE OP,Supreme Care Services Ltd,Home Base Care,448.40,Dom Care - Adults,,
03/01/2023,REIGATE & BD CARE OP,Supreme Care Services Ltd,Home Base Care,977.20,Dom Care - Adults,,
03/01/2023,SPELTHORNE CARE OP,Supreme Care Services Ltd,Home Base Care,330.40,Dom Care - Adults,,
03/01/2023,REIGATE & BD CARE OP,Supreme Care Services Ltd,Home Base Care,376.88,Dom Care - Adults,,
03/01/2023,MOLE VALLEY CARE PD,Supreme Care Services Ltd,Home Base Care,704.20,Dom Care - Adults,,
03/01/2023,MOLE VALLEY CARE OP,Supreme Care Services Ltd,Home Base Care,680.54,Dom Care - Adults,,
03/01/2023,TANDRIDGE CARE OP,Supreme Care Services Ltd,Home Base Care,"1,032.64",Dom Care - Adults,,
03/01/2023,TANDRIDGE CARE OP,Supreme Care Services Ltd,Home Base Care,"1,079.96",Dom Care - Adults,,
03/01/2023,SPELTHORNE CARE OP,Supreme Care Services Ltd,Home Base Care,"1,599.64",Dom Care - Adults,,
03/01/2023,MOLE VALLEY CARE OP,Supreme Care Services Ltd,Home Base Care,516.32,Dom Care - Adults,,
03/01/2023,WOKING CARE OP,Supreme Care Services Ltd,Home Base Care,858.81,Dom Care - Adults,,
03/01/2023,WOKING CARE OP,Supreme Care Services Ltd,Home Base Care,"1,123.22",Dom Care - Adults,,
03/01/2023,SPELTHORNE CARE OP,Supreme Care Services Ltd,Home Base Care,"1,361.08",Dom Care - Adults,,
03/01/2023,SPELTHORNE CARE PD,Supreme Care Services Ltd,Home Base Care,"1,368.08",Dom Care - Adults,,
03/01/2023,TANDRIDGE CARE OP,Supreme Care Services Ltd,Home Base Care,684.04,Dom Care - Adults,,
03/01/2023,TANDRIDGE CARE PD,Supreme Care Services Ltd,Home Base Care,352.22,Dom Care - Adults,,
03/01/2023,SPELTHORNE CARE OP,Supreme Care Services Ltd,Home Base Care,492.66,Dom Care - Adults,,
03/01/2023,REIGATE & BD CARE PD,Supreme Care Services Ltd,Home Base Care,684.04,Dom Care - Adults,,
03/01/2023,REIGATE & BD CARE OP,Supreme Care Services Ltd,Home Base Care,"1,488.72",Dom Care - Adults,,
03/01/2023,TANDRIDGE CARE OP,Supreme Care Services Ltd,Home Base Care,697.62,Dom Care - Adults,,
03/01/2023,SPELTHORNE CARE OP,Supreme Care Services Ltd,Home Base Care,680.54,Dom Care - Adults,,
03/01/2023,WOKING CARE OP,Supreme Care Services Ltd,Home Base Care,518.84,Dom Care - Adults,,
03/01/2023,MOLE VALLEY CARE OP,Supreme Care Services Ltd,Home Base Care,330.40,Dom Care - Adults,,
03/01/2023,MOLE VALLEY CARE OP,Supreme Care Services Ltd,Home Base Care,828.26,Dom Care - Adults,,
03/01/2023,SPELTHORNE CARE PD,Supreme Care Services Ltd,Home Base Care,365.58,Dom Care - Adults,,
03/01/2023,RUNNYMEDE CARE OP,Supreme Care Services Ltd,Home Base Care,"1,361.08",Dom Care - Adults,,
03/01/2023,SPELTHORNE CARE OP,Supreme Care Services Ltd,Home Base Care,747.66,Dom Care - Adults,,
03/01/2023,REIGATE & BD CARE OP,Supreme Care Services Ltd,Home Base Care,505.56,Dom Care - Adults,,
03/01/2023,SPELTHORNE CARE PD,Supreme Care Services Ltd,Home Base Care,872.48,Dom Care - Adults,,
03/01/2023,ELMBRIDGE CARE OP,Supreme Care Services Ltd,Home Base Care,565.32,Dom Care - Adults,,
03/01/2023,REIGATE & BD CARE OP,Surrey Social Care Professionals Lt,Home Base Care,307.77,Dom Care - Adults,,
03/01/2023,REIGATE & BD CARE OP,Surrey Social Care Professionals Lt,Home Base Care,273.02,Dom Care - Adults,,
03/01/2023,LD-AUT CNTR TM CARE,Sussex Autistic Community Trust,Other Community Care,"1,582.68",Residential - MH,,
03/01/2023,PUPIL PREMIUM LAC,Sythwood Primary School,payments to other SCC maintained schools,600.00,Schools,,
03/01/2023,PUPIL PREMIUM LAC,Sythwood Primary School,payments to other SCC maintained schools,600.00,Schools,,
03/01/2023,PUPIL PREMIUM LAC,Sythwood Primary School,payments to other SCC maintained schools,600.00,Schools,,
03/01/2023,PUPIL PREMIUM LAC,Sythwood Primary School,payments to other SCC maintained schools,600.00,Schools,,
03/01/2023,Government ,Teachers Pensions,Pensions,"33,086.52",Pensions,,
03/01/2023,Government ,Teachers Pensions,Pensions,"45,639.74",Pensions,,
03/01/2023,Government ,Teachers Pensions,Pensions,"10,640.14",Pensions,,
03/01/2023,Government ,Teachers Pensions,Pensions,"19,764.58",Pensions,,
03/01/2023,Government ,Teachers Pensions,Pensions,"30,171.51",Pensions,,
03/01/2023,Government ,Teachers Pensions,Pensions,"7,057.63",Pensions,,
03/01/2023,Government ,Teachers Pensions,Pensions,"4,369.42",Pensions,,
03/01/2023,Government ,Teachers Pensions,Pensions,"94,387.96",Pensions,,
03/01/2023,Government ,Teachers Pensions,Pensions,"18,011.56",Pensions,,
03/01/2023,Government ,Teachers Pensions,Pensions,738.10,Pensions,,
03/01/2023,Government ,Teachers Pensions,Pensions,"7,625.30",Pensions,,
03/01/2023,Government ,Teachers Pensions,Pensions,"18,611.55",Pensions,,
03/01/2023,Government ,Teachers Pensions,Pensions,"1,243.91",Pensions,,
03/01/2023,Government ,Teachers Pensions,Pensions,"6,958.09",Pensions,,
03/01/2023,Government ,Teachers Pensions,Pensions,"3,608.47",Pensions,,
03/01/2023,Government ,Teachers Pensions,Pensions,"12,400.14",Pensions,,
03/01/2023,Government ,Teachers Pensions,Pensions,"16,703.75",Pensions,,
03/01/2023,Government ,Teachers Pensions,Pensions,"9,510.83",Pensions,,
03/01/2023,Government ,Teachers Pensions,Pensions,"5,105.08",Pensions,,
03/01/2023,Government ,Teachers Pensions,Pensions,"43,794.46",Pensions,,
03/01/2023,Government ,Teachers Pensions,Pensions,"66,427.03",Pensions,,
03/01/2023,Government ,Teachers Pensions,Pensions,"38,304.26",Pensions,,
03/01/2023,Government ,Teachers Pensions,Pensions,"79,981.94",Pensions,,
03/01/2023,Government ,Teachers Pensions,Pensions,"6,695.27",Pensions,,
03/01/2023,Government ,Teachers Pensions,Pensions,"125,409.19",Pensions,,
03/01/2023,Government ,Teachers Pensions,Pensions,"7,055.35",Pensions,,
03/01/2023,Government ,Teachers Pensions,Pensions,"18,315.09",Pensions,,
03/01/2023,Government ,Teachers Pensions,Pensions,"1,075.20",Pensions,,
03/01/2023,Government ,Teachers Pensions,Pensions,"7,712.59",Pensions,,
03/01/2023,Government ,Teachers Pensions,Pensions,"13,107.23",Pensions,,
03/01/2023,Government ,Teachers Pensions,Pensions,"12,121.42",Pensions,,
03/01/2023,Government ,Teachers Pensions,Pensions,"25,552.53",Pensions,,
03/01/2023,Government ,Teachers Pensions,Pensions,"7,245.69",Pensions,,
03/01/2023,Government ,Teachers Pensions,Pensions,"18,221.23",Pensions,,
03/01/2023,Government ,Teachers Pensions,Pensions,"10,070.62",Pensions,,
03/01/2023,Government ,Teachers Pensions,Pensions,"5,274.55",Pensions,,
03/01/2023,Government ,Teachers Pensions,Pensions,"30,399.21",Pensions,,
03/01/2023,Government ,Teachers Pensions,Pensions,"18,303.65",Pensions,,
03/01/2023,Government ,Teachers Pensions,Pensions,"107,559.80",Pensions,,
03/01/2023,Government ,Teachers Pensions,Pensions,"955,821.71",Pensions,,
03/01/2023,Government ,Teachers Pensions,Pensions,"3,588.61",Pensions,,
03/01/2023,Government ,Teachers Pensions,Pensions,"183,710.57",Pensions,,
03/01/2023,Government ,Teachers Pensions,Pensions,"50,981.40",Pensions,,
03/01/2023,Government ,Teachers Pensions,Pensions,"2,407,605.88",Pensions,,
03/01/2023,Government ,Teachers Pensions,Pensions,"18,600.51",Pensions,,
03/01/2023,Government ,Teachers Pensions,Pensions,"11,763.61",Pensions,,
03/01/2023,Government ,Teachers Pensions,Pensions,294.00,Pensions,,
03/01/2023,PUPIL PREMIUM LAC,Tendring Technology College,Local Authorities,260.00,Edu Non-SEN Support,,
03/01/2023,PUPIL PREMIUM LAC,Testwood School,Local Authorities,720.00,Grants-Member Allocs,,
03/01/2023,PUPIL PREMIUM LAC,The Abbey School,payments to other SCC maintained schools,570.00,School Support Serv,,
03/01/2023,PUPIL PREMIUM LAC,The Abbey School,payments to other SCC maintained schools,600.00,School Support Serv,,
03/01/2023,PUPIL PREMIUM LAC,The Abbey School,payments to other SCC maintained schools,600.00,School Support Serv,,
03/01/2023,PUPIL PREMIUM LAC,The Ashcombe School,payments to other SCC maintained schools,600.00,Schools,,
03/01/2023,PUPIL PREMIUM LAC,The Ashcombe School,payments to other SCC maintained schools,600.00,Schools,,
03/01/2023,PUPIL PREMIUM LAC,The Beacon School,payments to other SCC maintained schools,500.00,Schools,,
03/01/2023,PUPIL PREMIUM LAC,The Beacon School,payments to other SCC maintained schools,500.00,Schools,,
03/01/2023,PUPIL PREMIUM LAC,The Bishop Wand Church of England S,payments to other SCC maintained schools,740.00,Schools,,
03/01/2023,PUPIL PREMIUM LAC,The Gatwick School,Local Authorities,800.00,Grants-Member Allocs,,
03/01/2023,PUPIL PREMIUM LAC,The Grove Academy,payments to other SCC maintained schools,330.00,Grants-Member Allocs,,
03/01/2023,PUPIL PREMIUM LAC,The Grove Academy,payments to other SCC maintained schools,330.00,Grants-Member Allocs,,
03/01/2023,PUPIL PREMIUM LAC,The Loddon Foundation Ltd,Local Authorities,250.00,SEND Agncy Placement,,
03/01/2023,PUPIL PREMIUM LAC,The Marist Catholic Primary School,payments to other SCC maintained schools,462.00,Schools,,
03/01/2023,PUPIL PREMIUM LAC,The Matthew Arnold School,payments to other SCC maintained schools,330.00,Schools,,
03/01/2023,PUPIL PREMIUM LAC,The Redway School,Local Authorities,600.00,Edu Non-SEN Support,,
03/01/2023,PUPIL PREMIUM LAC,The Ridgeway School,payments to other SCC maintained schools,648.00,Schools,,
03/01/2023,PUPIL PREMIUM LAC,The Warwick School,payments to other SCC maintained schools,600.00,Schools,,
03/01/2023,PUPIL PREMIUM LAC,The Willink School,Local Authorities,600.00,Schools,,
03/01/2023,PUPIL PREMIUM LAC,Three Bridges Primary School,Local Authorities,343.00,Grants-Member Allocs,,
03/01/2023,EIF 2 YR OLD,Toad Hall Nursery ottershaw,Third Party Payments-Other Agencies,500.00,Nurseries,,
03/01/2023,PUPIL PREMIUM LAC,Tomlinscote School & Sixth Form Col,payments to other SCC maintained schools,600.00,Schools,,
03/01/2023,PUPIL PREMIUM LAC,Torfield & Saxon Mount Academy Trus,Local Authorities,400.00,Edu Non-SEN Support,,
03/01/2023,PUPIL PREMIUM LAC,Turing House School,Local Authorities,600.00,Edu Non-SEN Support,,
03/01/2023,PUPIL PREMIUM LAC,Ursuline College,Local Authorities,900.00,Edu Non-SEN Support,,
03/01/2023,PUPIL PREMIUM LAC,Valley Park School,Local Authorities,"1,431.00",Grants-Member Allocs,,
03/01/2023,PUPIL PREMIUM LAC,Walton on the Naze Primary School,Local Authorities,780.00,Edu Non-SEN Support,,
03/01/2023,MOLE VALLEY CARE OP,Watershed Care Services,Home Base Care,"1,500.00",Dom Care - Adults,,
03/01/2023,MOLE VALLEY CARE OP,Watershed Care Services,Home Base Care,"1,500.00",Dom Care - Adults,,
03/01/2023,MOLE VALLEY CARE OP,Watershed Care Services,Home Base Care,750.00,Dom Care - Adults,,
03/01/2023,MOLE VALLEY CARE OP,Watershed Care Services,Home Base Care,"1,500.00",Dom Care - Adults,,
03/01/2023,PUPIL PREMIUM LAC,Waverley Abbey COE Junior School,payments to other SCC maintained schools,600.00,Schools,,
03/01/2023,PUPIL PREMIUM LAC,Wells Park School,Local Authorities,782.00,SEN OLA,,
03/01/2023,PUPIL PREMIUM LAC,Weydon Multi Academy Trust,payments to other SCC maintained schools,460.00,School Support Serv,,
03/01/2023,WOKING CMHRS CARE,Whitestone Care Ltd,Supported Living,"1,536.52",Supp Living - MH,,
03/01/2023,RUNNYMEDE CARE OP,Whitestone Care Ltd,Home Base Care,815.08,Supp Living - MH,,
03/01/2023,ELMBRIDGE CMHRS CARE,Whitestone Care Ltd,Home Base Care,864.80,Supp Living - MH,,
03/01/2023,PLD TRANSITION,Whitestone Care Ltd,Supported Living,"3,816.32",Supp Living - MH,,
03/01/2023,SY HEATH CMHRS CARE,Whitestone Care Ltd,Supported Living,"6,277.60",Supp Living - MH,,
03/01/2023,WOKING CARE PD,Whitestone Care Ltd,Home Base Care,957.18,Supp Living - MH,,
03/01/2023,WOKING CMHRS CARE,Whitestone Care Ltd,Supported Living,"4,982.32",Supp Living - MH,,
03/01/2023,LD-AUT CNTR TM CARE,Whitestone Care Ltd,Supported Living,"4,899.60",Supp Living - MH,,
03/01/2023,WOKING CARE OP,Whitestone Care Ltd,Home Base Care,706.86,Supp Living - MH,,
03/01/2023,WOKING CMHRS CARE,Whitestone Care Ltd,Supported Living,"3,498.00",Supp Living - MH,,
03/01/2023,LD-AUT CNTR TM CARE,Whitestone Care Ltd,Supported Living,"9,108.32",Supp Living - MH,,
03/01/2023,PLD TRANSITION,Whitestone Care Ltd,Supported Living,"20,098.68",Supp Living - MH,,
03/01/2023,RUNNYMEDE CARE OP,Whitestone Care Ltd,Home Base Care,"1,749.84",Supp Living - MH,,
03/01/2023,Property,Willmott Dixon Construction Ltd,Fess,"1,585.00",Edu Establishments,,
03/01/2023,ELMBRIDGE CARE OP,Winsor Care Services Ltd,Home Base Care,"1,267.56",Dom Care - Adults,,
03/01/2023,SPELTHORNE CARE OP,Winsor Care Services Ltd,Home Base Care,"1,373.68",Dom Care - Adults,,
03/01/2023,RUNNYMEDE CARE OP,Winsor Care Services Ltd,Home Base Care,"1,034.04",Dom Care - Adults,,
03/01/2023,SPELTHORNE CARE OP,Winsor Care Services Ltd,Home Base Care,"1,607.76",Dom Care - Adults,,
03/01/2023,LD-AUT CNTR TM CARE,Winsor Care Services Ltd,Home Base Care,449.82,Dom Care - Adults,,
03/01/2023,WOKING CARE PD,Winsor Care Services Ltd,Home Base Care,426.36,Dom Care - Adults,,
03/01/2023,SPELTHORNE CARE OP,Winsor Care Services Ltd,Home Base Care,"1,804.88",Dom Care - Adults,,
03/01/2023,WOKING CARE OP,Winsor Care Services Ltd,Home Base Care,274.12,Dom Care - Adults,,
03/01/2023,RUNNYMEDE CARE OP,Winsor Care Services Ltd,Home Base Care,899.64,Dom Care - Adults,,
03/01/2023,RUNNYMEDE CARE OP,Winsor Care Services Ltd,Home Base Care,"1,413.44",Dom Care - Adults,,
03/01/2023,ELMBRIDGE CARE OP,Winsor Care Services Ltd,Home Base Care,797.08,Dom Care - Adults,,
03/01/2023,WOKING CARE OP,Winsor Care Services Ltd,Home Base Care,529.76,Dom Care - Adults,,
03/01/2023,WOKING CARE OP,Winsor Care Services Ltd,Home Base Care,"1,373.68",Dom Care - Adults,,
03/01/2023,WOKING CMHRS CARE,Winsor Care Services Ltd,Home Base Care,489.72,Dom Care - Adults,,
03/01/2023,SPELTHORNE CARE OP,Winsor Care Services Ltd,Home Base Care,"1,373.68",Dom Care - Adults,,
03/01/2023,RUNNYMEDE CARE OP,Winsor Care Services Ltd,Home Base Care,"1,049.58",Dom Care - Adults,,
03/01/2023,RUNNYMEDE CARE OP,Winsor Care Services Ltd,Home Base Care,"1,238.58",Dom Care - Adults,,
03/01/2023,WOKING CARE OP,Winsor Care Services Ltd,Home Base Care,588.28,Dom Care - Adults,,
03/01/2023,SPELTHORNE CARE OP,Winsor Care Services Ltd,Home Base Care,"1,373.68",Dom Care - Adults,,
03/01/2023,WOKING CMHRS CARE,Winsor Care Services Ltd,Home Base Care,667.48,Dom Care - Adults,,
03/01/2023,WOKING CARE OP,Winsor Care Services Ltd,Home Base Care,702.52,Dom Care - Adults,,
03/01/2023,SPELTHORNE CARE OP,Winsor Care Services Ltd,Home Base Care,760.20,Dom Care - Adults,,
03/01/2023,WOKING CARE OP,Winsor Care Services Ltd,Home Base Care,"1,400.84",Dom Care - Adults,,
03/01/2023,SPELTHORNE CARE OP,Winsor Care Services Ltd,Home Base Care,"1,373.68",Dom Care - Adults,,
03/01/2023,PUPIL PREMIUM LAC,Woking High School,payments to other SCC maintained schools,280.00,Schools,,
03/01/2023,PUPIL PREMIUM LAC,Woodmansterne School & Sixth Form,Local Authorities,720.00,Edu Non-SEN Support,,
04/01/2023,SE AGENCY PLACE-ED,Aberdour School,Agency Placement Expenditure,"3,985.37",Schools,,
04/01/2023,PERSONAL BUDGET (NE),Adriane Bet-Geoghegan,Agency Placement Expenditure,"14,554.00",Individual - NEC,,
04/01/2023,CORONER,Air Pathology Ltd,Inquest Exps.,280.00,Coroners,,
04/01/2023,CORONER,Air Pathology Ltd,Inquest Exps.,280.00,Coroners,,
04/01/2023,CORONER,Air Pathology Ltd,Inquest Exps.,280.00,Coroners,,
04/01/2023,CORONER,Air Pathology Ltd,Inquest Exps.,280.00,Coroners,,
04/01/2023,CORONER,Air Pathology Ltd,Inquest Exps.,280.00,Coroners,,
04/01/2023,CORONER,Air Pathology Ltd,Inquest Exps.,280.00,Coroners,,
04/01/2023,CORONER,Air Pathology Ltd,Inquest Exps.,280.00,Coroners,,
04/01/2023,CORONER,Air Pathology Ltd,Inquest Exps.,280.00,Coroners,,
04/01/2023,CORONER,Air Pathology Ltd,Inquest Exps.,280.00,Coroners,,
04/01/2023,CORONER,Air Pathology Ltd,Inquest Exps.,280.00,Coroners,,
04/01/2023,CORONER,Air Pathology Ltd,Inquest Exps.,280.00,Coroners,,
04/01/2023,CORONER,Air Pathology Ltd,Inquest Exps.,280.00,Coroners,,
04/01/2023,CORONER,Air Pathology Ltd,Inquest Exps.,280.00,Coroners,,
04/01/2023,CORONER,Air Pathology Ltd,Inquest Exps.,280.00,Coroners,,
04/01/2023,CORONER,Air Pathology Ltd,Inquest Exps.,280.00,Coroners,,
04/01/2023,CORONER,Air Pathology Ltd,Inquest Exps.,280.00,Coroners,,
04/01/2023,CORONER,Air Pathology Ltd,Inquest Exps.,250.00,Coroners,,
04/01/2023,CORONER,Air Pathology Ltd,Inquest Exps.,280.00,Coroners,,
04/01/2023,CORONER,Air Pathology Ltd,Inquest Exps.,280.00,Coroners,,
04/01/2023,CORONER,Air Pathology Ltd,Inquest Exps.,250.00,Coroners,,
04/01/2023,CORONER,Air Pathology Ltd,Inquest Exps.,280.00,Coroners,,
04/01/2023,CORONER,Air Pathology Ltd,Inquest Exps.,280.00,Coroners,,
04/01/2023,CORONER,Air Pathology Ltd,Inquest Exps.,280.00,Coroners,,
04/01/2023,CORONER,Air Pathology Ltd,Inquest Exps.,250.00,Coroners,,
04/01/2023,CORONER,Air Pathology Ltd,Inquest Exps.,280.00,Coroners,,
04/01/2023,WOKING CARE PD,Allbest Solutions Ltd,Home Base Care,936.00,Dom Care - Adults,,
04/01/2023,GUILDFORD CARE OP,Allbest Solutions Ltd,Home Base Care,413.00,Dom Care - Adults,,
04/01/2023,WOKING CARE OP,Allbest Solutions Ltd,Home Base Care,708.00,Dom Care - Adults,,
04/01/2023,WOKING CARE PD,Allbest Solutions Ltd,Home Base Care,468.00,Dom Care - Adults,,
04/01/2023,GUILDFORD CARE OP,Allbest Solutions Ltd,Home Base Care,"2,289.00",Dom Care - Adults,,
04/01/2023,WOKING CARE PD,Allbest Solutions Ltd,Home Base Care,"1,053.00",Dom Care - Adults,,
04/01/2023,GUILDFORD CARE PD,Allbest Solutions Ltd,Home Base Care,675.00,Dom Care - Adults,,
04/01/2023,PERSONAL BUDGET (SW),Redacted Personal Data,Agency Placement Expenditure,802.46,Individual - NEC,,
04/01/2023,SE PERSONAL BUDG P16,Redacted Personal Data,Agency Placement Expenditure,"4,132.02",Individual - NEC,,
04/01/2023,NE AGENCY PLACE-ED,Aurora Asd Ltd,Agency Placement Expenditure,"6,406.78",SEND Agncy Placement,,
04/01/2023,SE AGENCY PLACE-ED,Aurora Asd Ltd,Agency Placement Expenditure,"6,406.78",SEND Agncy Placement,,
04/01/2023,SE AGENCY PLACE-ED,Aurora Asd Ltd,Agency Placement Expenditure,"6,406.78",SEND Agncy Placement,,
04/01/2023,SE AGENCY PLACE-ED,Aurora Asd Ltd,Agency Placement Expenditure,"6,406.78",SEND Agncy Placement,,
04/01/2023,SE AGENCY PLACE-ED,Aurora Asd Ltd,Agency Placement Expenditure,"6,406.78",SEND Agncy Placement,,
04/01/2023,SW AGENCY PLACE-ED,Barnardo's South East & Anglia,Agency Placement Expenditure,"7,775.53",Sup Living Children,,
04/01/2023,NW AGENCY PLACE-ED,Barnardo's South East & Anglia,Agency Placement Expenditure,"14,509.99",Sup Living Children,,
04/01/2023,NW AGENCY PLACE-ED,Barnardo's South East & Anglia,Agency Placement Expenditure,"6,428.75",Sup Living Children,,
04/01/2023,NW AGENCY PLACE-ED,Barnardo's South East & Anglia,Agency Placement Expenditure,"6,428.75",Sup Living Children,,
04/01/2023,NE AGENCY PLACE-ED,Barnardo's South East & Anglia,Agency Placement Expenditure,"6,428.89",Sup Living Children,,
04/01/2023,NW AGENCY PLACE-ED,Barnardo's South East & Anglia,Agency Placement Expenditure,"6,284.86",Sup Living Children,,
04/01/2023,NW AGENCY PLACE-ED,Barnardo's South East & Anglia,Agency Placement Expenditure,"7,606.38",Sup Living Children,,
04/01/2023,NW AGENCY PLACE-ED,Barnardo's South East & Anglia,Agency Placement Expenditure,"6,428.75",Sup Living Children,,
04/01/2023,NW AGENCY PLACE-ED,Barnardo's South East & Anglia,Agency Placement Expenditure,"6,428.75",Sup Living Children,,
04/01/2023,NW AGENCY PLACE-ED,Barnardo's South East & Anglia,Agency Placement Expenditure,"6,428.75",Sup Living Children,,
04/01/2023,SW AGENCY PLACE-ED,Barnardo's South East & Anglia,Agency Placement Expenditure,"5,979.67",Sup Living Children,,
04/01/2023,General Build Maint,Cadent Gas Ltd,Fees,"228,159.00",General Build Maint,,
04/01/2023,General Build Maint,Cadent Gas Ltd,Fees,"80,104.00",General Build Maint,,
04/01/2023,LD-AUT CNTR TM CARE,Caprani Care Ltd,Supported Living,845.64,Sup Living Children,,
04/01/2023,LD-AUT CNTR TM CARE,Caprani Care Ltd,Supported Living,845.64,Sup Living Children,,
04/01/2023,LD-AUT CNTR TM CARE,Caprani Care Ltd,Supported Living,845.64,Sup Living Children,,
04/01/2023,LD-AUT CNTR TM CARE,Caprani Care Ltd,Supported Living,845.64,Sup Living Children,,
04/01/2023,LD-AUT CNTR TM CARE,Caprani Care Ltd,Supported Living,"14,326.27",Sup Living Children,,
04/01/2023,LD-AUT CNTR TM CARE,Caprani Care Ltd,Supported Living,845.64,Sup Living Children,,
04/01/2023,LD-AUT CNTR TM CARE,Caprani Care Ltd,Supported Living,845.64,Sup Living Children,,
04/01/2023,LD-AUT CNTR TM CARE,Caprani Care Ltd,Supported Living,517.32,Sup Living Children,,
04/01/2023,LD-AUT CNTR TM CARE,Caprani Care Ltd,Supported Living,845.64,Sup Living Children,,
04/01/2023,LD-AUT CNTR TM CARE,Caprani Care Ltd,Supported Living,845.64,Sup Living Children,,
04/01/2023,LD-AUT CNTR TM CARE,Caprani Care Ltd,Supported Living,517.32,Sup Living Children,,
04/01/2023,LD-AUT CNTR TM CARE,Caprani Care Ltd,Supported Living,"9,236.57",Sup Living Children,,
04/01/2023,LD-AUT CNTR TM CARE,Caprani Care Ltd,Supported Living,517.32,Sup Living Children,,
04/01/2023,LD-AUT CNTR TM CARE,Caprani Care Ltd,Supported Living,517.32,Sup Living Children,,
04/01/2023,LD-AUT CNTR TM CARE,Caprani Care Ltd,Supported Living,517.32,Sup Living Children,,
04/01/2023,LD-AUT CNTR TM CARE,Caprani Care Ltd,Supported Living,"9,701.59",Sup Living Children,,
04/01/2023,LD-AUT CNTR TM CARE,Caprani Care Ltd,Supported Living,517.32,Sup Living Children,,
04/01/2023,LD-AUT CNTR TM CARE,Caprani Care Ltd,Supported Living,517.32,Sup Living Children,,
04/01/2023,LD-AUT CNTR TM CARE,Caprani Care Ltd,Supported Living,517.32,Sup Living Children,,
04/01/2023,SE AGENCY PLACE-ED,Carmichael Education Ltd,Agency Placement Expenditure,"4,649.79",SEND Agncy Placement,,
04/01/2023,PERSONAL BUDGET (SW),Redacted Personal Data,Agency Placement Expenditure,"9,877.71",Individual - NEC,,
04/01/2023,WOKING CARE PD,Comprehensive Care Services Ltd,Home Base Care,338.40,Other Care,,
04/01/2023,PERSONAL BUDGET (SW),Redacted Personal Data,Agency Placement Expenditure,367.09,Individual - NEC,,
04/01/2023,Dakota,Corporate Document Services Ltd,Equipment,"1,505.46",Printing & Repro,,
04/01/2023,LD-AUT CNTR TM CARE,Creative Response Arts - Related Se,Day Care,272.38,Day Care - PSD,,
04/01/2023,LD-AUT CNTR TM CARE,Creative Response Arts - Related Se,Day Care,251.97,Day Care - PSD,,
04/01/2023,PERSONAL BUDGET (SW),Redacted Personal Data,Agency Placement Expenditure,532.24,Individual - NEC,,
04/01/2023,NW AGENCY/SPI P16-ED,Derwen College,Agency Placement Expenditure,"20,008.63",Staff Training,,
04/01/2023,NW AGENCY/SPI P16-ED,Derwen College,Agency Placement Expenditure,"15,994.89",Staff Training,,
04/01/2023,NE ALT SEN POST 16,E&K Tutoring,Agency Placement Expenditure,"3,780.00",SEND Agncy Placement,,
04/01/2023,LBSC DIRECT,East Surrey Rural Transport Partner,Contractor,"19,446.92",Multi-purpose Veh,,
04/01/2023,NE AGENCY PLACE-ED,Elysian at Westland Farm,Agency Placement Expenditure,"3,780.00",SEN Specialist Supp,,
04/01/2023,CORONER,Forensic Pathology Services,Inquest Exps.,352.80,Coroners Services,,
04/01/2023,CORONER,Forensic Pathology Services,Inquest Exps.,336.60,Coroners Services,,
04/01/2023,SE AGENCY PLACE-ED,Glebe School,Local Authorities,"1,086.31",SEN OLA,,
04/01/2023,SPELTHORNE CARE PD,Grassroots Project,Day Care,257.76,Day Care - PSD,,
04/01/2023,LD-AUT CNTR TM CARE,Grassroots Project,Day Care,322.20,Day Care - PSD,,
04/01/2023,LD-AUT CNTR TM CARE,Grassroots Project,Day Care,257.76,Day Care - PSD,,
04/01/2023,LD-AUT CNTR TM CARE,Grassroots Project,Day Care,257.76,Day Care - PSD,,
04/01/2023,WOKING CARE PD,Grassroots Project,Day Care,257.76,Day Care - PSD,,
04/01/2023,Transport,Greenfield Demolition Nationwide Lt,Abandoned Vehicles,"44,634.50",Abandoned Vehicles,,
04/01/2023,PERSONAL BUDGET(SE),Redacted Personal Data,Agency Placement Expenditure,"6,027.00",Individual - NEC,,
04/01/2023,NW AGENCY PLACE-ED,Hoe Bridge School Ltd,Agency Placement Expenditure,"4,514.25",Schools,,
04/01/2023,SW PERSONAL BUDG P16,Redacted Personal Data,Agency Placement Expenditure,624.31,Individual - NEC,,
04/01/2023,SW ALT SEN POST 16,Redacted Personal Data,Agency Placement Expenditure,"4,200.00",SEN Specialist Supp,,
04/01/2023,NE ALTERNATIVE SEN,Leaps & Bounds Therapy Ltd,Other Community Care - Priv,395.20,Occupational Therapy,,
04/01/2023,GUILDFORD CARE OP,Longdene Homecare,Home Base Care,"1,630.00",Dom Care - Adults,,
04/01/2023,WAVERLEY CARE OP,Longdene Homecare,Home Base Care,"1,652.00",Dom Care - Adults,,
04/01/2023,WAVERLEY CARE OP,Longdene Homecare,Home Base Care,314.00,Dom Care - Adults,,
04/01/2023,WAVERLEY CARE OP,Longdene Homecare,Home Base Care,784.00,Dom Care - Adults,,
04/01/2023,WAVERLEY CARE OP,Longdene Homecare,Home Base Care,406.00,Dom Care - Adults,,
04/01/2023,WAVERLEY CARE PD,Longdene Homecare,Home Base Care,"1,785.00",Dom Care - Adults,,
04/01/2023,WAVERLEY CARE OP,Longdene Homecare,Home Base Care,609.00,Dom Care - Adults,,
04/01/2023,WAVERLEY CARE OP,Longdene Homecare,Home Base Care,"1,819.00",Dom Care - Adults,,
04/01/2023,WAVERLEY CARE OP,Longdene Homecare,Home Base Care,490.00,Dom Care - Adults,,
04/01/2023,GUILDFORD CARE OP,Longdene Homecare,Home Base Care,"1,652.00",Dom Care - Adults,,
04/01/2023,WAVERLEY CARE OP,Longdene Homecare,Home Base Care,660.00,Dom Care - Adults,,
04/01/2023,SURREY HEATH CARE OP,Longdene Homecare,Home Base Care,396.30,Dom Care - Adults,,
04/01/2023,GUILDFORD CARE OP,Longdene Homecare,Home Base Care,364.00,Dom Care - Adults,,
04/01/2023,GUILDFORD CARE OP,Longdene Homecare,Home Base Care,456.50,Dom Care - Adults,,
04/01/2023,WAVERLEY CARE OP,Longdene Homecare,Home Base Care,265.00,Dom Care - Adults,,
04/01/2023,WAVERLEY CARE OP,Longdene Homecare,Home Base Care,557.00,Dom Care - Adults,,
04/01/2023,NW PERSONAL BUDG P16,Redacted Personal Data,Agency Placement Expenditure,430.80,Invoicing Plan Req.,,
04/01/2023,SE AGENCY PLACE-ED,Manor Green College,Local Authorities,"3,692.42",SEN Specialist Supp,,
04/01/2023,SE AGENCY PLACE-ED,Manor Green College,Local Authorities,"1,014.76",SEN Specialist Supp,,
04/01/2023,SE AGENCY PLACE-ED,Manor Green College,Local Authorities,"1,014.75",SEN Specialist Supp,,
04/01/2023,SE AGENCY PLACE-ED,Manor Green College,Local Authorities,"1,014.76",SEN Specialist Supp,,
04/01/2023,SE AGENCY/SPI P16-ED,Manor Green College,Local Authorities,"4,146.51",SEN Specialist Supp,,
04/01/2023,SE AGENCY PLACE-ED,Manor Green College,Local Authorities,"1,014.76",SEN Specialist Supp,,
04/01/2023,SE AGENCY/SPI P16-ED,Manor Green College,Local Authorities,"2,326.61",SEN Specialist Supp,,
04/01/2023,SE AGENCY PLACE-ED,Manor Green College,Local Authorities,"1,014.75",SEN Specialist Supp,,
04/01/2023,SE AGENCY PLACE-ED,Manor Green College,Local Authorities,"3,547.66",SEN Specialist Supp,,
04/01/2023,SE AGENCY PLACE-ED,Manor Green College,Local Authorities,"1,014.75",SEN Specialist Supp,,
04/01/2023,GREENLANDS GRT,Millane Contract Services Ltd,Corporate Responsive Maintenance,360.00,General Build Maint,,
04/01/2023,KALIMA GRT,Millane Contract Services Ltd,Corporate Responsive Maintenance,"2,290.80",General Build Maint,,
04/01/2023,SE AGENCY PLACE-ED,Northease Manor School,Agency Placement Expenditure,"3,032.15",SEN Specialist Supp,,
04/01/2023,SE ALT SEN POST 16,Nudge Education Ltd,Agency Placement Expenditure,"7,452.32",SEN Specialist Supp,,
04/01/2023,SW ALT SEN POST 16,Nudge Education Ltd,Agency Placement Expenditure,727.06,SEN Specialist Supp,,
04/01/2023,NW ALTERNATIVE SEN,Nudge Education Ltd,Agency Placement Expenditure,"3,635.28",SEN Specialist Supp,,
04/01/2023,LD-AUT CNTR TM CARE,Nursing Direct Healthcare  Ltd,Home Base Care,"6,115.04",Dom Care - Children,,
04/01/2023,LD-AUT CNTR TM CARE,Nursing Direct Healthcare  Ltd,Home Base Care,"6,088.36",Dom Care - Children,,
04/01/2023,PERSONAL BUDGET (NE),Redacted Personal Data,Agency Placement Expenditure,938.87,Individual - NEC,,
04/01/2023,Government grants,Pirbright Parish Council,SCC Your Fund Surrey Grant,"45,000.00",Venue Hire,,
04/01/2023,NW PERSONAL BUDG P16,Redacted Personal Data,Agency Placement Expenditure,577.50,Individual - NEC,,
04/01/2023,SPELTHORNE CARE OP,Red Brick Care Ltd,Home Base Care,"1,368.92",Dom Care - Adults,,
04/01/2023,CORONER,Redacted Personal Data,Inquest Exps.,280.00,Non-Staff Expenses,,
04/01/2023,CORONER,Redacted Personal Data,Inquest Exps.,250.00,Non-Staff Expenses,,
04/01/2023,CORONER,Redacted Personal Data,Inquest Exps.,250.00,Non-Staff Expenses,,
04/01/2023,CORONER,Redacted Personal Data,Inquest Exps.,250.00,Non-Staff Expenses,,
04/01/2023,CORONER,Redacted Personal Data,Inquest Exps.,250.00,Non-Staff Expenses,,
04/01/2023,CORONER,Redacted Personal Data,Inquest Exps.,250.00,Non-Staff Expenses,,
04/01/2023,CORONER,Redacted Personal Data,Inquest Exps.,250.00,Non-Staff Expenses,,
04/01/2023,NE CWD NON-LAC CARE,Redacted Personal Data,Direct Payments - Carers of Disabled Children,"1,541.02",Adult direct payment,,
04/01/2023,PERSONAL BUDGET (NW),Redacted Personal Data,Agency Placement Expenditure,285.40,Adult direct payment,,
04/01/2023,CORONER,Redacted Personal Data,Inquest Exps.,250.00,Non-Staff Expenses,,
04/01/2023,CORONER,Redacted Personal Data,Inquest Exps.,250.00,Non-Staff Expenses,,
04/01/2023,CORONER,Redacted Personal Data,Inquest Exps.,280.00,Non-Staff Expenses,,
04/01/2023,CORONER,Redacted Personal Data,Inquest Exps.,250.00,Non-Staff Expenses,,
04/01/2023,CORONER,Redacted Personal Data,Inquest Exps.,250.00,Non-Staff Expenses,,
04/01/2023,CORONER,Redacted Personal Data,Inquest Exps.,250.00,Non-Staff Expenses,,
04/01/2023,CORONER,Redacted Personal Data,Inquest Exps.,250.00,Non-Staff Expenses,,
04/01/2023,CORONER,Redacted Personal Data,Inquest Exps.,280.00,Non-Staff Expenses,,
04/01/2023,CORONER,Redacted Personal Data,Inquest Exps.,250.00,Non-Staff Expenses,,
04/01/2023,CORONER,Redacted Personal Data,Inquest Exps.,250.00,Non-Staff Expenses,,
04/01/2023,CORONER,Redacted Personal Data,Inquest Exps.,250.00,Non-Staff Expenses,,
04/01/2023,CORONER,Redacted Personal Data,Inquest Exps.,250.00,Non-Staff Expenses,,
04/01/2023,CORONER,Redacted Personal Data,Inquest Exps.,250.00,Non-Staff Expenses,,
04/01/2023,CORONER,Redacted Personal Data,Inquest Exps.,250.00,Non-Staff Expenses,,
04/01/2023,CORONER,Redacted Personal Data,Inquest Exps.,250.00,Non-Staff Expenses,,
04/01/2023,CORONER,Redacted Personal Data,Inquest Exps.,250.00,Non-Staff Expenses,,
04/01/2023,CORONER,Redacted Personal Data,Inquest Exps.,280.00,Non-Staff Expenses,,
04/01/2023,CORONER,Redacted Personal Data,Inquest Exps.,280.00,Non-Staff Expenses,,
04/01/2023,CORONER,Redacted Personal Data,Inquest Exps.,250.00,Non-Staff Expenses,,
04/01/2023,CORONER,Redacted Personal Data,Inquest Exps.,250.00,Non-Staff Expenses,,
04/01/2023,CORONER,Redacted Personal Data,Inquest Exps.,280.00,Non-Staff Expenses,,
04/01/2023,CORONER,Redacted Personal Data,Inquest Exps.,250.00,Non-Staff Expenses,,
04/01/2023,CORONER,Redacted Personal Data,Inquest Exps.,"1,080.00",Coroners,,
04/01/2023,CORONER,Redacted Personal Data,Inquest Exps.,250.00,Non-Staff Expenses,,
04/01/2023,CORONER,Redacted Personal Data,Inquest Exps.,280.00,Non-Staff Expenses,,
04/01/2023,NE PERSONAL BUDG P16,Redacted Personal Data,Agency Placement Expenditure,378.00,Adult direct payment,,
04/01/2023,CORONER,Redacted Personal Data,Inquest Exps.,250.00,Non-Staff Expenses,,
04/01/2023,CORONER,Redacted Personal Data,Inquest Exps.,250.00,Non-Staff Expenses,,
04/01/2023,CORONER,Redacted Personal Data,Inquest Exps.,250.00,Non-Staff Expenses,,
04/01/2023,SE CWD NON-LAC CARE,Redacted Personal Data,Direct Payments - Carers of Disabled Children,"1,078.52",Individual - NEC,,
04/01/2023,CORONER,Redacted Personal Data,Inquest Exps.,280.00,Non-Staff Expenses,,
04/01/2023,CORONER,Redacted Personal Data,Inquest Exps.,250.00,Non-Staff Expenses,,
04/01/2023,CORONER,Redacted Personal Data,Inquest Exps.,280.00,Non-Staff Expenses,,
04/01/2023,CORONER,Redacted Personal Data,Inquest Exps.,250.00,Non-Staff Expenses,,
04/01/2023,CORONER,Redacted Personal Data,Inquest Exps.,250.00,Non-Staff Expenses,,
04/01/2023,CORONER,Redacted Personal Data,Inquest Exps.,250.00,Non-Staff Expenses,,
04/01/2023,CORONER,Redacted Personal Data,Inquest Exps.,250.00,Non-Staff Expenses,,
04/01/2023,CORONER,Redacted Personal Data,Inquest Exps.,250.00,Non-Staff Expenses,,
04/01/2023,PERSONAL BUDGET(SE),Redacted Personal Data,Agency Placement Expenditure,279.05,Adult direct payment,,
04/01/2023,CORONER,Redacted Personal Data,Inquest Exps.,280.00,Non-Staff Expenses,,
04/01/2023,CORONER,Redacted Personal Data,Inquest Exps.,250.00,Non-Staff Expenses,,
04/01/2023,CORONER,Redacted Personal Data,Inquest Exps.,250.00,Non-Staff Expenses,,
04/01/2023,CORONER,Redacted Personal Data,Inquest Exps.,250.00,Non-Staff Expenses,,
04/01/2023,CORONER,Redacted Personal Data,Inquest Exps.,250.00,Non-Staff Expenses,,
04/01/2023,CORONER,Redacted Personal Data,Inquest Exps.,250.00,Non-Staff Expenses,,
04/01/2023,CORONER,Redacted Personal Data,Inquest Exps.,250.00,Non-Staff Expenses,,
04/01/2023,CORONER,Redacted Personal Data,Inquest Exps.,280.00,Non-Staff Expenses,,
04/01/2023,CORONER,Redacted Personal Data,Inquest Exps.,250.00,Non-Staff Expenses,,
04/01/2023,PERSONAL BUDGET(SE),Redacted Personal Data,Agency Placement Expenditure,"6,510.04",Adult direct payment,,
04/01/2023,CORONER,Redacted Personal Data,Inquest Exps.,280.00,Non-Staff Expenses,,
04/01/2023,CORONER,Redacted Personal Data,Inquest Exps.,280.00,Non-Staff Expenses,,
04/01/2023,CORONER,Redacted Personal Data,Inquest Exps.,250.00,Non-Staff Expenses,,
04/01/2023,CORONER,Redacted Personal Data,Inquest Exps.,250.00,Non-Staff Expenses,,
04/01/2023,CORONER,Redacted Personal Data,Inquest Exps.,250.00,Non-Staff Expenses,,
04/01/2023,CORONER,Redacted Personal Data,Inquest Exps.,250.00,Non-Staff Expenses,,
04/01/2023,CORONER,Redacted Personal Data,Inquest Exps.,250.00,Non-Staff Expenses,,
04/01/2023,CORONER,Redacted Personal Data,Inquest Exps.,250.00,Non-Staff Expenses,,
04/01/2023,PERSONAL BUDGET (NE),Redacted Personal Data,Agency Placement Expenditure,509.91,Adult direct payment,,
04/01/2023,CORONER,Redacted Personal Data,Inquest Exps.,250.00,Non-Staff Expenses,,
04/01/2023,CORONER,Redacted Personal Data,Inquest Exps.,250.00,Non-Staff Expenses,,
04/01/2023,CORONER,Redacted Personal Data,Inquest Exps.,250.00,Non-Staff Expenses,,
04/01/2023,NE PERSONAL BUDG P16,Redacted Personal Data,Agency Placement Expenditure,567.28,Adult direct payment,,
04/01/2023,CORONER,Redacted Personal Data,Inquest Exps.,250.00,Non-Staff Expenses,,
04/01/2023,CORONER,Redacted Personal Data,Inquest Exps.,250.00,Non-Staff Expenses,,
04/01/2023,SEND PRINCIPAL PRACT,Redacted Personal Data,Compensation and Ex-Gratia,400.00,Non Trade,,
04/01/2023,PERSONAL BUDGET (SW),Redacted Personal Data,Agency Placement Expenditure,286.34,Adult direct payment,,
04/01/2023,PERSONAL BUDGET (SW),Redacted Personal Data,Agency Placement Expenditure,"2,903.67",Adult direct payment,,
04/01/2023,CORONER,Redacted Personal Data,Inquest Exps.,280.00,Non-Staff Expenses,,
04/01/2023,CORONER,Redacted Personal Data,Inquest Exps.,250.00,Non-Staff Expenses,,
04/01/2023,CORONER,Redacted Personal Data,Inquest Exps.,250.00,Non-Staff Expenses,,
04/01/2023,CORONER,Redacted Personal Data,Inquest Exps.,250.00,Non-Staff Expenses,,
04/01/2023,CORONER,Redacted Personal Data,Inquest Exps.,280.00,Non-Staff Expenses,,
04/01/2023,CORONER,Redacted Personal Data,Inquest Exps.,250.00,Non-Staff Expenses,,
04/01/2023,CORONER,Redacted Personal Data,Inquest Exps.,250.00,Non-Staff Expenses,,
04/01/2023,PERSONAL BUDGET(SE),Redacted Personal Data,Agency Placement Expenditure,"1,271.27",Adult direct payment,,
04/01/2023,LD-AUT CNTR TM CARE,Redacted Personal Data,Direct Payments - Independent Sector,"1,152.39",Adult direct payment,,
04/01/2023,PERSONAL BUDGET(SE),Redacted Personal Data,Agency Placement Expenditure,"12,242.52",Adult direct payment,,
04/01/2023,CORONER,Redacted Personal Data,Inquest Exps.,250.00,Non-Staff Expenses,,
04/01/2023,CORONER,Redacted Personal Data,Inquest Exps.,280.00,Non-Staff Expenses,,
04/01/2023,NE PERSONAL BUDG P16,Redacted Personal Data,Agency Placement Expenditure,"1,284.24",Adult direct payment,,
04/01/2023,CORONER,Redacted Personal Data,Inquest Exps.,280.00,Non-Staff Expenses,,
04/01/2023,CORONER,Redacted Personal Data,Inquest Exps.,280.00,Non-Staff Expenses,,
04/01/2023,CORONER,Redacted Personal Data,Inquest Exps.,250.00,Non-Staff Expenses,,
04/01/2023,CORONER,Redacted Personal Data,Inquest Exps.,250.00,Non-Staff Expenses,,
04/01/2023,CORONER,Redacted Personal Data,Inquest Exps.,280.00,Non-Staff Expenses,,
04/01/2023,CORONER,Redacted Personal Data,Inquest Exps.,250.00,Non-Staff Expenses,,
04/01/2023,CORONER,Redacted Personal Data,Inquest Exps.,250.00,Non-Staff Expenses,,
04/01/2023,CORONER,Redacted Personal Data,Inquest Exps.,250.00,Non-Staff Expenses,,
04/01/2023,CORONER,Redacted Personal Data,Inquest Exps.,250.00,Non-Staff Expenses,,
04/01/2023,CORONER,Redacted Personal Data,Inquest Exps.,250.00,Non-Staff Expenses,,
04/01/2023,CORONER,Redacted Personal Data,Inquest Exps.,280.00,Non-Staff Expenses,,
04/01/2023,CORONER,Redacted Personal Data,Inquest Exps.,280.00,Non-Staff Expenses,,
04/01/2023,CORONER,Redacted Personal Data,Inquest Exps.,250.00,Non-Staff Expenses,,
04/01/2023,CORONER,Redacted Personal Data,Inquest Exps.,250.00,Non-Staff Expenses,,
04/01/2023,PERSONAL BUDGET (SW),Redacted Personal Data,Agency Placement Expenditure,"4,142.85",Invoicing Plan Req.,,
04/01/2023,CORONER,Redacted Personal Data,Inquest Exps.,250.00,Non-Staff Expenses,,
04/01/2023,CORONER,Redacted Personal Data,Inquest Exps.,280.00,Non-Staff Expenses,,
04/01/2023,PERSONAL BUDGET (NW),Redacted Personal Data,Agency Placement Expenditure,"1,168.47",Adult direct payment,,
04/01/2023,CORONER,Redacted Personal Data,Inquest Exps.,250.00,Non-Staff Expenses,,
04/01/2023,CORONER,Redacted Personal Data,Inquest Exps.,280.00,Non-Staff Expenses,,
04/01/2023,CORONER,Redacted Personal Data,Inquest Exps.,250.00,Non-Staff Expenses,,
04/01/2023,CORONER,Redacted Personal Data,Inquest Exps.,250.00,Non-Staff Expenses,,
04/01/2023,CORONER,Redacted Personal Data,Inquest Exps.,250.00,Non-Staff Expenses,,
04/01/2023,NE PERSONAL BUDG P16,Redacted Personal Data,Agency Placement Expenditure,"1,385.33",Adult direct payment,,
04/01/2023,CORONER,Redacted Personal Data,Inquest Exps.,250.00,Non-Staff Expenses,,
04/01/2023,CORONER,Redacted Personal Data,Inquest Exps.,250.00,Non-Staff Expenses,,
04/01/2023,SE PERSONAL BUDG P16,Redacted Personal Data,Agency Placement Expenditure,"3,594.70",Adult direct payment,,
04/01/2023,CORONER,Redacted Personal Data,Inquest Exps.,250.00,Non-Staff Expenses,,
04/01/2023,CORONER,Redacted Personal Data,Inquest Exps.,250.00,Non-Staff Expenses,,
04/01/2023,CORONER,Redacted Personal Data,Inquest Exps.,250.00,Non-Staff Expenses,,
04/01/2023,CORONER,Redacted Personal Data,Inquest Exps.,250.00,Non-Staff Expenses,,
04/01/2023,CORONER,Redacted Personal Data,Inquest Exps.,250.00,Non-Staff Expenses,,
04/01/2023,NW CARE - CARE LVRS,Redacted Personal Data,Non-Staff Related Transport Costs,412.00,Invoicing Plan Req.,,
04/01/2023,CORONER,Redacted Personal Data,Inquest Exps.,250.00,Non-Staff Expenses,,
04/01/2023,CORONER,Redacted Personal Data,Inquest Exps.,250.00,Non-Staff Expenses,,
04/01/2023,CORONER,Redacted Personal Data,Inquest Exps.,280.00,Non-Staff Expenses,,
04/01/2023,PERSONAL BUDGET (SW),Redacted Personal Data,Agency Placement Expenditure,"4,387.74",Adult direct payment,,
04/01/2023,CORONER,Redacted Personal Data,Inquest Exps.,250.00,Non-Staff Expenses,,
04/01/2023,CORONER,Redacted Personal Data,Inquest Exps.,250.00,Non-Staff Expenses,,
04/01/2023,CORONER,Redacted Personal Data,Inquest Exps.,250.00,Non-Staff Expenses,,
04/01/2023,PLD TRANSITION,Redacted Personal Data,Direct Payments - Independent Sector,"1,978.58",Adult direct payment,,
04/01/2023,CORONER,Redacted Personal Data,Inquest Exps.,250.00,Non-Staff Expenses,,
04/01/2023,CORONER,Redacted Personal Data,Inquest Exps.,280.00,Non-Staff Expenses,,
04/01/2023,CORONER,Redacted Personal Data,Inquest Exps.,280.00,Non-Staff Expenses,,
04/01/2023,CORONER,Redacted Personal Data,Inquest Exps.,280.00,Non-Staff Expenses,,
04/01/2023,CORONER,Redacted Personal Data,Inquest Exps.,280.00,Non-Staff Expenses,,
04/01/2023,CORONER,Redacted Personal Data,Inquest Exps.,280.00,Non-Staff Expenses,,
04/01/2023,CORONER,Redacted Personal Data,Inquest Exps.,250.00,Non-Staff Expenses,,
04/01/2023,CORONER,Redacted Personal Data,Inquest Exps.,250.00,Non-Staff Expenses,,
04/01/2023,CORONER,Redacted Personal Data,Inquest Exps.,280.00,Non-Staff Expenses,,
04/01/2023,CORONER,Redacted Personal Data,Inquest Exps.,250.00,Non-Staff Expenses,,
04/01/2023,CORONER,Redacted Personal Data,Inquest Exps.,280.00,Non-Staff Expenses,,
04/01/2023,CORONER,Redacted Personal Data,Inquest Exps.,"2,430.00",Coroners,,
04/01/2023,SW CWD NON-LAC CARE,Redacted Personal Data,Direct Payments - Carers of Disabled Children,"1,520.38",Adult direct payment,,
04/01/2023,CORONER,Redacted Personal Data,Inquest Exps.,250.00,Non-Staff Expenses,,
04/01/2023,CORONER,Redacted Personal Data,Inquest Exps.,280.00,Non-Staff Expenses,,
04/01/2023,CORONER,Redacted Personal Data,Inquest Exps.,"1,123.30",Coroners,,
04/01/2023,CORONER,Redacted Personal Data,Inquest Exps.,280.00,Non-Staff Expenses,,
04/01/2023,CORONER,Redacted Personal Data,Inquest Exps.,250.00,Non-Staff Expenses,,
04/01/2023,CORONER,Redacted Personal Data,Inquest Exps.,250.00,Non-Staff Expenses,,
04/01/2023,CORONER,Redacted Personal Data,Inquest Exps.,250.00,Non-Staff Expenses,,
04/01/2023,CORONER,Redacted Personal Data,Inquest Exps.,280.00,Non-Staff Expenses,,
04/01/2023,CORONER,Redacted Personal Data,Inquest Exps.,250.00,Non-Staff Expenses,,
04/01/2023,CORONER,Redacted Personal Data,Inquest Exps.,250.00,Non-Staff Expenses,,
04/01/2023,CORONER,Redacted Personal Data,Inquest Exps.,250.00,Non-Staff Expenses,,
04/01/2023,CORONER,Redacted Personal Data,Inquest Exps.,250.00,Non-Staff Expenses,,
04/01/2023,NW CWD NON-LAC CARE,Redacted Personal Data,Direct Payments - Carers of Disabled Children,656.26,Individual - NEC,,
04/01/2023,CORONER,Redacted Personal Data,Inquest Exps.,280.00,Non-Staff Expenses,,
04/01/2023,RUNNYMEDE CARE OP,Rodwell Farm Nursing Home,Extra Care Housing,"1,519.04",Residential - LD,,
04/01/2023,NW AGENCY PLACE-ED,Serenity School Coulsdon Ltd,Agency Placement Expenditure,"4,894.51",SEND Agncy Placement,,
04/01/2023,SE AGENCY PLACE-ED,Serenity School Coulsdon Ltd,Agency Placement Expenditure,"7,097.05",SEND Agncy Placement,,
04/01/2023,SE AGENCY/SPI P16-ED,Serenity School Coulsdon Ltd,Agency Placement Expenditure,"4,894.51",SEND Agncy Placement,,
04/01/2023,SE AGENCY/SPI P16-ED,Serenity School Coulsdon Ltd,Agency Placement Expenditure,"4,894.51",SEND Agncy Placement,,
04/01/2023,SE AGENCY/SPI P16-ED,Serenity School Coulsdon Ltd,Agency Placement Expenditure,"4,894.51",SEND Agncy Placement,,
04/01/2023,SE AGENCY PLACE-ED,Serenity School Coulsdon Ltd,Agency Placement Expenditure,"7,219.53",SEND Agncy Placement,,
04/01/2023,NW AGENCY PLACE-ED,Serenity School Coulsdon Ltd,Agency Placement Expenditure,"7,097.04",SEND Agncy Placement,,
04/01/2023,SE AGENCY PLACE-ED,Serenity School Coulsdon Ltd,Agency Placement Expenditure,"7,097.04",SEND Agncy Placement,,
04/01/2023,NE AGENCY PLACE-ED,Serenity School Coulsdon Ltd,Agency Placement Expenditure,"7,097.04",SEND Agncy Placement,,
04/01/2023,SE AGENCY/SPI P16-ED,Serenity School Coulsdon Ltd,Agency Placement Expenditure,"4,987.51",SEND Agncy Placement,,
04/01/2023,CORONER,Sujatha Balija,Inquest Exps.,250.00,Coroners,,
04/01/2023,CORONER,Sujatha Balija,Inquest Exps.,250.00,Coroners,,
04/01/2023,CORONER,Sujatha Balija,Inquest Exps.,250.00,Coroners,,
04/01/2023,CORONER,Sujatha Balija,Inquest Exps.,250.00,Coroners,,
04/01/2023,CORONER,Sujatha Balija,Inquest Exps.,250.00,Coroners,,
04/01/2023,CORONER,Sujatha Balija,Inquest Exps.,250.00,Coroners,,
04/01/2023,CORONER,Sujatha Balija,Inquest Exps.,250.00,Coroners,,
04/01/2023,CORONER,Sujatha Balija,Inquest Exps.,250.00,Coroners,,
04/01/2023,CORONER,Sujatha Balija,Inquest Exps.,250.00,Coroners,,
04/01/2023,CORONER,Sujatha Balija,Inquest Exps.,250.00,Coroners,,
04/01/2023,CORONER,Sujatha Balija,Inquest Exps.,250.00,Coroners,,
04/01/2023,CORONER,Sujatha Balija,Inquest Exps.,250.00,Coroners,,
04/01/2023,CORONER,Sujatha Balija,Inquest Exps.,250.00,Coroners,,
04/01/2023,CORONER,Sujatha Balija,Inquest Exps.,250.00,Coroners,,
04/01/2023,CORONER,Sujatha Balija,Inquest Exps.,250.00,Coroners,,
04/01/2023,CORONER,Sujatha Balija,Inquest Exps.,250.00,Coroners,,
04/01/2023,CORONER,Sujatha Balija,Inquest Exps.,250.00,Coroners,,
04/01/2023,CORONER,Sujatha Balija,Inquest Exps.,250.00,Coroners,,
04/01/2023,CORONER,Sujatha Balija,Inquest Exps.,250.00,Coroners,,
04/01/2023,CORONER,Sujatha Balija,Inquest Exps.,250.00,Coroners,,
04/01/2023,SPELTHORNE CARE OP,Sunbury Nursing Homes Ltd,Nursing,"1,837.71",Residential - LD,,
04/01/2023,REIGATE & BD CARE OP,Surrey Social Care Professionals Lt,Home Base Care,"1,251.04",Dom Care - Adults,,
04/01/2023,Government ,Teachers Pensions,Pensions,"3,563.99",Pensions,,
04/01/2023,Government ,Teachers Pensions,Pensions,"8,915.39",Pensions,,
04/01/2023,NW AGENCY/SPI P16-ED,The Orpheus Centre,Agency Placement Expenditure,"3,065.71",Supp Living - MH,,
04/01/2023,NE AGENCY/SPI P16-ED,The Orpheus Centre,Agency Placement Expenditure,"2,915.98",Supp Living - MH,,
04/01/2023,SW AGENCY/SPI P16-ED,The Orpheus Centre,Agency Placement Expenditure,"3,031.71",Supp Living - MH,,
04/01/2023,SE AGENCY/SPI P16-ED,The Orpheus Centre,Agency Placement Expenditure,"2,863.14",Supp Living - MH,,
04/01/2023,NE AGENCY/SPI P16-ED,The Orpheus Centre,Agency Placement Expenditure,"3,338.17",Supp Living - MH,,
04/01/2023,SE AGENCY/SPI P16-ED,The Orpheus Centre,Agency Placement Expenditure,"3,071.43",Supp Living - MH,,
04/01/2023,SE AGENCY/SPI P16-ED,The Orpheus Centre,Agency Placement Expenditure,"2,966.93",Supp Living - MH,,
04/01/2023,NE AGENCY/SPI P16-ED,The Orpheus Centre,Agency Placement Expenditure,"3,926.07",Supp Living - MH,,
04/01/2023,SE AGENCY/SPI P16-ED,The Orpheus Centre,Agency Placement Expenditure,"2,966.93",Supp Living - MH,,
04/01/2023,SE AGENCY/SPI P16-ED,The Orpheus Centre,Agency Placement Expenditure,"3,421.48",Supp Living - MH,,
04/01/2023,SE AGENCY/SPI P16-ED,The Orpheus Centre,Agency Placement Expenditure,"3,192.47",Supp Living - MH,,
04/01/2023,NE AGENCY/SPI P16-ED,The Orpheus Centre,Agency Placement Expenditure,"3,249.38",Supp Living - MH,,
04/01/2023,NE AGENCY/SPI P16-ED,The Orpheus Centre,Agency Placement Expenditure,"2,804.50",Supp Living - MH,,
04/01/2023,SE AGENCY/SPI P16-ED,The Orpheus Centre,Agency Placement Expenditure,"3,011.72",Supp Living - MH,,
04/01/2023,FEASIBILTY FUND -SCH,Thorncliffe Communications Ltd,Fees,"7,983.64",Org & Bus Consult,,
04/01/2023,FEASIBILTY FUND -SCH,Thorncliffe Communications Ltd,Fees,"7,837.97",Org & Bus Consult,,
04/01/2023,PLD TRANSITION,Time For You PA Services,Supported Living,864.00,Supp Living - LD,,
04/01/2023,PLD TRANSITION,Time For You PA Services,Supported Living,864.00,Supp Living - LD,,
04/01/2023,PLD TRANSITION,Time For You PA Services,Supported Living,348.00,Supp Living - LD,,
04/01/2023,PLD TRANSITION,Time For You PA Services,Supported Living,864.00,Supp Living - LD,,
04/01/2023,LD-AUT CNTR TM CARE,Tinkers Hatch,Residential,"1,059.91",Residential - MH,,
04/01/2023,REIGATE & BD CARE OP,Triple Care Healthcare Services,Home Base Care,588.56,Dom Care - Adults,,
04/01/2023,WAVERLEY CARE OP,Triple Care Healthcare Services,Home Base Care,496.68,Dom Care - Adults,,
04/01/2023,TANDRIDGE CARE OP,Triple Care Healthcare Services,Home Base Care,538.30,Dom Care - Adults,,
04/01/2023,WAVERLEY CARE OP,Triple Care Healthcare Services,Home Base Care,579.46,Dom Care - Adults,,
04/01/2023,MOLE VALL CMHRS CARE,Triple Care Healthcare Services,Home Base Care,805.44,Dom Care - Adults,,
04/01/2023,REIGATE & BD CARE PD,Triple Care Healthcare Services,Home Base Care,"3,363.36",Dom Care - Adults,,
04/01/2023,TANDRIDGE CARE OP,Triple Care Healthcare Services,Home Base Care,593.79,Dom Care - Adults,,
04/01/2023,MOLE VALLEY CARE OP,Triple Care Healthcare Services,Home Base Care,343.00,Dom Care - Adults,,
04/01/2023,REIGATE & BD CARE PD,Triple Care Healthcare Services,Home Base Care,"1,372.00",Dom Care - Adults,,
04/01/2023,TANDRIDGE CARE OP,Triple Care Healthcare Services,Home Base Care,714.68,Dom Care - Adults,,
04/01/2023,WAVERLEY CARE OP,Triple Care Healthcare Services,Home Base Care,"1,508.08",Dom Care - Adults,,
04/01/2023,REIGATE & BD CARE OP,Triple Care Healthcare Services,Home Base Care,681.85,Dom Care - Adults,,
04/01/2023,WAVERLEY CARE OP,Triple Care Healthcare Services,Home Base Care,754.04,Dom Care - Adults,,
04/01/2023,WAVERLEY CARE OP,Triple Care Healthcare Services,Home Base Care,"1,619.52",Dom Care - Adults,,
04/01/2023,LD-AUT CNTR TM CARE,Triple Care Healthcare Services,Home Base Care,"2,014.08",Dom Care - Adults,,
04/01/2023,TANDRIDGE CARE PD,Triple Care Healthcare Services,Home Base Care,"2,181.92",Dom Care - Adults,,
04/01/2023,TANDRIDGE CARE OP,Triple Care Healthcare Services,Home Base Care,"1,810.76",Dom Care - Adults,,
04/01/2023,TANDRIDGE CARE OP,Triple Care Healthcare Services,Home Base Care,615.42,Dom Care - Adults,,
04/01/2023,WAVERLEY CARE OP,Triple Care Healthcare Services,Home Base Care,523.74,Dom Care - Adults,,
04/01/2023,WAVERLEY CARE OP,Triple Care Healthcare Services,Home Base Care,"1,619.52",Dom Care - Adults,,
04/01/2023,REIGATE & BD CARE OP,Triple Care Healthcare Services,Home Base Care,252.24,Dom Care - Adults,,
04/01/2023,TANDRIDGE CARE PD,Triple Care Healthcare Services,Home Base Care,"1,806.60",Dom Care - Adults,,
04/01/2023,TANDRIDGE CARE PD,Triple Care Healthcare Services,Home Base Care,"1,250.06",Dom Care - Adults,,
04/01/2023,TANDRIDGE CARE OP,Triple Care Healthcare Services,Home Base Care,612.78,Dom Care - Adults,,
04/01/2023,MOLE VALLEY CARE OP,Triple Care Healthcare Services,Home Base Care,"1,617.56",Dom Care - Adults,,
04/01/2023,MOLE VALLEY CARE OP,Triple Care Healthcare Services,Home Base Care,612.50,Dom Care - Adults,,
04/01/2023,WAVERLEY CARE OP,Triple Care Healthcare Services,Home Base Care,498.80,Dom Care - Adults,,
04/01/2023,FEASIBILITY FUNDING,Turner & Townsend Project Managemen,Fees,"1,390.88",M-D (Property),,
04/01/2023,FEASIBILITY FUNDING,UK Power Networks Ltd,Fees,"79,902.56",Utilities - Gas,,
04/01/2023,EIF 3 & 4 YR OLD,Wonderbloom Nursery,Third Party Payments-Other Agencies,500.00,Nursery,,
05/01/2023,ACTIVE SURREY,Age Concern Surrey Heath,Grants-Third Sector and Voluntary Orgs/Charities,"1,484.00",Grants-Member Allocs,,
05/01/2023,MALLOW CS DMHS 25-30,Alarm Radio Monitoring Ltd,Equipment,283.20,Security Equipment,,
05/01/2023,EPSOM & EWELL CARE O,Alma Care Uk Ltd,Home Base Care,402.00,Dom Care - Adults,,
05/01/2023,LD-AUT CNTR TM CARE,Alma Care Uk Ltd,Home Base Care,"1,893.64",Dom Care - Adults,,
05/01/2023,LD-AUT CNTR TM CARE,Alma Care Uk Ltd,Home Base Care,"1,893.64",Dom Care - Adults,,
05/01/2023,LD-AUT CNTR TM CARE,Alma Care Uk Ltd,Home Base Care,"2,873.50",Dom Care - Adults,,
05/01/2023,WAVERLEY CARE OP,Angel Touch Care Agency,Home Base Care,498.68,Dom Care - Adults,,
05/01/2023,WAVERLEY CARE PD,Angel Touch Care Agency,Home Base Care,410.83,Dom Care - Adults,,
05/01/2023,WAVERLEY CARE OP,Angel Touch Care Agency,Home Base Care,436.67,Dom Care - Adults,,
05/01/2023,GUILDFORD CARE OP,Angel Touch Care Agency,Home Base Care,253.01,Dom Care - Adults,,
05/01/2023,WAVERLEY CARE OP,Angel Touch Care Agency,Home Base Care,633.92,Dom Care - Adults,,
05/01/2023,WAVERLEY CARE OP,Angel Touch Care Agency,Home Base Care,659.35,Dom Care - Adults,,
05/01/2023,WAVERLEY CARE PD,Angel Touch Care Agency,Home Base Care,365.55,Dom Care - Adults,,
05/01/2023,WAVERLEY CARE OP,Angel Touch Care Agency,Home Base Care,470.06,Dom Care - Adults,,
05/01/2023,WAVERLEY CARE OP,Angel Touch Care Agency,Home Base Care,"1,680.23",Dom Care - Adults,,
05/01/2023,GUILDFORD CARE OP,Angel Touch Care Agency,Home Base Care,459.26,Dom Care - Adults,,
05/01/2023,WAVERLEY CARE OP,Angel Touch Care Agency,Home Base Care,478.99,Dom Care - Adults,,
05/01/2023,LD-AUT CNTR TM CARE,Anvil Court,Extra Care Housing,"1,400.00",Residential - LD,,
05/01/2023,GUILDFORD CARE OP,Around The Clock Care Agency Ltd,Home Base Care,"1,768.76",Residential - OP,,
05/01/2023,WAVERLEY CARE OP,Around The Clock Care Agency Ltd,Home Base Care,"1,768.76",Residential - OP,,
05/01/2023,GUILDFORD CARE OP,Around The Clock Care Agency Ltd,Home Base Care,252.00,Residential - OP,,
05/01/2023,WAVERLEY CARE OP,Around The Clock Care Agency Ltd,Home Base Care,523.60,Residential - OP,,
05/01/2023,GUILDFORD CARE OP,Around The Clock Care Agency Ltd,Home Base Care,588.84,Residential - OP,,
05/01/2023,WAVERLEY CARE OP,Around The Clock Care Agency Ltd,Home Base Care,621.60,Residential - OP,,
05/01/2023,WAVERLEY CARE OP,Around The Clock Care Agency Ltd,Home Base Care,374.00,Residential - OP,,
05/01/2023,GUILDFORD CARE OP,Around The Clock Care Agency Ltd,Home Base Care,662.76,Residential - OP,,
05/01/2023,WAVERLEY CARE OP,Around The Clock Care Agency Ltd,Home Base Care,"2,016.00",Residential - OP,,
05/01/2023,WAVERLEY CARE OP,Around The Clock Care Agency Ltd,Home Base Care,488.40,Residential - OP,,
05/01/2023,SURREY HEATH CARE PD,Around The Clock Care Agency Ltd,Home Base Care,994.00,Residential - OP,,
05/01/2023,SURREY HEATH CARE PD,Around The Clock Care Agency Ltd,Home Base Care,"7,253.40",Residential - OP,,
05/01/2023,GUILDFORD CARE OP,Around The Clock Care Agency Ltd,Home Base Care,"1,768.76",Residential - OP,,
05/01/2023,SURREY HEATH CARE OP,Around The Clock Care Agency Ltd,Home Base Care,"1,914.36",Residential - OP,,
05/01/2023,GUILDFORD CMHRS CARE,Around The Clock Care Agency Ltd,Home Base Care,444.00,Residential - OP,,
05/01/2023,WAVERLEY CARE OP,Around The Clock Care Agency Ltd,Home Base Care,621.60,Residential - OP,,
05/01/2023,SURREY HEATH CARE OP,Around The Clock Care Agency Ltd,Home Base Care,"1,064.00",Residential - OP,,
05/01/2023,SURREY HEATH CARE OP,Around The Clock Care Agency Ltd,Home Base Care,"1,484.00",Residential - OP,,
05/01/2023,MOLE VALLEY CARE PD,Around The Clock Care Agency Ltd,Home Base Care,378.54,Residential - OP,,
05/01/2023,GUILDFORD CARE OP,Around The Clock Care Agency Ltd,Home Base Care,714.00,Residential - OP,,
05/01/2023,MOLE VALLEY CARE PD,Around The Clock Care Agency Ltd,Home Base Care,"1,768.76",Residential - OP,,
05/01/2023,GUILDFORD CARE OP,Around The Clock Care Agency Ltd,Home Base Care,"1,768.76",Residential - OP,,
05/01/2023,SURREY HEATH CARE OP,Around The Clock Care Agency Ltd,Home Base Care,252.00,Residential - OP,,
05/01/2023,WAVERLEY CARE OP,Around The Clock Care Agency Ltd,Home Base Care,"1,656.00",Residential - OP,,
05/01/2023,GUILDFORD CARE OP,Around The Clock Care Agency Ltd,Home Base Care,584.88,Residential - OP,,
05/01/2023,GUILDFORD CARE OP,Around The Clock Care Agency Ltd,Home Base Care,"1,932.00",Residential - OP,,
05/01/2023,SURREY HEATH CARE OP,Around The Clock Care Agency Ltd,Home Base Care,"1,932.00",Residential - OP,,
05/01/2023,GUILDFORD CARE PD,Around The Clock Care Agency Ltd,Home Base Care,379.02,Residential - OP,,
05/01/2023,SEN TRANSPORT,Ashford Childrens Care Ltd,Hire of Vehicles,"1,440.00",Sup Living Children,,
05/01/2023,WAVERLEY CARE OP,Astor Care & Nursing Agency,Home Base Care,748.90,Dom Care - Adults,,
05/01/2023,LD-AUT CNTR TM CARE,Astor Care & Nursing Agency,Home Base Care,291.80,Dom Care - Adults,,
05/01/2023,LD-AUT CNTR TM CARE,Astor Care & Nursing Agency,Home Base Care,250.80,Dom Care - Adults,,
05/01/2023,GUILDFORD CARE OP,Astor Care & Nursing Agency,Home Base Care,414.40,Dom Care - Adults,,
05/01/2023,GUILDFORD CARE OP,Astor Care & Nursing Agency,Home Base Care,413.80,Dom Care - Adults,,
05/01/2023,RUNNYMEDE CARE PD,Astor Care & Nursing Agency,Home Base Care,"1,536.15",Dom Care - Adults,,
05/01/2023,WAVERLEY CARE OP,Astor Care & Nursing Agency,Home Base Care,355.60,Dom Care - Adults,,
05/01/2023,WAVERLEY CARE OP,Astor Care & Nursing Agency,Home Base Care,"2,527.00",Dom Care - Adults,,
05/01/2023,WAVERLEY CARE OP,Astor Care & Nursing Agency,Home Base Care,914.40,Dom Care - Adults,,
05/01/2023,WOKING CARE OP,Astor Care & Nursing Agency,Home Base Care,315.30,Dom Care - Adults,,
05/01/2023,GUILDFORD CARE OP,Astor Care & Nursing Agency,Home Base Care,499.34,Dom Care - Adults,,
05/01/2023,WAVERLEY CARE OP,Astor Care & Nursing Agency,Home Base Care,656.58,Dom Care - Adults,,
05/01/2023,LD-AUT CNTR TM CARE,Astor Care & Nursing Agency,Home Base Care,318.00,Dom Care - Adults,,
05/01/2023,WAVERLEY CARE OP,Astor Care & Nursing Agency,Home Base Care,"1,699.40",Dom Care - Adults,,
05/01/2023,GUILDFORD CARE PD,Astor Care & Nursing Agency,Home Base Care,355.60,Dom Care - Adults,,
05/01/2023,WAVERLEY CARE OP,Astor Care & Nursing Agency,Home Base Care,677.90,Dom Care - Adults,,
05/01/2023,GUILDFORD CARE PD,Astor Care & Nursing Agency,Home Base Care,566.80,Dom Care - Adults,,
05/01/2023,WAVERLEY CARE OP,Astor Care & Nursing Agency,Home Base Care,711.20,Dom Care - Adults,,
05/01/2023,GUILDFORD CARE PD,Astor Care & Nursing Agency,Home Base Care,503.20,Dom Care - Adults,,
05/01/2023,WOKING CARE PD,Astor Care & Nursing Agency,Home Base Care,384.20,Dom Care - Adults,,
05/01/2023,WAVERLEY CARE OP,Astor Care & Nursing Agency,Home Base Care,"1,108.60",Dom Care - Adults,,
05/01/2023,GUILDFORD CARE OP,Astor Care & Nursing Agency,Home Base Care,578.90,Dom Care - Adults,,
05/01/2023,WAVERLEY CARE OP,Astor Care & Nursing Agency,Home Base Care,431.80,Dom Care - Adults,,
05/01/2023,WOKING CARE OP,Astor Care & Nursing Agency,Home Base Care,"1,562.40",Dom Care - Adults,,
05/01/2023,WAVERLEY CARE OP,Astor Care & Nursing Agency,Home Base Care,421.80,Dom Care - Adults,,
05/01/2023,WAVERLEY CARE OP,Astor Care & Nursing Agency,Home Base Care,336.70,Dom Care - Adults,,
05/01/2023,WAVERLEY CARE OP,Astor Care & Nursing Agency,Home Base Care,332.50,Dom Care - Adults,,
05/01/2023,GUILDFORD CARE OP,Astor Care & Nursing Agency,Home Base Care,816.10,Dom Care - Adults,,
05/01/2023,WAVERLEY CARE OP,Astor Care & Nursing Agency,Home Base Care,543.90,Dom Care - Adults,,
05/01/2023,GUILDFORD CARE OP,Astor Care & Nursing Agency,Home Base Care,333.72,Dom Care - Adults,,
05/01/2023,WAVERLEY CARE OP,Astor Care & Nursing Agency,Home Base Care,"1,631.84",Dom Care - Adults,,
05/01/2023,WAVERLEY CARE OP,Astor Care & Nursing Agency,Home Base Care,"1,037.64",Dom Care - Adults,,
05/01/2023,WAVERLEY CARE OP,Astor Care & Nursing Agency,Home Base Care,408.50,Dom Care - Adults,,
05/01/2023,GUILDFORD CARE OP,Astor Care & Nursing Agency,Home Base Care,592.20,Dom Care - Adults,,
05/01/2023,WAVERLEY CARE OP,Astor Care & Nursing Agency,Home Base Care,564.35,Dom Care - Adults,,
05/01/2023,WAVERLEY CARE OP,Astor Care & Nursing Agency,Home Base Care,957.20,Dom Care - Adults,,
05/01/2023,GUILDFORD CARE OP,Astor Care & Nursing Agency,Home Base Care,394.20,Dom Care - Adults,,
05/01/2023,WAVERLEY CARE OP,Astor Care & Nursing Agency,Home Base Care,"1,285.76",Dom Care - Adults,,
05/01/2023,WAVERLEY CARE OP,Astor Care & Nursing Agency,Home Base Care,698.50,Dom Care - Adults,,
05/01/2023,WAVERLEY CARE OP,Astor Care & Nursing Agency,Home Base Care,587.58,Dom Care - Adults,,
05/01/2023,WAVERLEY CARE OP,Astor Care & Nursing Agency,Home Base Care,552.00,Dom Care - Adults,,
05/01/2023,WAVERLEY CARE OP,Astor Care & Nursing Agency,Home Base Care,314.05,Dom Care - Adults,,
05/01/2023,SURREY HEATH CARE OP,Astor Care & Nursing Agency,Home Base Care,469.73,Dom Care - Adults,,
05/01/2023,WAVERLEY CARE OP,Astor Care & Nursing Agency,Home Base Care,730.10,Dom Care - Adults,,
05/01/2023,WAVERLEY CARE OP,Astor Care & Nursing Agency,Home Base Care,633.35,Dom Care - Adults,,
05/01/2023,GUILDFORD CARE OP,Astor Care & Nursing Agency,Home Base Care,738.00,Dom Care - Adults,,
05/01/2023,WAVERLEY CARE OP,Astor Care & Nursing Agency,Home Base Care,253.86,Dom Care - Adults,,
05/01/2023,ELMBRIDGE CARE OP,Beeaktive Care Ltd,Home Base Care,784.00,Other Care,,
05/01/2023,ELMBRIDGE CARE PD,Beeaktive Care Ltd,Home Base Care,632.00,Other Care,,
05/01/2023,ELMBRIDGE CARE OP,Beeaktive Care Ltd,Home Base Care,616.00,Other Care,,
05/01/2023,ELMBRIDGE CARE OP,Beeaktive Care Ltd,Home Base Care,588.00,Other Care,,
05/01/2023,ELMBRIDGE CARE OP,Beeaktive Care Ltd,Home Base Care,574.00,Other Care,,
05/01/2023,GUILDFORD CARE OP,Beeaktive Care Ltd,Home Base Care,297.50,Other Care,,
05/01/2023,SURREY HEATH CARE OP,Beeaktive Care Ltd,Home Base Care,252.00,Other Care,,
05/01/2023,SURREY HEATH CARE OP,Beeaktive Care Ltd,Home Base Care,518.00,Other Care,,
05/01/2023,SURREY HEATH CARE PD,Beeaktive Care Ltd,Home Base Care,686.00,Other Care,,
05/01/2023,SURREY HEATH CARE OP,Beeaktive Care Ltd,Home Base Care,728.00,Other Care,,
05/01/2023,PLD TRANSITION,Beeaktive Care Ltd,Home Base Care,569.50,Other Care,,
05/01/2023,SURREY HEATH CARE OP,Beeaktive Care Ltd,Home Base Care,859.00,Other Care,,
05/01/2023,ELMBRIDGE CARE PD,Beeaktive Care Ltd,Home Base Care,327.00,Other Care,,
05/01/2023,SURREY HEATH CARE OP,Beeaktive Care Ltd,Home Base Care,"1,764.00",Other Care,,
05/01/2023,ELMBRIDGE CARE PD,Beeaktive Care Ltd,Home Base Care,"1,568.00",Other Care,,
05/01/2023,ELMBRIDGE CARE OP,Beeaktive Care Ltd,Home Base Care,874.00,Other Care,,
05/01/2023,GUILDFORD CARE OP,Beeaktive Care Ltd,Home Base Care,363.00,Other Care,,
05/01/2023,SURREY HEATH CARE OP,Beeaktive Care Ltd,Home Base Care,304.00,Other Care,,
05/01/2023,ELMBRIDGE CARE PD,Beeaktive Care Ltd,Home Base Care,598.00,Other Care,,
05/01/2023,SURREY HEATH CARE PD,Beeaktive Care Ltd,Home Base Care,"1,792.00",Other Care,,
05/01/2023,ELMBRIDGE CARE OP,Beeaktive Care Ltd,Home Base Care,588.00,Other Care,,
05/01/2023,SUB MISUSE CARE PCKG,Beeaktive Care Ltd,Home Base Care,668.00,Other Care,,
05/01/2023,SURREY HEATH CARE OP,Beeaktive Care Ltd,Home Base Care,939.00,Other Care,,
05/01/2023,SURREY HEATH CARE OP,Beeaktive Care Ltd,Home Base Care,366.00,Other Care,,
05/01/2023,ELMBRIDGE CARE OP,Beeaktive Care Ltd,Home Base Care,468.00,Other Care,,
05/01/2023,SURREY HEATH CARE OP,Beeaktive Care Ltd,Home Base Care,819.00,Other Care,,
05/01/2023,SURREY HEATH CARE OP,Beeaktive Care Ltd,Home Base Care,420.00,Other Care,,
05/01/2023,SURREY HEATH CARE OP,Beeaktive Care Ltd,Home Base Care,420.00,Other Care,,
05/01/2023,SE CWD NON-LAC CARE,Blue Arrow Gatwick Ltd,Hire of Vehicles,684.00,Multi-purpose Veh,,
05/01/2023,SE CWD NON-LAC CARE,Blue Arrow Gatwick Ltd,Coach Escorts Contracted,324.00,Multi-purpose Veh,,
05/01/2023,NW ALTERNATIVE SEN,Change of Scene,Agency Placement Expenditure,330.00,Grants-Member Allocs,,
05/01/2023,SW ALT SEN POST 16,Change of Scene,Agency Placement Expenditure,825.00,Grants-Member Allocs,,
05/01/2023,SW ALTERNATIVE SEN,Change of Scene,Agency Placement Expenditure,825.00,Grants-Member Allocs,,
05/01/2023,NW ALTERNATIVE SEN,Change of Scene,Agency Placement Expenditure,495.00,Grants-Member Allocs,,
05/01/2023,SW ALTERNATIVE SEN,Change of Scene,Agency Placement Expenditure,330.00,Grants-Member Allocs,,
05/01/2023,NW ALTERNATIVE SEN,Children In Motion Ltd,Agency Placement Expenditure,264.80,Occupational Therapy,,
05/01/2023,WAVERLEY CARE PD,Creative Response Arts - Related Se,Other Community Care,290.00,Day Care - PSD,,
05/01/2023,NE ALT SEN POST 16,Redacted Personal Data,Agency Placement Expenditure,720.00,SEND Agncy Placement,,
05/01/2023,ACTIVE SURREY,Dyscover Ltd,Grants-Third Sector and Voluntary Orgs/Charities,"4,640.00",Non Trade,,
05/01/2023,NW ALT SEN POST 16,Edge Disability Consultancy Ltd,Agency Placement Expenditure,"2,160.00",SEN Specialist Supp,,
05/01/2023,SE ALT SEN POST 16,Edge Disability Consultancy Ltd,Agency Placement Expenditure,"1,096.63",SEN Specialist Supp,,
05/01/2023,NE ALT SEN POST 16,Edge Disability Consultancy Ltd,Agency Placement Expenditure,"2,880.00",SEN Specialist Supp,,
05/01/2023,NW AGENCY PLACE-ED,Elysian at Westland Farm,Agency Placement Expenditure,"17,940.00",SEN Specialist Supp,,
05/01/2023,SW AGENCY/SPI P16-ED,Elysian at Westland Farm,Agency Placement Expenditure,"4,914.00",SEN Specialist Supp,,
05/01/2023,SW AGENCY PLACE-ED,Elysian at Westland Farm,Agency Placement Expenditure,"2,964.00",SEN Specialist Supp,,
05/01/2023,NE AGENCY/SPI P16-ED,Elysian at Westland Farm,Agency Placement Expenditure,"9,828.00",SEN Specialist Supp,,
05/01/2023,NW AGENCY PLACE-ED,Elysian at Westland Farm,Agency Placement Expenditure,"26,580.00",SEN Specialist Supp,,
05/01/2023,NE AGENCY PLACE-ED,Elysian at Westland Farm,Agency Placement Expenditure,"26,580.00",SEN Specialist Supp,,
05/01/2023,SW AGENCY PLACE-ED,Elysian at Westland Farm,Agency Placement Expenditure,"26,580.00",SEN Specialist Supp,,
05/01/2023,SW AGENCY PLACE-ED,Elysian at Westland Farm,Agency Placement Expenditure,"12,792.00",SEN Specialist Supp,,
05/01/2023,PERSONAL BUDGET (SW),Elysian at Westland Farm,Agency Placement Expenditure,"2,964.00",SEN Specialist Supp,,
05/01/2023,NW AGENCY PLACE-ED,Elysian at Westland Farm,Agency Placement Expenditure,"17,940.00",SEN Specialist Supp,,
05/01/2023,SW AGENCY PLACE-ED,Elysian at Westland Farm,Agency Placement Expenditure,"26,580.00",SEN Specialist Supp,,
05/01/2023,SW AGENCY PLACE-ED,Elysian at Westland Farm,Agency Placement Expenditure,"17,940.00",SEN Specialist Supp,,
05/01/2023,NW AGENCY/SPI P16-ED,Elysian at Westland Farm,Agency Placement Expenditure,"9,828.00",SEN Specialist Supp,,
05/01/2023,NE AGENCY PLACE-ED,Elysian at Westland Farm,Agency Placement Expenditure,"3,780.00",SEN Specialist Supp,,
05/01/2023,SW AGENCY PLACE-ED,Elysian at Westland Farm,Agency Placement Expenditure,"17,940.00",SEN Specialist Supp,,
05/01/2023,SW AGENCY PLACE-ED,Elysian at Westland Farm,Agency Placement Expenditure,"26,580.00",SEN Specialist Supp,,
05/01/2023,COVID COMF FUND,Epsom & Ewell Borough Council,Public Health Contract Payments,"16,850.15",Grants-Member Allocs,,
05/01/2023,LD-AUT CNTR TM CARE,Focus Care Agency Ltd,Supported Living,"15,540.00",Supp Living - MH,,
05/01/2023,LD-AUT CNTR TM CARE,Focus Care Agency Ltd,Supported Living,"10,665.60",Supp Living - MH,,
05/01/2023,LD-AUT CNTR TM CARE,Focus Care Agency Ltd,Supported Living,"15,150.00",Supp Living - MH,,
05/01/2023,GUILDFORD CARE OP,Friends of the Elderly,Day Care,660.00,Residential - OP,,
05/01/2023,GUILDFORD CARE OP,Friends of the Elderly,Day Care,720.00,Residential - OP,,
05/01/2023,GUILDFORD CARE OP,Friends of the Elderly,Day Care,720.00,Residential - OP,,
05/01/2023,ELMBRIDGE CARE OP,Glendale Residential Home,Respite Residential,298.71,Residential - OP,,
05/01/2023,COVID COMF FUND,Guildford Borough Council,Public Health Contract Payments,"31,138.92",Grants-Member Allocs,,
05/01/2023,EPSOM & EWELL CARE O,Howards Residential Home,Respite Residential,"1,394.00",Residential - MH,,
05/01/2023,SEN TRANSPORT,Hughes Mini Services,Hire of Vehicles,"5,280.00",Multi-purpose Veh,,
05/01/2023,SEN TRANSPORT,Hughes Mini Services,Hire of Vehicles,"4,488.00",Multi-purpose Veh,,
05/01/2023,SEN TRANSPORT,Hughes Mini Services,Hire of Vehicles,"3,696.00",Multi-purpose Veh,,
05/01/2023,SEN TRANSPORT,Hughes Mini Services,Hire of Vehicles,"4,748.04",Multi-purpose Veh,,
05/01/2023,SEN TRANSPORT,Hughes Mini Services,Hire of Vehicles,"3,696.00",Multi-purpose Veh,,
05/01/2023,SEN TRANSPORT,Hughes Mini Services,Hire of Vehicles,"3,696.00",Multi-purpose Veh,,
05/01/2023,SEN TRANSPORT,Hughes Mini Services,Hire of Vehicles,"3,168.00",Multi-purpose Veh,,
05/01/2023,SEN TRANSPORT,Hughes Mini Services,Hire of Vehicles,"3,088.80",Multi-purpose Veh,,
05/01/2023,SEN TRANSPORT,Hughes Mini Services,Coach Escorts Contracted,"1,008.00",Multi-purpose Veh,,
05/01/2023,SEN TRANSPORT,Hughes Mini Services,Coach Escorts Contracted,864.00,Multi-purpose Veh,,
05/01/2023,SEN TRANSPORT,Hughes Mini Services,Coach Escorts Contracted,432.00,Multi-purpose Veh,,
05/01/2023,SEN TRANSPORT,Hughes Mini Services,Hire of Vehicles,"4,488.00",Multi-purpose Veh,,
05/01/2023,SEN TRANSPORT,Hughes Mini Services,Hire of Vehicles,"4,752.00",Multi-purpose Veh,,
05/01/2023,SEN TRANSPORT,Hughes Mini Services,Hire of Vehicles,"3,775.20",Multi-purpose Veh,,
05/01/2023,SEN TRANSPORT,Hughes Mini Services,Hire of Vehicles,"5,280.00",Multi-purpose Veh,,
05/01/2023,SEN TRANSPORT,Hughes Mini Services,Coach Escorts Contracted,"1,188.00",Multi-purpose Veh,,
05/01/2023,SEN TRANSPORT,Hughes Mini Services,Coach Escorts Contracted,"1,008.00",Multi-purpose Veh,,
05/01/2023,SEN TRANSPORT,Hughes Mini Services,Hire of Vehicles,"1,888.06",Multi-purpose Veh,,
05/01/2023,SEN TRANSPORT,Hughes Mini Services,Hire of Vehicles,"4,321.80",Multi-purpose Veh,,
05/01/2023,SEN TRANSPORT,Hughes Mini Services,Hire of Vehicles,"3,696.00",Multi-purpose Veh,,
05/01/2023,SEN TRANSPORT,Hughes Mini Services,Hire of Vehicles,"3,276.00",Multi-purpose Veh,,
05/01/2023,PSD TRANSITION,Hughes Mini Services,Hire of Vehicles,"2,112.00",Multi-purpose Veh,,
05/01/2023,SEN TRANSPORT,Hughes Mini Services,Hire of Vehicles,"4,488.00",Multi-purpose Veh,,
05/01/2023,SEN TRANSPORT,Hughes Mini Services,Coach Escorts Contracted,"1,056.00",Multi-purpose Veh,,
05/01/2023,SEN TRANSPORT,Hughes Mini Services,Coach Escorts Contracted,"1,056.00",Multi-purpose Veh,,
05/01/2023,SEN TRANSPORT,Hughes Mini Services,Hire of Vehicles,"4,536.00",Multi-purpose Veh,,
05/01/2023,SEN TRANSPORT,Hughes Mini Services,Coach Escorts Contracted,880.00,Multi-purpose Veh,,
05/01/2023,SEN TRANSPORT,Hughes Mini Services,Coach Escorts Contracted,"1,161.60",Multi-purpose Veh,,
05/01/2023,SEN TRANSPORT,Hughes Mini Services,Coach Escorts Contracted,"1,008.00",Multi-purpose Veh,,
05/01/2023,SEN TRANSPORT,Hughes Mini Services,Coach Escorts Contracted,"1,056.00",Multi-purpose Veh,,
05/01/2023,TRANSPT M/STRM-SEC,Hughes Mini Services,Hire of Vehicles,"2,416.94",Multi-purpose Veh,,
05/01/2023,SEN TRANSPORT,Hughes Mini Services,Hire of Vehicles,"3,024.00",Multi-purpose Veh,,
05/01/2023,SEN TRANSPORT,Hughes Mini Services,Hire of Vehicles,"3,746.16",Multi-purpose Veh,,
05/01/2023,SEN TRANSPORT,Hughes Mini Services,Coach Escorts Contracted,880.00,Multi-purpose Veh,,
05/01/2023,PLD TRANSITION,Karens Angels,Hire of Vehicles,"2,006.40",Taxi Hire (SEN Only),,
05/01/2023,WAVERLEY CMHRS CARE,Kellys Self Storage Ltd,Other Community Care,395.89,Storage Services,,
05/01/2023,DR DATA CTR UNIT 10,Keysource Ltd,Corporate Responsive Maintenance,"2,430.37",Residential - OP,,
05/01/2023,NE CWD NON-LAC CARE,Lady Safe & Sons Ltd,Hire of Vehicles,264.00,Multi-purpose Veh,,
05/01/2023,RUNNYMEDE CARE OP,Longdene Homecare,Home Base Care,808.50,Dom Care - Adults,,
05/01/2023,SURREY HEATH CARE OP,Longdene Homecare,Home Base Care,458.50,Dom Care - Adults,,
05/01/2023,RUNNYMEDE CARE OP,Longdene Homecare,Home Base Care,357.50,Dom Care - Adults,,
05/01/2023,ELMBRIDGE CARE OP,Longdene Homecare,Home Base Care,588.00,Dom Care - Adults,,
05/01/2023,RUNNYMEDE CARE OP,Longdene Homecare,Home Base Care,598.40,Dom Care - Adults,,
05/01/2023,ELMBRIDGE CMHRS CARE,Longdene Homecare,Home Base Care,515.00,Dom Care - Adults,,
05/01/2023,ELMBRIDGE CARE OP,Longdene Homecare,Home Base Care,546.00,Dom Care - Adults,,
05/01/2023,SURREY HEATH CARE OP,Longdene Homecare,Home Base Care,328.00,Dom Care - Adults,,
05/01/2023,SPLTHORNE CMHRS CARE,Luv To Care Ltd,Supported Living,"16,142.04",Staff Benefits,,
05/01/2023,NE CWD NON-LAC CARE,Mike Ford,Hire of Vehicles,360.00,Multi-purpose Veh,,
05/01/2023,KALIMA GRT,Millane Contract Services Ltd,Corporate Responsive Maintenance,"1,397.90",General Build Maint,,
05/01/2023,General Build Maint,Millane Contract Services Ltd,Corporate Responsive Maintenance,336.42,General Build Maint,,
05/01/2023,SE ALT SEN POST 16,National Extension College,Agency Placement Expenditure,"1,190.00",Exam Fees,,
05/01/2023,SE ALT SEN POST 16,National Extension College,Agency Placement Expenditure,"1,520.00",Exam Fees,,
05/01/2023,NE ALT SEN POST 16,Nudge Education Ltd,Agency Placement Expenditure,"1,999.40",SEN Specialist Supp,,
05/01/2023,LD-AUT CNTR TM CARE,Oaktree Farm Care Centre Ltd,Day Care,647.04,Day Care - LD,,
05/01/2023,LD-AUT CNTR TM CARE,Oaktree Farm Care Centre Ltd,Day Care,"1,080.77",Day Care - LD,,
05/01/2023,SE AGENCY PLACE-ED,Papillon House School,Agency Placement Expenditure,"19,951.00",Res Care,,
05/01/2023,SE AGENCY PLACE-ED,Papillon House School,Agency Placement Expenditure,"17,305.00",Res Care,,
05/01/2023,NE AGENCY/SPI P16-ED,Papillon House School,Agency Placement Expenditure,"22,270.00",Res Care,,
05/01/2023,NE AGENCY/SPI P16-ED,Papillon House School,Agency Placement Expenditure,"22,270.00",Res Care,,
05/01/2023,NW AGENCY PLACE-ED,Papillon House School,Agency Placement Expenditure,"19,579.00",Res Care,,
05/01/2023,NE AGENCY PLACE-ED,Papillon House School,Agency Placement Expenditure,"17,997.00",Res Care,,
05/01/2023,NE AGENCY PLACE-ED,Papillon House School,Agency Placement Expenditure,"16,824.00",Res Care,,
05/01/2023,NE AGENCY PLACE-ED,Papillon House School,Agency Placement Expenditure,"22,270.00",Res Care,,
05/01/2023,NE AGENCY PLACE-ED,Papillon House School,Agency Placement Expenditure,"18,440.00",Res Care,,
05/01/2023,SE AGENCY PLACE-ED,Papillon House School,Agency Placement Expenditure,"17,997.00",Res Care,,
05/01/2023,SE AGENCY PLACE-ED,Papillon House School,Agency Placement Expenditure,"17,997.00",Res Care,,
05/01/2023,NE AGENCY PLACE-ED,Papillon House School,Agency Placement Expenditure,"16,824.00",Res Care,,
05/01/2023,NW AGENCY PLACE-ED,Papillon House School,Agency Placement Expenditure,"17,305.00",Res Care,,
05/01/2023,NE AGENCY PLACE-ED,Papillon House School,Agency Placement Expenditure,"17,305.00",Res Care,,
05/01/2023,NW AGENCY PLACE-ED,Papillon House School,Agency Placement Expenditure,"19,579.00",Res Care,,
05/01/2023,NE AGENCY PLACE-ED,Papillon House School,Agency Placement Expenditure,"19,579.00",Res Care,,
05/01/2023,SE AGENCY PLACE-ED,Papillon House School,Agency Placement Expenditure,"18,440.00",Res Care,,
05/01/2023,NE AGENCY PLACE-ED,Papillon House School,Agency Placement Expenditure,"21,855.00",Res Care,,
05/01/2023,SW AGENCY PLACE-ED,Papillon House School,Agency Placement Expenditure,"17,997.00",Res Care,,
05/01/2023,NE AGENCY PLACE-ED,Papillon House School,Agency Placement Expenditure,"17,997.00",Res Care,,
05/01/2023,NE AGENCY PLACE-ED,Papillon House School,Agency Placement Expenditure,"17,997.00",Res Care,,
05/01/2023,NW AGENCY PLACE-ED,Papillon House School,Agency Placement Expenditure,"16,824.00",Res Care,,
05/01/2023,SE AGENCY PLACE-ED,Papillon House School,Agency Placement Expenditure,"19,951.00",Res Care,,
05/01/2023,NW AGENCY PLACE-ED,Papillon House School,Agency Placement Expenditure,"22,270.00",Res Care,,
05/01/2023,SE AGENCY PLACE-ED,Papillon House School,Agency Placement Expenditure,"17,997.00",Res Care,,
05/01/2023,NE AGENCY PLACE-ED,Papillon House School,Agency Placement Expenditure,"22,270.00",Res Care,,
05/01/2023,SE AGENCY PLACE-ED,Papillon House School,Agency Placement Expenditure,"17,997.00",Res Care,,
05/01/2023,SE AGENCY PLACE-ED,Papillon House School,Agency Placement Expenditure,"18,440.00",Res Care,,
05/01/2023,SE AGENCY PLACE-ED,Papillon House School,Agency Placement Expenditure,"22,270.00",Res Care,,
05/01/2023,NE AGENCY PLACE-ED,Papillon House School,Agency Placement Expenditure,"18,440.00",Res Care,,
05/01/2023,SE ALTERNATIVE SEN,Powertutors Ltd,Agency Placement Expenditure,"2,073.60",SEN Specialist Supp,,
05/01/2023,NE ALTERNATIVE SEN,Powertutors Ltd,Agency Placement Expenditure,460.80,SEN Specialist Supp,,
05/01/2023,SE ALTERNATIVE SEN,Powertutors Ltd,Agency Placement Expenditure,"6,225.98",SEN Specialist Supp,,
05/01/2023,SE ALTERNATIVE SEN,Powertutors Ltd,Agency Placement Expenditure,"1,388.58",SEN Specialist Supp,,
05/01/2023,LD-AUT CNTR TM CARE,Precious Homes Ltd,Supported Living,"6,488.80",Supp Living - MH,,
05/01/2023,SEN TRANSPORT,Redacted Personal Data,Non-Staff Related Transport Costs,561.60,Childrens Indiv Tran,,
05/01/2023,NE ALT SEN POST 16,Redacted Personal Data,Agency Placement Expenditure,"3,570.00",SEND Agncy Placement,,
05/01/2023,SW CARE - CARE LVRS,Redacted Personal Data,Other Community Care - Vol,300.00,Invoicing Plan Req.,,
05/01/2023,SEN TRANSPORT,Redacted Personal Data,Non-Staff Related Transport Costs,420.00,Childrens Indiv Tran,,
05/01/2023,NE CARE - CARE LVRS,Redacted Personal Data,Third Party Payments-Other Agencies,400.00,Invoicing Plan Req.,,
05/01/2023,LAC SAVINGS MF,Redacted Personal Data,Other Community Care - Vol,485.00,Invoicing Plan Req.,,
05/01/2023,SW FOSTERING CARE,Redacted Personal Data,Payments to Foster Parents,"1,350.57",CYP Indiv Foster Car,,
05/01/2023,NW CWD NON-LAC CARE,Redacted Personal Data,Direct Payments - Carers of Disabled Children,"1,180.16",Adult direct payment,,
05/01/2023,CWD CONTRACTS/SLA'S,Redacted Personal Data,Direct Payments - Carers of Disabled Children,300.00,Invoicing Plan Req.,,
05/01/2023,SE CWD NON-LAC CARE,Redacted Personal Data,Direct Payments - Carers of Disabled Children,612.93,Individual - NEC,,
05/01/2023,NE CARE - CARE LVRS,Redacted Personal Data,Children Act Sec 24 Payments,299.00,Invoicing Plan Req.,,
05/01/2023,LD-AUT CNTR TM CARE,Royal Mencap Society,Other Community Care,877.92,Residential - MH,,
05/01/2023,COVID COMF FUND,Runnymede Borough Council,Public Health Contract Payments,"18,688.62",Local Government,,
05/01/2023,FEASIBILITY FUNDING,Ruskins Tree Consultancy,Fees,"4,020.00",M-D (Property),,
05/01/2023,CAPITAL FINANCING,SCC Epsom Primary School,Third Party Payments-Other Agencies,"73,908.00",Schools,,
05/01/2023,REIGATE & BD CARE PD,Seraphim Group Ltd,Other Community Care,525.00,Subscriptions,,
05/01/2023,LD-AUT CNTR TM CARE,Sonic Carz,Non-Staff Related Transport Costs,672.00,Taxi Hire (SEN Only),,
05/01/2023,RVC TRANSPORT,Street Cars Redhill Ltd,Hire of Vehicles,900.00,Multi-purpose Veh,,
05/01/2023,ACTIVE SURREY,Surrey Muslim Association,Grants-Third Sector and Voluntary Orgs/Charities,610.00,Grants-Member Allocs,,
05/01/2023,SEN TRANSPORT,Redacted Personal Data,Non-Staff Related Transport Costs,300.00,Childrens Indiv Tran,,
05/01/2023,LD-AUT CNTR TM CARE,Swan School Services Ltd,Day Care Cases,336.00,Multi-purpose Veh,,
05/01/2023,Government ,Teachers Pensions,Pensions,"75,750.01",Pensions,,
05/01/2023,Government ,Teachers Pensions,Pensions,"30,816.34",Pensions,,
05/01/2023,Government ,Teachers Pensions,Pensions,"4,243.75",Pensions,,
05/01/2023,Government ,Teachers Pensions,Pensions,"10,853.14",Pensions,,
05/01/2023,LD-AUT CNTR TM CARE,The Sons Of Divine Providence Care,Day Care,926.72,Residential - MH,,
05/01/2023,SW ALT SEN POST 16,Time For You PA Services,Agency Placement Expenditure,"2,720.00",Supp Living - LD,,
05/01/2023,HAYES BRIDGE BC-BUS,Veolia ES (UK) Ltd,Trade Refuse,369.89,Building Waste Mgt,,
05/01/2023,WOODHATCH,Veolia ES (UK) Ltd,Trade Refuse,487.42,Building Waste Mgt,,
05/01/2023,HIGH ASHURST OEC,Veolia ES (UK) Ltd,Trade Refuse,710.30,Building Waste Mgt,,
05/01/2023,MAYFORD CENTRE-BUS,Veolia ES (UK) Ltd,Trade Refuse,"1,499.65",Building Waste Mgt,,
05/01/2023,HAYES BRIDGE BC-BUS,Veolia ES (UK) Ltd,Trade Refuse,519.60,Building Waste Mgt,,
05/01/2023,ORCHARD COURT C/HOME,Veolia ES (UK) Ltd,Trade Refuse,303.94,Building Waste Mgt,,
05/01/2023,BARNFIELD,Veolia ES (UK) Ltd,Trade Refuse,356.81,Building Waste Mgt,,
05/01/2023,HAYES BRIDGE BC-BUS,Veolia ES (UK) Ltd,Trade Refuse,415.68,Building Waste Mgt,,
05/01/2023,SW CWD NON-LAC CARE,Woking All 3s,Hire of Vehicles,252.00,Multi-purpose Veh,,
05/01/2023,FEASIBILITY FUNDING,WS Atkins Plc T/A Atkins Ltd,Fees,372.30,Veh Repair & Maint,,
05/01/2023,ACTIVE SURREY,YMCA East Surrey,Grants-Third Sector and Voluntary Orgs/Charities,500.00,Grants-Member Allocs,,
05/01/2023,NE AGENCY/SPI P16-ED,Young Epilepsy,Agency Placement Expenditure,"35,867.84",Grants-Member Allocs,,
05/01/2023,SE AGENCY PLACE-ED,Young Epilepsy,Agency Placement Expenditure,"22,333.34",Grants-Member Allocs,,
05/01/2023,SE AGENCY PLACE-ED,Young Epilepsy,Agency Placement Expenditure,"22,333.33",Grants-Member Allocs,,
05/01/2023,SW ALT SEN POST 16,Zeebra Therapy Ltd,Other Community Care - Priv,285.00,SEN Specialist Supp,,
06/01/2023,RHILL&BTD CMHRS CARE,Abbey Lodge,Other Community Care,592.00,Supp Living - MH,,
06/01/2023,TANDRIDGE CMHRS CARE,Abbey Lodge,Other Community Care,"1,554.00",Supp Living - MH,,
06/01/2023,MOLE VALL CMHRS CARE,Abbey Lodge,Other Community Care,696.00,Supp Living - MH,,
06/01/2023,RHILL&BTD CMHRS CARE,Abbey Lodge,Other Community Care,726.00,Supp Living - MH,,
06/01/2023,EPSOM & EWELL CARE O,Absolute Care Services Ltd,Home Base Care,514.55,Dom Care - Adults,,
06/01/2023,REIGATE & BD CARE OP,Absolute Care Services Ltd,Home Base Care,454.56,Dom Care - Adults,,
06/01/2023,SUB MISUSE CARE PCKG,Acacia Homecare,Home Base Care,337.96,Residential - LD,,
06/01/2023,SPELTHORNE CARE OP,Acacia Homecare,Home Base Care,558.98,Residential - LD,,
06/01/2023,SPELTHORNE CARE OP,Acacia Homecare,Home Base Care,832.44,Residential - LD,,
06/01/2023,ELMBRIDGE CARE OP,Acacia Homecare,Home Base Care,391.16,Residential - LD,,
06/01/2023,SPELTHORNE CARE OP,Acacia Homecare,Home Base Care,"1,647.80",Residential - LD,,
06/01/2023,WOKING CARE OP,Acacia Homecare,Home Base Care,549.44,Residential - LD,,
06/01/2023,SUB MISUSE CARE PCKG,Acacia Homecare,Home Base Care,"1,011.21",Residential - LD,,
06/01/2023,ELMBRIDGE CARE OP,Acacia Homecare,Home Base Care,905.24,Residential - LD,,
06/01/2023,SPELTHORNE CARE OP,Acacia Homecare,Home Base Care,862.12,Residential - LD,,
06/01/2023,SPELTHORNE CARE OP,Acacia Homecare,Home Base Care,"1,702.68",Residential - LD,,
06/01/2023,SPELTHORNE CARE OP,Acacia Homecare,Home Base Care,742.56,Residential - LD,,
06/01/2023,SPELTHORNE CARE PD,Acacia Homecare,Home Base Care,838.60,Residential - LD,,
06/01/2023,SPELTHORNE CARE PD,Acacia Homecare,Home Base Care,602.58,Residential - LD,,
06/01/2023,SPELTHORNE CARE OP,Acacia Homecare,Home Base Care,654.92,Residential - LD,,
06/01/2023,SURREY HEATH CARE OP,Acorn Homecare,Home Base Care,499.38,Dom Care - Adults,,
06/01/2023,SURREY HEATH CARE OP,Acorn Homecare,Home Base Care,798.38,Dom Care - Adults,,
06/01/2023,GUILDFORD CARE OP,Acorn Homecare,Home Base Care,831.86,Dom Care - Adults,,
06/01/2023,LD-AUT CNTR TM CARE,Acorn Homecare,Home Base Care,285.50,Dom Care - Adults,,
06/01/2023,SURREY HEATH CARE OP,Acorn Homecare,Home Base Care,332.92,Dom Care - Adults,,
06/01/2023,SURREY HEATH CARE OP,Acorn Homecare,Home Base Care,355.18,Dom Care - Adults,,
06/01/2023,GUILDFORD CARE OP,Acorn Homecare,Home Base Care,399.70,Dom Care - Adults,,
06/01/2023,SURREY HEATH CARE OP,Acorn Homecare,Home Base Care,291.29,Dom Care - Adults,,
06/01/2023,WAVERLEY CARE OP,Acorn Homecare,Home Base Care,657.56,Dom Care - Adults,,
06/01/2023,SURREY HEATH CARE OP,Acorn Homecare,Home Base Care,"1,568.28",Dom Care - Adults,,
06/01/2023,GUILDFORD CARE OP,Acorn Homecare,Home Base Care,574.00,Dom Care - Adults,,
06/01/2023,GUILDFORD CARE OP,Acorn Homecare,Home Base Care,"1,471.02",Dom Care - Adults,,
06/01/2023,SURREY HEATH CARE OP,Acorn Homecare,Home Base Care,551.32,Dom Care - Adults,,
06/01/2023,GUILDFORD CARE OP,Acorn Homecare,Home Base Care,278.75,Dom Care - Adults,,
06/01/2023,GUILDFORD CARE OP,Acorn Homecare,Home Base Care,530.20,Dom Care - Adults,,
06/01/2023,WAVERLEY CARE OP,Acorn Homecare,Home Base Care,815.36,Dom Care - Adults,,
06/01/2023,SURREY HEATH CARE OP,Acorn Homecare,Home Base Care,499.38,Dom Care - Adults,,
06/01/2023,SURREY HEATH CARE OP,Acorn Homecare,Home Base Care,499.38,Dom Care - Adults,,
06/01/2023,WAVERLEY CARE OP,Acorn Homecare,Home Base Care,399.70,Dom Care - Adults,,
06/01/2023,SURREY HEATH CARE OP,Acorn Homecare,Home Base Care,362.60,Dom Care - Adults,,
06/01/2023,SURREY HEATH CARE OP,Acorn Homecare,Home Base Care,332.92,Dom Care - Adults,,
06/01/2023,GUILDFORD CARE OP,Acorn Homecare,Home Base Care,432.16,Dom Care - Adults,,
06/01/2023,SURREY HEATH CARE OP,Acorn Homecare,Home Base Care,551.32,Dom Care - Adults,,
06/01/2023,SURREY HEATH CARE PD,Acorn Homecare,Home Base Care,309.08,Dom Care - Adults,,
06/01/2023,SURREY HEATH CARE OP,Acorn Homecare,Home Base Care,499.38,Dom Care - Adults,,
06/01/2023,MOLE VALLEY CARE OP,Aims Homecare Ltd,Home Base Care,"1,766.52",Dom Care - Adults,,
06/01/2023,MOLE VALLEY CARE OP,Aims Homecare Ltd,Home Base Care,"1,545.88",Dom Care - Adults,,
06/01/2023,MOLE VALL CMHRS CARE,Aims Homecare Ltd,Home Base Care,"1,230.00",Dom Care - Adults,,
06/01/2023,MOLE VALLEY CARE PD,Aims Homecare Ltd,Home Base Care,"1,545.88",Dom Care - Adults,,
06/01/2023,LD-AUT CNTR TM CARE,Aims Homecare Ltd,Home Base Care,"1,148.00",Dom Care - Adults,,
06/01/2023,GUILDFORD CARE OP,Aims Homecare Ltd,Home Base Care,353.36,Dom Care - Adults,,
06/01/2023,GUILDFORD CARE OP,Aims Homecare Ltd,Home Base Care,"1,413.44",Dom Care - Adults,,
06/01/2023,GUILDFORD CARE OP,Aims Homecare Ltd,Home Base Care,899.04,Dom Care - Adults,,
06/01/2023,MOLE VALLEY CARE OP,Aims Homecare Ltd,Home Base Care,"1,413.44",Dom Care - Adults,,
06/01/2023,MOLE VALLEY CARE OP,Aims Homecare Ltd,Home Base Care,"1,413.44",Dom Care - Adults,,
06/01/2023,MOLE VALLEY CARE OP,Aims Homecare Ltd,Home Base Care,394.36,Dom Care - Adults,,
06/01/2023,PLD TRANSITION,Alina Homecare Specialist - Surrey,Supported Living,"10,945.36",Residential - OP,,
06/01/2023,PLD TRANSITION,Alina Homecare Specialist - Surrey,Supported Living,"6,750.24",Residential - OP,,
06/01/2023,PLD TRANSITION,Alina Homecare Specialist - Surrey,Supported Living,"6,759.80",Residential - OP,,
06/01/2023,PLD TRANSITION,Alina Homecare Specialist - Surrey,Supported Living,"4,748.52",Residential - OP,,
06/01/2023,PLD TRANSITION,Alina Homecare Specialist - Surrey,Supported Living,"7,518.26",Residential - OP,,
06/01/2023,LD-AUT CNTR TM CARE,Alina Homecare Specialist - Surrey,Supported Living,"4,667.04",Residential - OP,,
06/01/2023,LD-AUT CNTR TM CARE,Alina Homecare Specialist - Surrey,Other Community Care,799.56,Residential - OP,,
06/01/2023,LD-AUT CNTR TM CARE,Alina Homecare Specialist - Surrey,Other Community Care,577.46,Residential - OP,,
06/01/2023,PLD TRANSITION,Alina Homecare Specialist - Surrey,Supported Living,"9,879.36",Residential - OP,,
06/01/2023,PLD TRANSITION,Alina Homecare Specialist - Surrey,Supported Living,"7,506.68",Residential - OP,,
06/01/2023,LD-AUT CNTR TM CARE,Alina Homecare Specialist - Surrey,Other Community Care,666.30,Residential - OP,,
06/01/2023,LD-AUT CNTR TM CARE,Alina Homecare Specialist - Surrey,Supported Living,"4,169.00",Residential - OP,,
06/01/2023,LD-AUT CNTR TM CARE,Alina Homecare Specialist - Surrey,Supported Living,"5,521.32",Residential - OP,,
06/01/2023,LD-AUT CNTR TM CARE,Alina Homecare Specialist - Surrey,Supported Living,"5,000.40",Residential - OP,,
06/01/2023,PLD TRANSITION,Alina Homecare Specialist - Surrey,Supported Living,"10,267.48",Residential - OP,,
06/01/2023,LD-AUT CNTR TM CARE,Alina Homecare Specialist - Surrey,Other Community Care,"1,243.76",Residential - OP,,
06/01/2023,LD-AUT CNTR TM CARE,Alina Homecare Specialist - Surrey,Other Community Care,444.20,Residential - OP,,
06/01/2023,LD-AUT CNTR TM CARE,Alina Homecare Specialist - Surrey,Other Community Care,"1,332.60",Residential - OP,,
06/01/2023,LD-AUT CNTR TM CARE,Alina Homecare Specialist - Surrey,Other Community Care,488.62,Residential - OP,,
06/01/2023,LD-AUT CNTR TM CARE,Alina Homecare Specialist - Surrey,Other Community Care,"2,842.88",Residential - OP,,
06/01/2023,LD-AUT CNTR TM CARE,Alina Homecare Specialist - Surrey,Other Community Care,444.20,Residential - OP,,
06/01/2023,LD-AUT CNTR TM CARE,Alina Homecare Specialist - Surrey,Other Community Care,"1,910.06",Residential - OP,,
06/01/2023,LD-AUT CNTR TM CARE,Alina Homecare Specialist - Surrey,Other Community Care,444.20,Residential - OP,,
06/01/2023,LD-AUT CNTR TM CARE,Alina Homecare Specialist - Surrey,Other Community Care,"1,332.60",Residential - OP,,
06/01/2023,LD-AUT CNTR TM CARE,Alina Homecare Specialist - Surrey,Supported Living,"4,667.04",Residential - OP,,
06/01/2023,LD-AUT CNTR TM CARE,Alina Homecare Specialist - Surrey,Supported Living,"4,706.04",Residential - OP,,
06/01/2023,LD-AUT CNTR TM CARE,Alina Homecare Specialist - Surrey,Supported Living,660.00,Residential - OP,,
06/01/2023,LD-AUT CNTR TM CARE,Alina Homecare Specialist - Surrey,Other Community Care,266.52,Residential - OP,,
06/01/2023,LD-AUT CNTR TM CARE,Alina Homecare Specialist - Surrey,Supported Living,"4,760.28",Residential - OP,,
06/01/2023,LD-AUT CNTR TM CARE,Alina Homecare Specialist - Surrey,Supported Living,"9,107.92",Residential - OP,,
06/01/2023,LD-AUT CNTR TM CARE,Alina Homecare Specialist - Surrey,Other Community Care,"1,021.66",Residential - OP,,
06/01/2023,LD-AUT CNTR TM CARE,Alina Homecare Specialist - Surrey,Other Community Care,355.36,Residential - OP,,
06/01/2023,LD-AUT CNTR TM CARE,Alina Homecare Specialist - Surrey,Supported Living,"4,667.04",Residential - OP,,
06/01/2023,LD-AUT CNTR TM CARE,Alina Homecare Specialist - Surrey,Supported Living,"4,667.04",Residential - OP,,
06/01/2023,LD-AUT CNTR TM CARE,Alina Homecare Specialist - Surrey,Supported Living,"13,321.72",Residential - OP,,
06/01/2023,LD-AUT CNTR TM CARE,Alina Homecare Specialist - Surrey,Other Community Care,533.04,Residential - OP,,
06/01/2023,PLD TRANSITION,Alina Homecare Specialist - Surrey,Supported Living,"9,800.64",Residential - OP,,
06/01/2023,LD-AUT CNTR TM CARE,Alina Homecare Specialist - Surrey,Supported Living,"4,970.00",Residential - OP,,
06/01/2023,LD-AUT CNTR TM CARE,Alina Homecare Specialist - Surrey,Other Community Care,"2,487.52",Residential - OP,,
06/01/2023,LD-AUT CNTR TM CARE,Alina Homecare Specialist - Surrey,Supported Living,528.00,Residential - OP,,
06/01/2023,PLD TRANSITION,Alina Homecare Specialist - Surrey,Supported Living,"9,593.36",Residential - OP,,
06/01/2023,LD-AUT CNTR TM CARE,Alina Homecare Specialist - Surrey,Other Community Care,266.52,Residential - OP,,
06/01/2023,LD-AUT CNTR TM CARE,Alina Homecare Specialist - Surrey,Other Community Care,621.88,Residential - OP,,
06/01/2023,PLD TRANSITION,Alina Homecare Specialist - Surrey,Supported Living,"4,002.60",Residential - OP,,
06/01/2023,LD-AUT CNTR TM CARE,Alina Homecare Specialist - Surrey,Other Community Care,399.78,Residential - OP,,
06/01/2023,LD-AUT CNTR TM CARE,Alina Homecare Specialist - Surrey,Other Community Care,"1,243.76",Residential - OP,,
06/01/2023,LD-AUT CNTR TM CARE,Alina Homecare Specialist - Surrey,Supported Living,"4,794.04",Residential - OP,,
06/01/2023,PLD TRANSITION,Alina Homecare Specialist - Surrey,Supported Living,"9,217.64",Residential - OP,,
06/01/2023,LD-AUT CNTR TM CARE,Alina Homecare Specialist - Surrey,Other Community Care,621.88,Residential - OP,,
06/01/2023,PLD TRANSITION,Alina Homecare Specialist - Surrey,Other Community Care,"1,421.44",Residential - OP,,
06/01/2023,PLD TRANSITION,Alina Homecare Specialist - Surrey,Supported Living,"8,749.76",Residential - OP,,
06/01/2023,PLD TRANSITION,Alpha Extreme Services Ltd,Other Community Care,528.00,Dom Cleaning Serv,,
06/01/2023,ELMBRIDGE CARE PD,Amazed Care Services,Home Base Care,765.60,Dom Care - Adults,,
06/01/2023,SPELTHORNE CARE OP,Aniis Ltd,Home Base Care,501.20,Dom Care - Adults,,
06/01/2023,SPELTHORNE CARE OP,Aniis Ltd,Home Base Care,610.40,Dom Care - Adults,,
06/01/2023,SPELTHORNE CARE OP,Aniis Ltd,Home Base Care,"1,307.60",Dom Care - Adults,,
06/01/2023,RUNNYMEDE CARE OP,Aniis Ltd,Home Base Care,"1,220.80",Dom Care - Adults,,
06/01/2023,RUNNYMEDE CARE OP,Aniis Ltd,Home Base Care,705.60,Dom Care - Adults,,
06/01/2023,SPELTHORNE CARE OP,Aniis Ltd,Home Base Care,653.80,Dom Care - Adults,,
06/01/2023,LD-AUT CNTR TM CARE,Artventure Trust Ltd,Day Care,324.32,Day Care - PSD,,
06/01/2023,LD-AUT CNTR TM CARE,Artventure Trust Ltd,Day Care,330.80,Day Care - PSD,,
06/01/2023,LD-AUT CNTR TM CARE,Artventure Trust Ltd,Other Community Care,320.00,Day Care - PSD,,
06/01/2023,SEN Centres,Auriol Junior School,Agency Placement Expenditure,607.33,Schools,,
06/01/2023,SEN Centres,Auriol Junior School,Agency Placement Expenditure,607.33,Schools,,
06/01/2023,SEN Centres,Auriol Junior School,Agency Placement Expenditure,607.33,Schools,,
06/01/2023,SEN Centres,Auriol Junior School,Agency Placement Expenditure,607.33,Schools,,
06/01/2023,SEN Centres,Auriol Junior School,Agency Placement Expenditure,607.33,Schools,,
06/01/2023,SEN Centres,Auriol Junior School,Agency Placement Expenditure,607.33,Schools,,
06/01/2023,SEN Centres,Auriol Junior School,Agency Placement Expenditure,607.33,Schools,,
06/01/2023,SEN Centres,Auriol Junior School,Agency Placement Expenditure,607.33,Schools,,
06/01/2023,SEN Centres,Auriol Junior School,Agency Placement Expenditure,607.33,Schools,,
06/01/2023,LD-AUT CNTR TM CARE,Birch House,Day Care,441.41,Residential - OP,,
06/01/2023,SEN Centres,Bletchingley Village Primary School,Agency Placement Expenditure,298.71,Schools,,
06/01/2023,SEN Centres,Bletchingley Village Primary School,Agency Placement Expenditure,298.71,Schools,,
06/01/2023,SEN Centres,Bletchingley Village Primary School,Agency Placement Expenditure,298.71,Schools,,
06/01/2023,EIF 2 YR OLD,Bletchingley Village Primary School,Third Party Payments-Other Agencies,"2,000.00",Schools,,
06/01/2023,SEN Centres,Bletchingley Village Primary School,Agency Placement Expenditure,298.71,Schools,,
06/01/2023,SEN Centres,Bletchingley Village Primary School,Agency Placement Expenditure,298.71,Schools,,
06/01/2023,SEN Centres,Bletchingley Village Primary School,Agency Placement Expenditure,298.71,Schools,,
06/01/2023,SEN Centres,Bletchingley Village Primary School,Agency Placement Expenditure,298.71,Schools,,
06/01/2023,SEN Centres,Bletchingley Village Primary School,Agency Placement Expenditure,298.71,Schools,,
06/01/2023,SEN Centres,Bletchingley Village Primary School,Agency Placement Expenditure,298.71,Schools,,
06/01/2023,SEN Centres,Bletchingley Village Primary School,Agency Placement Expenditure,298.71,Schools,,
06/01/2023,SEN Centres,Bletchingley Village Primary School,Agency Placement Expenditure,298.71,Schools,,
06/01/2023,SEN Centres,Bletchingley Village Primary School,Agency Placement Expenditure,298.71,Schools,,
06/01/2023,SEN Centres,Bletchingley Village Primary School,Agency Placement Expenditure,298.71,Schools,,
06/01/2023,SEN Centres,Bletchingley Village Primary School,Agency Placement Expenditure,298.71,Schools,,
06/01/2023,SEN Centres,Bletchingley Village Primary School,Agency Placement Expenditure,298.71,Schools,,
06/01/2023,SEN Centres,Bletchingley Village Primary School,Agency Placement Expenditure,298.71,Schools,,
06/01/2023,SEN Centres,Bletchingley Village Primary School,Agency Placement Expenditure,298.71,Schools,,
06/01/2023,SEN Centres,Bletchingley Village Primary School,Agency Placement Expenditure,298.71,Schools,,
06/01/2023,SEN Centres,Bletchingley Village Primary School,Agency Placement Expenditure,298.71,Schools,,
06/01/2023,SEN Centres,Bletchingley Village Primary School,Agency Placement Expenditure,298.71,Schools,,
06/01/2023,PLD TRANSITION,Boyce Care Ltd,Other Community Care,"1,539.20",Supp Living - MH,,
06/01/2023,PLD TRANSITION,Boyce Care Ltd,Supported Living,"5,696.25",Supp Living - MH,,
06/01/2023,PLD TRANSITION,Boyce Care Ltd,Other Community Care,"1,539.20",Supp Living - MH,,
06/01/2023,EIF 3 & 4 YR OLD,Brambly House Montessori School,Third Party Payments-Other Agencies,"1,000.00",Schools,,
06/01/2023,EIF 3 & 4 YR OLD,Brambly House Montessori School,Third Party Payments-Other Agencies,"2,000.00",Schools,,
06/01/2023,EIF 3 & 4 YR OLD,Brambly House Montessori School,Third Party Payments-Other Agencies,"1,000.00",Schools,,
06/01/2023,SPECIAL SCHOOLS CORE,Bramley Oak Academy,Agency Placement Expenditure,"1,919.96",Schools,,
06/01/2023,SPECIAL SCHOOLS CORE,Bramley Oak Academy,Agency Placement Expenditure,"1,922.48",Schools,,
06/01/2023,SPECIAL SCHOOLS CORE,Bramley Oak Academy,Agency Placement Expenditure,"1,922.48",Schools,,
06/01/2023,SPECIAL SCHOOLS CORE,Bramley Oak Academy,Agency Placement Expenditure,"1,894.27",Schools,,
06/01/2023,SPECIAL SCHOOLS CORE,Bramley Oak Academy,Agency Placement Expenditure,"1,896.79",Schools,,
06/01/2023,SPECIAL SCHOOLS CORE,Bramley Oak Academy,Agency Placement Expenditure,"1,922.48",Schools,,
06/01/2023,SPECIAL SCHOOLS CORE,Bramley Oak Academy,Agency Placement Expenditure,"1,757.50",Schools,,
06/01/2023,SPECIAL SCHOOLS CORE,Bramley Oak Academy,Agency Placement Expenditure,"1,922.48",Schools,,
06/01/2023,SPECIAL SCHOOLS CORE,Bramley Oak Academy,Agency Placement Expenditure,"1,922.48",Schools,,
06/01/2023,SPECIAL SCHOOLS CORE,Bramley Oak Academy,Agency Placement Expenditure,"1,896.79",Schools,,
06/01/2023,SPECIAL SCHOOLS CORE,Bramley Oak Academy,Agency Placement Expenditure,"1,922.48",Schools,,
06/01/2023,SPECIAL SCHOOLS CORE,Bramley Oak Academy,Agency Placement Expenditure,"1,922.48",Schools,,
06/01/2023,SPECIAL SCHOOLS CORE,Bramley Oak Academy,Agency Placement Expenditure,"1,968.13",Schools,,
06/01/2023,SPECIAL SCHOOLS CORE,Bramley Oak Academy,Agency Placement Expenditure,"1,922.48",Schools,,
06/01/2023,SPECIAL SCHOOLS CORE,Bramley Oak Academy,Agency Placement Expenditure,"1,896.79",Schools,,
06/01/2023,SPECIAL SCHOOLS CORE,Bramley Oak Academy,Agency Placement Expenditure,"1,894.27",Schools,,
06/01/2023,SPECIAL SCHOOLS CORE,Bramley Oak Academy,Agency Placement Expenditure,"1,922.48",Schools,,
06/01/2023,SPECIAL SCHOOLS CORE,Bramley Oak Academy,Agency Placement Expenditure,"1,922.48",Schools,,
06/01/2023,SPECIAL SCHOOLS CORE,Bramley Oak Academy,Agency Placement Expenditure,"1,922.48",Schools,,
06/01/2023,SPECIAL SCHOOLS CORE,Bramley Oak Academy,Agency Placement Expenditure,"1,922.48",Schools,,
06/01/2023,SPECIAL SCHOOLS CORE,Bramley Oak Academy,Agency Placement Expenditure,"1,922.48",Schools,,
06/01/2023,SPECIAL SCHOOLS CORE,Bramley Oak Academy,Agency Placement Expenditure,"3,135.07",Schools,,
06/01/2023,SPECIAL SCHOOLS CORE,Bramley Oak Academy,Agency Placement Expenditure,"1,965.61",Schools,,
06/01/2023,SPECIAL SCHOOLS CORE,Bramley Oak Academy,Agency Placement Expenditure,"1,922.48",Schools,,
06/01/2023,SPECIAL SCHOOLS CORE,Bramley Oak Academy,Agency Placement Expenditure,"1,894.27",Schools,,
06/01/2023,SPECIAL SCHOOLS CORE,Bramley Oak Academy,Agency Placement Expenditure,"2,278.97",Schools,,
